Workbook

Sheet COVER
C2: Cover
C4: NAVIGATION
C6: COMMENTS
C9: Bonneville Power Administration
C10: 6P Energy Conservation Standards Savings Model
C11: BEVERAGE VENDING MACHINES
C13: Product Description
C14: DOE defines a “refrigerated bottled or canned beverage vending machine” as a commercial refrigerator that cools bottled or canned beverages and dispenses the bottled or canned beverages on payment.
C16: Standard Compliance Year
C17: 2012, per DOE Final Rule published August 31, 2009
C19: Major changes from previous rulemaking (2009 effective standard)
C20: No previous standards for refrigerated beverage vending machines exist
C22: 6P Baseline
C23: The product was modeled in the 6P. The baseline captures the standard with an effective date of 2012 but the model reflects updated data which became available after 6P publication.
C25: Prepared By:
C26: Navigant Consulting | D26: Cadeo Group
C27: One Market Street | Spear Street Tower, Suite 1200 | D27: 840 First Street, Suite 300
C28: San Francisco, CA 94105 | D28: Washington, DC 20002

Sheet Definitions
C2: Definitions
C4: NAVIGATION
C6: COMMENTS
C9: Average Megawatt (aMW) | D9: The average number of megawatts over a specified time period
C10: Adjustment to 6P Baseline | D10: Adjustment to reconcile the 6P projected energy consumption and the modeled consumption calculated using best available data.
C11: Department of Energy Aggregate Lifecycle Savings | D11: Sum of 'Total First Year Savings'. This accounts for the cumulative savings in accordance with DOE Carbon Accounting Practices.
C12: Department of Energy Notice of Proposed Rulemaking (DOE NOPR) | D12: Federal Register notice detailing analyses conducted by the DOE to establish proposed energy conservation standards.
C13: Efficiency Level (EL) | D13: The discrete efficiency ratings of a product. Each efficiency level is associated with a different UEC.
C14: Efficiency Level Distribution | D14: The mix of various equipment efficiencies shipped in a given year.
C15: First Year Savings, by Year | D15: Savings due to the higher standards for units installed in a particular year. First year savings are highest following the standards compliance year while the stock turns over, after which first year savings are only attributed to shipments associated with new construction.
C16: Governmental Regulatory Impact Model (GRIM) | D16: The industry cash flow model used by DOE to assess impacts on manufacturers due to proposed energy conservation standards
C17: Installed Unit Energy Consumption (Installed UEC) | D17: The average annual unit energy consumption of all installed units in a given year.
C18: Market Unit Energy Consumption (Market UEC) | D18: The average annual unit energy consumption of units shipped in a given year.
C19: National Impact Analysis (NIA) | D19: The energy impact analysis used by DOE to calculate energy savings associated with each standard.
C20: Pre-case | D20: The case representing 6P baseline assumptions where energy consumption due to the product accounts for shipment and shipment UEC by year, without the affect of standards announced following the development of the 6P.
C21: Post-case | D21: The case in which standards are implemented. If the 6P already captured the analyzed standard, the post-case will be the same as the pre-case.
C22: Product Class | D22: Product classificiation determined by product configuration, size, application, location, and other attributes that contribute to consumer utility. DOE is allowed to establish different standards for each product class.
C23: Product Class Distribution | D23: Market share/mix of each product class shipped in a given year.
C24: Product Lifetime | D24: The average time a given class of products stays in the field as part of the installed stock. Some products will last longer (delaying replacement) whereas others will fail and be retired earlier (accelerating replacement), but the lifetime represents the market average.
C25: Shipments | D25: Sales of products. This may be presented by product class, efficiency distribution, or delineated by other metrics. Shipments may be attributed to new construction and/or replacements and retrofits.
C26: Sixth Power Plan (6P) | D26: The Pacific Northwest Resource Plan published by the Northwest Power Conservation Council. The 6P timeframe is from 2010-2015.
C27: Sixth Power Plan Baseline (6P Baseline) | D27: The 6P assumes equipment efficiency and shipment units in the region. When available, the 6P assumptions are the baseline for each standard impact analysis.
C28: Standard Compliance Year | D28: The year when the appliance standard goes into effect.
C29: Stock | D29: All units installed in previous years which remain in operation.
C30: Technical Support Document (TSD) | D30: TSD's are published by the DOE as companion documents to Federal Register notices (e.g., ANOPRs/preliminary analyses and NOPRs). The TSDs include technical detail that supports the notices. The final rule TSD includes the discussion of the Manufacturer Impact Analysis (MIA) and National Impact Analysis (NIA).
C31: Total First Year Savings through 2034 | D31: The sum of first year savings from 2010 through 2034
C32: Trial Standard Level (TSL) | D32: A proposed efficiency standard evaluated by DOE during the NOPR and Final Rule phase analyses. A TSL may specify different standard efficiency levels for each product class included in the rulemaking.

Sheet Comments
C2: Comments
C4: NAVIGATION
C7: Tab | D7: Comment
C8: Example | D8: Please use this space to document your comments as you review the model. We look forward to receiving your feedback. Thank you.

Sheet Navigation
C2: NAVIGATION
C4: COMMENTS
C7: INFORMATION TABS | E7: INPUT TABS | G7: UEC CALCULATIONS | I7: RESULTS | K7: CHARTS
C9: COVER | E9: PRODUCT CLASSES
C11: DEFINITIONS | E11: EFFICIENCY LEVELS | G11: UEC DEVELOPMENT
C13: COMMENTS | E13: EQUIPMENT SPECIFICATIONS
C15: NAVIGATION | E15: CONSTANTS AND MENUS
C17: CENTRAL COMMERCIAL MODEL (EXTERNAL) | E17: PRODUCT CLASS DISTRIBUTION | G17: UEC | I17: RESULTS | K17: CHARTS - ALL
E19: EFFICIENCY DISTRIBUTION
I20: SUMMARY RESULTS
E21: SHIPMENTS AND STOCK
E23: 6P UEC DEVELOPMENT

Sheet Product Classes
C2: Selection of Product Classes for Model
C4: NAVIGATION
C6: COMMENTS
C9: All Product Classes | D9: 2011 DOE DFR PCs 1 | E9: DOE Representative PCs 1 | F9: 6th Plan PCs 2 | H9: Model PCs | I9: Rationale
C10: Class A- Small (ASIN) | D10: DOE- PC1 | E10: PC1 | F10: 6P- PC1 | H10: PC1 | I10: Aligns with 6P assumptions
C11: Class A- Medium (AMIN) | D11: DOE- PC2 | E11: PC2 | F11: 6P- PC2 | H11: PC2 | I11: Aligns with 6P assumptions
C12: Class A- Large (ALIN) | D12: DOE- PC3 | E12: PC3 | F12: 6P- PC3 | H12: PC3 | I12: Aligns with 6P assumptions
C13: Class B- Small (BSIO) | D13: DOE- PC4 | E13: PC4 | F13: 6P- PC4 | H13: PC4 | I13: Aligns with 6P assumptions
C14: Class B- Medium (BMIO) | D14: DOE- PC5 | E14: PC5 | F14: 6P- PC5 | H14: PC5 | I14: Aligns with 6P assumptions
C15: Class B- Large (BLIO) | D15: DOE- PC6 | E15: PC6 | F15: 6P- PC6 | H15: PC6 | I15: Aligns with 6P assumptions
C17: Selection rationale | D17: The 6P and DOE Direct Final Rule used the same product classes, therefore the same six product classes are used in this analysis
C19: Sources | D19: 1. DOE Refrigerated Beverage Vending Machines 2009 Direct Final Rule, Section I, Table I.1
D20: 2. DOE Refrigerated Beverage Vending Machines 2009 Direct Final Rule, Section VI, Table VI.1 and Table VI.2
D21: 3. 6P Conservation Supply Curve Files: Refrigerators Freezers Ice Makers Beverage Vending, ‘BVM’ tab, Table 7.2.1 cells A6:G10 (as taken from 'DOE ANOPR Technical Support Documents for Beverage Vending Machines)

Sheet Efficiency Levels
C2: Efficiency Levels and Standards for Each Product Class
C4: NAVIGATION
C6: COMMENTS
C9: PC1 | D9: =OFFSET('Product Classes'!$C$9,MATCH(C9,'Product Classes'!$H$10:$H$15,0),0) -> Class A- Small (ASIN)
C11: Model ELs | D11: Energy Level (kWh/day) | E11: Compliance Year | F11: Model Efficiency Levels
C12: EL0 | D12: 6.1 | F12: Market Baseline
C13: EL1 | D13: 5.27 | F13: Equivalent to Energy Star Tier 1
C14: EL2 | D14: 4.75 | F14: Equivalent to Energy Star Tier 2
C15: EL3 | D15: 4.25
C16: EL4 | D16: 3.95
C17: EL5 | D17: 3.73
C18: EL6 | D18: 3.58 | E18: 2012
C19: EL7 | D19: 3.25 | F19: Max tech
C21: Sources | D21: DOE Refrigerated Beverage Vending Machines 2009 Direct Final Rule, Technical Support Document Chapter 9, Table 9.2.1 Trial Standard Levels for Class A Equipment Expressed in Terms of Daily Energy Consumption (page 9-3)
C26: PC2 | D26: =OFFSET('Product Classes'!$C$9,MATCH(C26,'Product Classes'!$H$10:$H$15,0),0) -> Class A- Medium (AMIN)
C28: Model ELs | D28: Energy Level (kWh/day) | E28: Compliance Year | F28: Model Efficiency Levels
C29: EL0 | D29: 6.53 | F29: Market Baseline
C30: EL1 | D30: 5.51 | F30: Equivalent to Energy Star Tier 1
C31: EL2 | D31: 5.25 | F31: Equivalent to Energy Star Tier 2
C32: EL3 | D32: 4.75
C33: EL4 | D33: 4.19
C34: EL5 | D34: 3.95
C35: EL6 | D35: 3.79 | E35: 2012
C36: EL7 | D36: 3.43 | F36: Max tech
C38: Sources | D38: DOE Refrigerated Beverage Vending Machines 2009 Direct Final Rule, Technical Support Document Chapter 9, Table 9.2.1 Trial Standard Levels for Class A Equipment Expressed in Terms of Daily Energy Consumption (page 9-3)
C43: PC3 | D43: =OFFSET('Product Classes'!$C$9,MATCH(C43,'Product Classes'!$H$10:$H$15,0),0) -> Class A- Large (ALIN)
C45: Model ELs | D45: Energy Level (kWh/day) | E45: Compliance Year | F45: Model Efficiency Levels
C46: EL0 | D46: 6.75 | F46: Market Baseline
C47: EL1 | D47: 6.21 | F47: Equivalent to Energy Star Tier 1
C48: EL2 | D48: 5.75 | F48: Equivalent to Energy Star Tier 2
C49: EL3 | D49: 5.25
C50: EL4 | D50: 4.89
C51: EL5 | D51: 4.6
C52: EL6 | D52: 4.41 | E52: 2012
C53: EL7 | D53: 3.94 | F53: Max tech
C55: Sources | D55: DOE Refrigerated Beverage Vending Machines 2009 Direct Final Rule, Technical Support Document Chapter 9, Table 9.2.1 Trial Standard Levels for Class A Equipment Expressed in Terms of Daily Energy Consumption (page 9-3)
C60: PC4 | D60: =OFFSET('Product Classes'!$C$9,MATCH(C60,'Product Classes'!$H$10:$H$15,0),0) -> Class B- Small (BSIO)
C62: Model ELs | D62: Energy Level (kWh/day) | E62: Compliance Year | F62: Model Efficiency Levels
C63: EL0 | D63: 4.96 | F63: Market Baseline
C64: EL1 | D64: 4.62 | F64: Equivalent to Energy Star Tier 1
C65: EL2 | D65: 4.31
C66: EL3 | D66: 4.31 | E66: 2012 | F66: Equivalent to Energy Star Tier 2
C67: EL4 | D67: 4.28
C68: EL5 | D68: 3.78
C69: EL6 | D69: 3.69 | F69: Max tech
C71: Sources | D71: DOE Refrigerated Beverage Vending Machines 2009 Direct Final Rule, Technical Support Document Chapter 9, Table 9.2.1 Trial Standard Levels for Class A Equipment Expressed in Terms of Daily Energy Consumption (page 9-3)
C76: PC5 | D76: =OFFSET('Product Classes'!$C$9,MATCH(C76,'Product Classes'!$H$10:$H$15,0),0) -> Class B- Medium (BMIO)
C78: Model ELs | D78: Energy Level (kWh/day) | E78: Compliance Year | F78: Model Efficiency Levels
C79: EL0 | D79: 5.56 | F79: Market Baseline
C80: EL1 | D80: 5.2 | F80: Equivalent to Energy Star Tier 1
C81: EL2 | D81: 4.99
C82: EL3 | D82: 4.76 | E82: 2012 | F82: Equivalent to Energy Star Tier 2
C83: EL4 | D83: 4.72
C84: EL5 | D84: 4.22
C85: EL6 | D85: 4.12 | F85: Max tech
C87: Sources | D87: DOE Refrigerated Beverage Vending Machines 2009 Direct Final Rule, Technical Support Document Chapter 9, Table 9.2.1 Trial Standard Levels for Class A Equipment Expressed in Terms of Daily Energy Consumption (page 9-3)
C92: PC6 | D92: =OFFSET('Product Classes'!$C$9,MATCH(C92,'Product Classes'!$H$10:$H$15,0),0) -> Class B- Large (BLIO)
C94: Model ELs | D94: Energy Level (kWh/day) | E94: Compliance Year | F94: Model Efficiency Levels
C95: EL0 | D95: 5.85 | F95: Market Baseline
C96: EL1 | D96: 5.48 | F96: Equivalent to Energy Star Tier 1
C97: EL2 | D97: 5.33
C98: EL3 | D98: 5.07 | E98: 2012 | F98: Equivalent to Energy Star Tier 2
C99: EL4 | D99: 5.03
C100: EL5 | D100: 4.52
C101: EL6 | D101: 4.41 | F101: Max tech
C103: Sources | D103: DOE Refrigerated Beverage Vending Machines 2009 Direct Final Rule, Technical Support Document Chapter 9, Table 9.2.1 Trial Standard Levels for Class A Equipment Expressed in Terms of Daily Energy Consumption (page 9-3)

Sheet Equipment Specifications
C2: Equipment Specifications
C4: NAVIGATION
C6: COMMENTS
C9: Equipment Specifications
C11: Class A Equipment Class Specifications | D11: Small | E11: Medium | F11: Large
C12: Refrigerated Volume (ft3) | D12: 17 | E12: 22 | F12: 34
C13: 12 oz. Can Capacity (#) | D13: 300 | E13: 400 | F13: 500
C14: Average Refrigerated Volume Temperature (F) | D14: 36 | E14: 36 | F14: 36
C16: Class B Equipment Class Specifications | D16: Small | E16: Medium | F16: Large
C17: Refrigerated Volumen (ft3) | D17: 17 | E17: 22 | F17: 26
C18: 12 oz. Can Capacity (#) | D18: 450 | E18: 650 | F18: 800
C19: Average Refrigerated Volume Temperature (F) | D19: 39 | E19: 39 | F19: 39
C21: Source | D21: DOE Refrigerated Beverage Vending Machines 2009 Direct Final Rule, Technical Support Document Chapter 7, Table 7.2.1 Configurations of the Refrigerated Beverage Vending Machines Analyzed (page 7-2)
C25: UEC Calculation
C27: Equipment Class
C28: Class A | D28: 0.055 x V + 2.56
C29: Class B | D29: 0.073 x V + 3.16
C31: Source | D31: DOE Refrigerated Beverage Vending Machines 2009 Direct Final Rule, Section I, Table I.1
C35: Lifetime
C37: Beverage Vending Machine Lifetime | D37: =[1]Lifetimes!$D$11 -> 14
C39: Source | D39: DOE Refrigerated Beverage Vending Machines 2009, Direct Final Rule National Impact Analysis model

Sheet Constants and Menus
C2: Constants and Menus
C4: NAVIGATION
C6: COMMENTS
C9: Constant
C10: Hours/Day | D10: 24
C11: Days/Week | D11: 7
C12: Days/Year | D12: 365.25
C13: kW/MW | D13: 1000
C14: Compliance Year | D14: 2012
C18: Buidling Types Included in Analysis
D19: Building Type
D20: Large Off
D21: Medium Off
D22: Small Off
D23: Big Box
D24: Small Box
D25: High End
D26: Anchor
D27: K-12
D28: University
D29: Warehouse
D30: Supermarket
D31: MIniMart
D32: Restaurant
D33: Lodging
D34: Hospital
D35: OtherHealth
D36: Assembly
D37: Other
D38: TOTAL

Sheet Product Class Dist
C2: Product Class Distributions
C4: NAVIGATION
C6: COMMENTS
C9: PRE-Case | D9: 1990 | E9: =D9+1 -> 1991 | F9: =E9+1 -> 1992 | G9: 1993 | H9: 1994 | I9: 1995 | J9: 1996 | K9: 1997 | L9: 1998 | M9: 1999 | N9: 2000 | O9: 2001 | P9: 2002 | Q9: 2003 | R9: 2004 | S9: 2005 | T9: 2006 | U9: 2007 | V9: 2008 | W9: =V9+1 -> 2009 | X9: 2010 | Y9: 2011 | Z9: 2012 | AA9: 2013 | AB9: 2014 | AC9: 2015 | AD9: 2016 | AE9: 2017 | AF9: 2018 | AG9: 2019 | AH9: 2020 | AI9: 2021 | AJ9: 2022 | AK9: 2023 | AL9: 2024 | AM9: 2025 | AN9: 2026 | AO9: 2027 | AP9: 2028 | AQ9: 2029 | AR9: 2030 | AS9: 2031 | AT9: 2032 | AU9: 2033 | AV9: 2034
C10: ='Product Classes'!H10&" - "&OFFSET('Product Classes'!$C$9,MATCH('Product Classes'!H10,MODEL_PCS,0),0) -> PC1 - Class A- Small (ASIN) | D10: 0 | E10: 0 | F10: 0 | G10: 0 | H10: 0 | I10: 0 | J10: 0 | K10: 0 | L10: 0 | M10: 0 | N10: 0 | O10: 0 | P10: 0 | Q10: 0 | R10: 0 | S10: 0 | T10: 0 | U10: 0 | V10: 0 | W10: 0 | X10: 0 | Y10: 0 | Z10: 0 | AA10: 0 | AB10: 0 | AC10: 0 | AD10: 0 | AE10: 0 | AF10: 0 | AG10: 0 | AH10: 0 | AI10: 0 | AJ10: 0 | AK10: 0 | AL10: 0 | AM10: 0 | AN10: 0 | AO10: 0 | AP10: 0 | AQ10: 0 | AR10: 0 | AS10: 0 | AT10: 0 | AU10: 0 | AV10: 0
C11: ='Product Classes'!H11&" - "&OFFSET('Product Classes'!$C$9,MATCH('Product Classes'!H11,MODEL_PCS,0),0) -> PC2 - Class A- Medium (AMIN) | D11: 0.34 | E11: 0.34 | F11: 0.34 | G11: 0.34 | H11: 0.34 | I11: 0.34 | J11: 0.34 | K11: 0.34 | L11: 0.34 | M11: 0.34 | N11: 0.34 | O11: 0.34 | P11: 0.34 | Q11: 0.34 | R11: 0.34 | S11: 0.34 | T11: 0.34 | U11: 0.34 | V11: 0.34 | W11: 0.34 | X11: 0.34 | Y11: 0.34 | Z11: 0.34 | AA11: 0.34 | AB11: 0.34 | AC11: 0.34 | AD11: 0.34 | AE11: 0.34 | AF11: 0.34 | AG11: 0.34 | AH11: 0.34 | AI11: 0.34 | AJ11: 0.34 | AK11: 0.34 | AL11: 0.34 | AM11: 0.34 | AN11: 0.34 | AO11: 0.34 | AP11: 0.34 | AQ11: 0.34 | AR11: 0.34 | AS11: 0.34 | AT11: 0.34 | AU11: 0.34 | AV11: 0.34
C12: ='Product Classes'!H12&" - "&OFFSET('Product Classes'!$C$9,MATCH('Product Classes'!H12,MODEL_PCS,0),0) -> PC3 - Class A- Large (ALIN) | D12: 0.17 | E12: 0.17 | F12: 0.17 | G12: 0.17 | H12: 0.17 | I12: 0.17 | J12: 0.17 | K12: 0.17 | L12: 0.17 | M12: 0.17 | N12: 0.17 | O12: 0.17 | P12: 0.17 | Q12: 0.17 | R12: 0.17 | S12: 0.17 | T12: 0.17 | U12: 0.17 | V12: 0.17 | W12: 0.17 | X12: 0.17 | Y12: 0.17 | Z12: 0.17 | AA12: 0.17 | AB12: 0.17 | AC12: 0.17 | AD12: 0.17 | AE12: 0.17 | AF12: 0.17 | AG12: 0.17 | AH12: 0.17 | AI12: 0.17 | AJ12: 0.17 | AK12: 0.17 | AL12: 0.17 | AM12: 0.17 | AN12: 0.17 | AO12: 0.17 | AP12: 0.17 | AQ12: 0.17 | AR12: 0.17 | AS12: 0.17 | AT12: 0.17 | AU12: 0.17 | AV12: 0.17
C13: ='Product Classes'!H13&" - "&OFFSET('Product Classes'!$C$9,MATCH('Product Classes'!H13,MODEL_PCS,0),0) -> PC4 - Class B- Small (BSIO) | D13: 0 | E13: 0 | F13: 0 | G13: 0 | H13: 0 | I13: 0 | J13: 0 | K13: 0 | L13: 0 | M13: 0 | N13: 0 | O13: 0 | P13: 0 | Q13: 0 | R13: 0 | S13: 0 | T13: 0 | U13: 0 | V13: 0 | W13: 0 | X13: 0 | Y13: 0 | Z13: 0 | AA13: 0 | AB13: 0 | AC13: 0 | AD13: 0 | AE13: 0 | AF13: 0 | AG13: 0 | AH13: 0 | AI13: 0 | AJ13: 0 | AK13: 0 | AL13: 0 | AM13: 0 | AN13: 0 | AO13: 0 | AP13: 0 | AQ13: 0 | AR13: 0 | AS13: 0 | AT13: 0 | AU13: 0 | AV13: 0
C14: ='Product Classes'!H14&" - "&OFFSET('Product Classes'!$C$9,MATCH('Product Classes'!H14,MODEL_PCS,0),0) -> PC5 - Class B- Medium (BMIO) | D14: 0.34 | E14: 0.34 | F14: 0.34 | G14: 0.34 | H14: 0.34 | I14: 0.34 | J14: 0.34 | K14: 0.34 | L14: 0.34 | M14: 0.34 | N14: 0.34 | O14: 0.34 | P14: 0.34 | Q14: 0.34 | R14: 0.34 | S14: 0.34 | T14: 0.34 | U14: 0.34 | V14: 0.34 | W14: 0.34 | X14: 0.34 | Y14: 0.34 | Z14: 0.34 | AA14: 0.34 | AB14: 0.34 | AC14: 0.34 | AD14: 0.34 | AE14: 0.34 | AF14: 0.34 | AG14: 0.34 | AH14: 0.34 | AI14: 0.34 | AJ14: 0.34 | AK14: 0.34 | AL14: 0.34 | AM14: 0.34 | AN14: 0.34 | AO14: 0.34 | AP14: 0.34 | AQ14: 0.34 | AR14: 0.34 | AS14: 0.34 | AT14: 0.34 | AU14: 0.34 | AV14: 0.34
C15: ='Product Classes'!H15&" - "&OFFSET('Product Classes'!$C$9,MATCH('Product Classes'!H15,MODEL_PCS,0),0) -> PC6 - Class B- Large (BLIO) | D15: 0.17 | E15: 0.17 | F15: 0.17 | G15: 0.17 | H15: 0.17 | I15: 0.17 | J15: 0.17 | K15: 0.17 | L15: 0.17 | M15: 0.17 | N15: 0.17 | O15: 0.17 | P15: 0.17 | Q15: 0.17 | R15: 0.17 | S15: 0.17 | T15: 0.17 | U15: 0.17 | V15: 0.17 | W15: 0.17 | X15: 0.17 | Y15: 0.17 | Z15: 0.17 | AA15: 0.17 | AB15: 0.17 | AC15: 0.17 | AD15: 0.17 | AE15: 0.17 | AF15: 0.17 | AG15: 0.17 | AH15: 0.17 | AI15: 0.17 | AJ15: 0.17 | AK15: 0.17 | AL15: 0.17 | AM15: 0.17 | AN15: 0.17 | AO15: 0.17 | AP15: 0.17 | AQ15: 0.17 | AR15: 0.17 | AS15: 0.17 | AT15: 0.17 | AU15: 0.17 | AV15: 0.17
C17: POST-Case | D17: 1990 | E17: =D17+1 -> 1991 | F17: =E17+1 -> 1992 | G17: =F17+1 -> 1993 | H17: =G17+1 -> 1994 | I17: =H17+1 -> 1995 | J17: =I17+1 -> 1996 | K17: =J17+1 -> 1997 | L17: =K17+1 -> 1998 | M17: =L17+1 -> 1999 | N17: =M17+1 -> 2000 | O17: =N17+1 -> 2001 | P17: =O17+1 -> 2002 | Q17: =P17+1 -> 2003 | R17: =Q17+1 -> 2004 | S17: =R17+1 -> 2005 | T17: =S17+1 -> 2006 | U17: =T17+1 -> 2007 | V17: =U17+1 -> 2008 | W17: =V17+1 -> 2009 | X17: =W17+1 -> 2010 | Y17: =X17+1 -> 2011 | Z17: =Y17+1 -> 2012 | AA17: =Z17+1 -> 2013 | AB17: =AA17+1 -> 2014 | AC17: =AB17+1 -> 2015 | AD17: =AC17+1 -> 2016 | AE17: =AD17+1 -> 2017 | AF17: =AE17+1 -> 2018 | AG17: =AF17+1 -> 2019 | AH17: =AG17+1 -> 2020 | AI17: =AH17+1 -> 2021 | AJ17: =AI17+1 -> 2022 | AK17: =AJ17+1 -> 2023 | AL17: =AK17+1 -> 2024 | AM17: =AL17+1 -> 2025 | AN17: =AM17+1 -> 2026 | AO17: =AN17+1 -> 2027 | AP17: =AO17+1 -> 2028 | AQ17: =AP17+1 -> 2029 | AR17: =AQ17+1 -> 2030 | AS17: =AR17+1 -> 2031 | AT17: =AS17+1 -> 2032 | AU17: =AT17+1 -> 2033 | AV17: =AU17+1 -> 2034
C18: ='Product Classes'!H10&" - "&OFFSET('Product Classes'!$C$9,MATCH('Product Classes'!H10,MODEL_PCS,0),0) -> PC1 - Class A- Small (ASIN) | D18: 0 | E18: 0 | F18: 0 | G18: 0 | H18: 0 | I18: 0 | J18: 0 | K18: 0 | L18: 0 | M18: 0 | N18: 0 | O18: 0 | P18: 0 | Q18: 0 | R18: 0 | S18: 0 | T18: 0 | U18: 0 | V18: 0 | W18: 0 | X18: 0 | Y18: 0 | Z18: 0 | AA18: 0 | AB18: 0 | AC18: 0 | AD18: 0 | AE18: 0 | AF18: 0 | AG18: 0 | AH18: 0 | AI18: 0 | AJ18: 0 | AK18: 0 | AL18: 0 | AM18: 0 | AN18: 0 | AO18: 0 | AP18: 0 | AQ18: 0 | AR18: 0 | AS18: 0 | AT18: 0 | AU18: 0 | AV18: 0
C19: ='Product Classes'!H11&" - "&OFFSET('Product Classes'!$C$9,MATCH('Product Classes'!H11,MODEL_PCS,0),0) -> PC2 - Class A- Medium (AMIN) | D19: 0.34 | E19: 0.34 | F19: 0.34 | G19: 0.34 | H19: 0.34 | I19: 0.34 | J19: 0.34 | K19: 0.34 | L19: 0.34 | M19: 0.34 | N19: 0.34 | O19: 0.34 | P19: 0.34 | Q19: 0.34 | R19: 0.34 | S19: 0.34 | T19: 0.34 | U19: 0.34 | V19: 0.34 | W19: 0.34 | X19: 0.34 | Y19: 0.34 | Z19: 0.34 | AA19: 0.34 | AB19: 0.34 | AC19: 0.34 | AD19: 0.34 | AE19: 0.34 | AF19: 0.34 | AG19: 0.34 | AH19: 0.34 | AI19: 0.34 | AJ19: 0.34 | AK19: 0.34 | AL19: 0.34 | AM19: 0.34 | AN19: 0.34 | AO19: 0.34 | AP19: 0.34 | AQ19: 0.34 | AR19: 0.34 | AS19: 0.34 | AT19: 0.34 | AU19: 0.34 | AV19: 0.34
C20: ='Product Classes'!H12&" - "&OFFSET('Product Classes'!$C$9,MATCH('Product Classes'!H12,MODEL_PCS,0),0) -> PC3 - Class A- Large (ALIN) | D20: 0.17 | E20: 0.17 | F20: 0.17 | G20: 0.17 | H20: 0.17 | I20: 0.17 | J20: 0.17 | K20: 0.17 | L20: 0.17 | M20: 0.17 | N20: 0.17 | O20: 0.17 | P20: 0.17 | Q20: 0.17 | R20: 0.17 | S20: 0.17 | T20: 0.17 | U20: 0.17 | V20: 0.17 | W20: 0.17 | X20: 0.17 | Y20: 0.17 | Z20: 0.17 | AA20: 0.17 | AB20: 0.17 | AC20: 0.17 | AD20: 0.17 | AE20: 0.17 | AF20: 0.17 | AG20: 0.17 | AH20: 0.17 | AI20: 0.17 | AJ20: 0.17 | AK20: 0.17 | AL20: 0.17 | AM20: 0.17 | AN20: 0.17 | AO20: 0.17 | AP20: 0.17 | AQ20: 0.17 | AR20: 0.17 | AS20: 0.17 | AT20: 0.17 | AU20: 0.17 | AV20: 0.17
C21: ='Product Classes'!H13&" - "&OFFSET('Product Classes'!$C$9,MATCH('Product Classes'!H13,MODEL_PCS,0),0) -> PC4 - Class B- Small (BSIO) | D21: 0 | E21: 0 | F21: 0 | G21: 0 | H21: 0 | I21: 0 | J21: 0 | K21: 0 | L21: 0 | M21: 0 | N21: 0 | O21: 0 | P21: 0 | Q21: 0 | R21: 0 | S21: 0 | T21: 0 | U21: 0 | V21: 0 | W21: 0 | X21: 0 | Y21: 0 | Z21: 0 | AA21: 0 | AB21: 0 | AC21: 0 | AD21: 0 | AE21: 0 | AF21: 0 | AG21: 0 | AH21: 0 | AI21: 0 | AJ21: 0 | AK21: 0 | AL21: 0 | AM21: 0 | AN21: 0 | AO21: 0 | AP21: 0 | AQ21: 0 | AR21: 0 | AS21: 0 | AT21: 0 | AU21: 0 | AV21: 0
C22: ='Product Classes'!H14&" - "&OFFSET('Product Classes'!$C$9,MATCH('Product Classes'!H14,MODEL_PCS,0),0) -> PC5 - Class B- Medium (BMIO) | D22: 0.34 | E22: 0.34 | F22: 0.34 | G22: 0.34 | H22: 0.34 | I22: 0.34 | J22: 0.34 | K22: 0.34 | L22: 0.34 | M22: 0.34 | N22: 0.34 | O22: 0.34 | P22: 0.34 | Q22: 0.34 | R22: 0.34 | S22: 0.34 | T22: 0.34 | U22: 0.34 | V22: 0.34 | W22: 0.34 | X22: 0.34 | Y22: 0.34 | Z22: 0.34 | AA22: 0.34 | AB22: 0.34 | AC22: 0.34 | AD22: 0.34 | AE22: 0.34 | AF22: 0.34 | AG22: 0.34 | AH22: 0.34 | AI22: 0.34 | AJ22: 0.34 | AK22: 0.34 | AL22: 0.34 | AM22: 0.34 | AN22: 0.34 | AO22: 0.34 | AP22: 0.34 | AQ22: 0.34 | AR22: 0.34 | AS22: 0.34 | AT22: 0.34 | AU22: 0.34 | AV22: 0.34
C23: ='Product Classes'!H15&" - "&OFFSET('Product Classes'!$C$9,MATCH('Product Classes'!H15,MODEL_PCS,0),0) -> PC6 - Class B- Large (BLIO) | D23: 0.17 | E23: 0.17 | F23: 0.17 | G23: 0.17 | H23: 0.17 | I23: 0.17 | J23: 0.17 | K23: 0.17 | L23: 0.17 | M23: 0.17 | N23: 0.17 | O23: 0.17 | P23: 0.17 | Q23: 0.17 | R23: 0.17 | S23: 0.17 | T23: 0.17 | U23: 0.17 | V23: 0.17 | W23: 0.17 | X23: 0.17 | Y23: 0.17 | Z23: 0.17 | AA23: 0.17 | AB23: 0.17 | AC23: 0.17 | AD23: 0.17 | AE23: 0.17 | AF23: 0.17 | AG23: 0.17 | AH23: 0.17 | AI23: 0.17 | AJ23: 0.17 | AK23: 0.17 | AL23: 0.17 | AM23: 0.17 | AN23: 0.17 | AO23: 0.17 | AP23: 0.17 | AQ23: 0.17 | AR23: 0.17 | AS23: 0.17 | AT23: 0.17 | AU23: 0.17 | AV23: 0.17
C25: Source/Rationale | D25: DOE Refrigerated Beverage Vending Machines 2009 Direct Final Rule, GRIM, 'BVM Shipments' tab, no switching

Sheet Efficiency Dist
C2: Efficiency Distributions by Product Class - Single Family
C4: =Navigation!$C$15 -> NAVIGATION
C6: COMMENTS
D9: ='Product Classes'!H10&" - "&OFFSET('Product Classes'!$C$9,MATCH('Product Classes'!H10,MODEL_PCS,0),0) -> PC1 - Class A- Small (ASIN)
D11: PRE-Case | F11: Static Distribution
D12: Efficiency Level | E12: EL (kWh/day) | F12: 2006 | H12: 1990 | I12: =H12+1 -> 1991 | J12: =I12+1 -> 1992 | K12: 1993 | L12: 1994 | M12: 1995 | N12: 1996 | O12: 1997 | P12: 1998 | Q12: 1999 | R12: 2000 | S12: 2001 | T12: 2002 | U12: 2003 | V12: 2004 | W12: 2005 | X12: 2006 | Y12: 2007 | Z12: 2008 | AA12: 2009 | AB12: 2010 | AC12: 2011 | AD12: 2012 | AE12: 2013 | AF12: 2014 | AG12: 2015 | AH12: 2016 | AI12: 2017 | AJ12: 2018 | AK12: 2019 | AL12: 2020 | AM12: 2021 | AN12: 2022 | AO12: 2023 | AP12: 2024 | AQ12: 2025 | AR12: 2026 | AS12: 2027 | AT12: 2028 | AU12: 2029 | AV12: 2030 | AW12: 2031 | AX12: 2032 | AY12: 2033 | AZ12: 2034
D13: ='Efficiency Levels'!C12 -> EL0 | E13: ='Efficiency Levels'!D12 -> 6.1 | F13: 0.1 | H13: =$F13 -> 0.1 | I13: =$F13 -> 0.1 | J13: 0.1 | K13: 0.1 | L13: 0.1 | M13: 0.1 | N13: 0.1 | O13: 0.1 | P13: 0.1 | Q13: 0.1 | R13: 0.1 | S13: 0.1 | T13: 0.1 | U13: 0.1 | V13: 0.1 | W13: 0.1 | X13: 0.1 | Y13: 0.1 | Z13: 0.1 | AA13: 0.1 | AB13: 0.1 | AC13: 0.1 | AD13: 0 | AE13: 0 | AF13: 0 | AG13: 0 | AH13: 0 | AI13: 0 | AJ13: 0 | AK13: 0 | AL13: 0 | AM13: 0 | AN13: 0 | AO13: 0 | AP13: 0 | AQ13: 0 | AR13: 0 | AS13: 0 | AT13: 0 | AU13: 0 | AV13: 0 | AW13: 0 | AX13: 0 | AY13: 0 | AZ13: 0
D14: ='Efficiency Levels'!C13 -> EL1 | E14: ='Efficiency Levels'!D13 -> 5.27 | F14: 0.9 | H14: =$F14 -> 0.9 | I14: 0.9 | J14: 0.9 | K14: 0.9 | L14: 0.9 | M14: 0.9 | N14: 0.9 | O14: 0.9 | P14: 0.9 | Q14: 0.9 | R14: 0.9 | S14: 0.9 | T14: 0.9 | U14: 0.9 | V14: 0.9 | W14: 0.9 | X14: 0.9 | Y14: 0.9 | Z14: 0.9 | AA14: 0.9 | AB14: 0.9 | AC14: 0.9 | AD14: 0 | AE14: 0 | AF14: 0 | AG14: 0 | AH14: 0 | AI14: 0 | AJ14: 0 | AK14: 0 | AL14: 0 | AM14: 0 | AN14: 0 | AO14: 0 | AP14: 0 | AQ14: 0 | AR14: 0 | AS14: 0 | AT14: 0 | AU14: 0 | AV14: 0 | AW14: 0 | AX14: 0 | AY14: 0 | AZ14: 0
D15: ='Efficiency Levels'!C14 -> EL2 | E15: ='Efficiency Levels'!D14 -> 4.75 | F15: 0 | H15: 0 | I15: 0 | J15: 0 | K15: 0 | L15: 0 | M15: 0 | N15: 0 | O15: 0 | P15: 0 | Q15: 0 | R15: 0 | S15: 0 | T15: 0 | U15: 0 | V15: 0 | W15: 0 | X15: 0 | Y15: 0 | Z15: 0 | AA15: 0 | AB15: 0 | AC15: 0 | AD15: 0 | AE15: 0 | AF15: 0 | AG15: 0 | AH15: 0 | AI15: 0 | AJ15: 0 | AK15: 0 | AL15: 0 | AM15: 0 | AN15: 0 | AO15: 0 | AP15: 0 | AQ15: 0 | AR15: 0 | AS15: 0 | AT15: 0 | AU15: 0 | AV15: 0 | AW15: 0 | AX15: 0 | AY15: 0 | AZ15: 0
D16: ='Efficiency Levels'!C15 -> EL3 | E16: ='Efficiency Levels'!D15 -> 4.25 | F16: 0 | H16: 0 | I16: 0 | J16: 0 | K16: 0 | L16: 0 | M16: 0 | N16: 0 | O16: 0 | P16: 0 | Q16: 0 | R16: 0 | S16: 0 | T16: 0 | U16: 0 | V16: 0 | W16: 0 | X16: 0 | Y16: 0 | Z16: 0 | AA16: 0 | AB16: 0 | AC16: 0 | AD16: 0 | AE16: 0 | AF16: 0 | AG16: 0 | AH16: 0 | AI16: 0 | AJ16: 0 | AK16: 0 | AL16: 0 | AM16: 0 | AN16: 0 | AO16: 0 | AP16: 0 | AQ16: 0 | AR16: 0 | AS16: 0 | AT16: 0 | AU16: 0 | AV16: 0 | AW16: 0 | AX16: 0 | AY16: 0 | AZ16: 0
D17: ='Efficiency Levels'!C16 -> EL4 | E17: ='Efficiency Levels'!D16 -> 3.95 | F17: 0 | H17: 0 | I17: 0 | J17: 0 | K17: 0 | L17: 0 | M17: 0 | N17: 0 | O17: 0 | P17: 0 | Q17: 0 | R17: 0 | S17: 0 | T17: 0 | U17: 0 | V17: 0 | W17: 0 | X17: 0 | Y17: 0 | Z17: 0 | AA17: 0 | AB17: 0 | AC17: 0 | AD17: 0 | AE17: 0 | AF17: 0 | AG17: 0 | AH17: 0 | AI17: 0 | AJ17: 0 | AK17: 0 | AL17: 0 | AM17: 0 | AN17: 0 | AO17: 0 | AP17: 0 | AQ17: 0 | AR17: 0 | AS17: 0 | AT17: 0 | AU17: 0 | AV17: 0 | AW17: 0 | AX17: 0 | AY17: 0 | AZ17: 0
D18: ='Efficiency Levels'!C17 -> EL5 | E18: ='Efficiency Levels'!D17 -> 3.73 | F18: 0 | H18: 0 | I18: 0 | J18: 0 | K18: 0 | L18: 0 | M18: 0 | N18: 0 | O18: 0 | P18: 0 | Q18: 0 | R18: 0 | S18: 0 | T18: 0 | U18: 0 | V18: 0 | W18: 0 | X18: 0 | Y18: 0 | Z18: 0 | AA18: 0 | AB18: 0 | AC18: 0 | AD18: 0 | AE18: 0 | AF18: 0 | AG18: 0 | AH18: 0 | AI18: 0 | AJ18: 0 | AK18: 0 | AL18: 0 | AM18: 0 | AN18: 0 | AO18: 0 | AP18: 0 | AQ18: 0 | AR18: 0 | AS18: 0 | AT18: 0 | AU18: 0 | AV18: 0 | AW18: 0 | AX18: 0 | AY18: 0 | AZ18: 0
D19: ='Efficiency Levels'!C18 -> EL6 | E19: ='Efficiency Levels'!D18 -> 3.58 | F19: 0 | H19: 0 | I19: 0 | J19: 0 | K19: 0 | L19: 0 | M19: 0 | N19: 0 | O19: =$F19 -> 0 | P19: 0 | Q19: 0 | R19: 0 | S19: 0 | T19: 0 | U19: 0 | V19: 0 | W19: 0 | X19: 0 | Y19: 0 | Z19: 0 | AA19: 0 | AB19: 0 | AC19: 0 | AD19: 1 | AE19: 1 | AF19: 1 | AG19: 1 | AH19: 1 | AI19: 1 | AJ19: 1 | AK19: 1 | AL19: 1 | AM19: 1 | AN19: 1 | AO19: 1 | AP19: 1 | AQ19: 1 | AR19: 1 | AS19: 1 | AT19: 1 | AU19: 1 | AV19: 1 | AW19: 1 | AX19: 1 | AY19: 1 | AZ19: 1
D20: ='Efficiency Levels'!C19 -> EL7 | E20: ='Efficiency Levels'!D19 -> 3.25 | F20: 0 | H20: 0 | I20: 0 | J20: 0 | K20: 0 | L20: 0 | M20: 0 | N20: 0 | O20: 0 | P20: 0 | Q20: 0 | R20: 0 | S20: 0 | T20: 0 | U20: 0 | V20: 0 | W20: 0 | X20: 0 | Y20: 0 | Z20: 0 | AA20: 0 | AB20: 0 | AC20: 0 | AD20: 0 | AE20: 0 | AF20: 0 | AG20: 0 | AH20: 0 | AI20: 0 | AJ20: 0 | AK20: 0 | AL20: 0 | AM20: 0 | AN20: 0 | AO20: 0 | AP20: 0 | AQ20: 0 | AR20: 0 | AS20: 0 | AT20: 0 | AU20: 0 | AV20: 0 | AW20: 0 | AX20: 0 | AY20: 0 | AZ20: 0
D21: TOTAL | F21: =SUM(F13:F20) -> 1 | H21: =SUM(H13:H20) -> 1 | I21: 1 | J21: 1 | K21: 1 | L21: 1 | M21: 1 | N21: 1 | O21: 1 | P21: 1 | Q21: 1 | R21: 1 | S21: 1 | T21: 1 | U21: 1 | V21: 1 | W21: 1 | X21: 1 | Y21: 1 | Z21: 1 | AA21: 1 | AB21: 1 | AC21: 1 | AD21: 1 | AE21: 1 | AF21: 1 | AG21: 1 | AH21: 1 | AI21: 1 | AJ21: 1 | AK21: 1 | AL21: 1 | AM21: 1 | AN21: 1 | AO21: 1 | AP21: 1 | AQ21: 1 | AR21: 1 | AS21: 1 | AT21: 1 | AU21: 1 | AV21: 1 | AW21: 1 | AX21: 1 | AY21: 1 | AZ21: 1
D23: POST-Case
D24: Efficiency Level | E24: EL (kWh/day) | H24: 1990 | I24: =H24+1 -> 1991 | J24: =I24+1 -> 1992 | K24: 1993 | L24: 1994 | M24: 1995 | N24: 1996 | O24: 1997 | P24: 1998 | Q24: 1999 | R24: 2000 | S24: 2001 | T24: 2002 | U24: 2003 | V24: 2004 | W24: 2005 | X24: =X12 -> 2006 | Y24: 2007 | Z24: 2008 | AA24: 2009 | AB24: 2010 | AC24: 2011 | AD24: 2012 | AE24: 2013 | AF24: 2014 | AG24: 2015 | AH24: 2016 | AI24: 2017 | AJ24: 2018 | AK24: 2019 | AL24: 2020 | AM24: 2021 | AN24: 2022 | AO24: 2023 | AP24: 2024 | AQ24: 2025 | AR24: 2026 | AS24: 2027 | AT24: 2028 | AU24: 2029 | AV24: 2030 | AW24: 2031 | AX24: 2032 | AY24: 2033 | AZ24: 2034
D25: ='Efficiency Levels'!C12 -> EL0 | E25: ='Efficiency Levels'!D12 -> 6.1 | H25: =H13 -> 0.1 | I25: 0.1 | J25: 0.1 | K25: 0.1 | L25: 0.1 | M25: 0.1 | N25: 0.1 | O25: 0.1 | P25: 0.1 | Q25: 0.1 | R25: 0.1 | S25: 0.1 | T25: 0.1 | U25: 0.1 | V25: 0.1 | W25: 0.1 | X25: 0.1 | Y25: 0.1 | Z25: 0.1 | AA25: 0.1 | AB25: 0.1 | AC25: =AC13 -> 0.1 | AD25: 0 | AE25: 0 | AF25: 0 | AG25: 0 | AH25: 0 | AI25: 0 | AJ25: 0 | AK25: 0 | AL25: 0 | AM25: 0 | AN25: 0 | AO25: 0 | AP25: 0 | AQ25: 0 | AR25: 0 | AS25: 0 | AT25: 0 | AU25: 0 | AV25: 0 | AW25: 0 | AX25: 0 | AY25: 0 | AZ25: 0
D26: ='Efficiency Levels'!C13 -> EL1 | E26: ='Efficiency Levels'!D13 -> 5.27 | H26: =H14 -> 0.9 | I26: 0.9 | J26: 0.9 | K26: 0.9 | L26: 0.9 | M26: 0.9 | N26: 0.9 | O26: 0.9 | P26: 0.9 | Q26: 0.9 | R26: 0.9 | S26: 0.9 | T26: 0.9 | U26: 0.9 | V26: 0.9 | W26: 0.9 | X26: 0.9 | Y26: 0.9 | Z26: 0.9 | AA26: 0.9 | AB26: 0.9 | AC26: =AC14 -> 0.9 | AD26: 0 | AE26: 0 | AF26: 0 | AG26: 0 | AH26: 0 | AI26: 0 | AJ26: 0 | AK26: 0 | AL26: 0 | AM26: 0 | AN26: 0 | AO26: 0 | AP26: 0 | AQ26: 0 | AR26: 0 | AS26: 0 | AT26: 0 | AU26: 0 | AV26: 0 | AW26: 0 | AX26: 0 | AY26: 0 | AZ26: 0
D27: ='Efficiency Levels'!C14 -> EL2 | E27: ='Efficiency Levels'!D14 -> 4.75 | H27: =H15 -> 0 | I27: 0 | J27: 0 | K27: 0 | L27: 0 | M27: 0 | N27: 0 | O27: 0 | P27: 0 | Q27: 0 | R27: 0 | S27: 0 | T27: 0 | U27: 0 | V27: 0 | W27: 0 | X27: 0 | Y27: 0 | Z27: 0 | AA27: 0 | AB27: 0 | AC27: =AC15 -> 0 | AD27: 0 | AE27: 0 | AF27: 0 | AG27: 0 | AH27: 0 | AI27: 0 | AJ27: 0 | AK27: 0 | AL27: 0 | AM27: 0 | AN27: 0 | AO27: 0 | AP27: 0 | AQ27: 0 | AR27: 0 | AS27: 0 | AT27: 0 | AU27: 0 | AV27: 0 | AW27: 0 | AX27: 0 | AY27: 0 | AZ27: 0
D28: ='Efficiency Levels'!C15 -> EL3 | E28: ='Efficiency Levels'!D15 -> 4.25 | H28: =H17 -> 0 | I28: 0 | J28: 0 | K28: 0 | L28: 0 | M28: 0 | N28: 0 | O28: 0 | P28: 0 | Q28: 0 | R28: 0 | S28: 0 | T28: 0 | U28: 0 | V28: 0 | W28: 0 | X28: 0 | Y28: 0 | Z28: 0 | AA28: 0 | AB28: 0 | AC28: =AC17 -> 0 | AD28: 0 | AE28: =AE17 -> 0 | AF28: 0 | AG28: 0 | AH28: 0 | AI28: 0 | AJ28: 0 | AK28: 0 | AL28: 0 | AM28: 0 | AN28: 0 | AO28: 0 | AP28: 0 | AQ28: 0 | AR28: 0 | AS28: 0 | AT28: 0 | AU28: 0 | AV28: 0 | AW28: 0 | AX28: 0 | AY28: 0 | AZ28: 0
D29: ='Efficiency Levels'!C16 -> EL4 | E29: ='Efficiency Levels'!D16 -> 3.95 | H29: 0 | I29: 0 | J29: 0 | K29: 0 | L29: 0 | M29: 0 | N29: 0 | O29: 0 | P29: 0 | Q29: 0 | R29: 0 | S29: 0 | T29: 0 | U29: 0 | V29: 0 | W29: 0 | X29: 0 | Y29: 0 | Z29: 0 | AA29: 0 | AB29: 0 | AC29: 0 | AD29: 0 | AE29: 0 | AF29: 0 | AG29: 0 | AH29: 0 | AI29: 0 | AJ29: 0 | AK29: 0 | AL29: 0 | AM29: 0 | AN29: 0 | AO29: 0 | AP29: 0 | AQ29: 0 | AR29: 0 | AS29: 0 | AT29: 0 | AU29: 0 | AV29: 0 | AW29: 0 | AX29: 0 | AY29: 0 | AZ29: 0
D30: ='Efficiency Levels'!C17 -> EL5 | E30: ='Efficiency Levels'!D17 -> 3.73 | H30: =H18 -> 0 | I30: 0 | J30: 0 | K30: 0 | L30: 0 | M30: 0 | N30: 0 | O30: 0 | P30: 0 | Q30: 0 | R30: 0 | S30: 0 | T30: 0 | U30: 0 | V30: 0 | W30: 0 | X30: 0 | Y30: 0 | Z30: 0 | AA30: 0 | AB30: 0 | AC30: =AC18 -> 0 | AD30: =AD18 -> 0 | AE30: 0 | AF30: 0 | AG30: 0 | AH30: 0 | AI30: 0 | AJ30: 0 | AK30: 0 | AL30: 0 | AM30: 0 | AN30: 0 | AO30: 0 | AP30: 0 | AQ30: 0 | AR30: 0 | AS30: 0 | AT30: 0 | AU30: 0 | AV30: 0 | AW30: 0 | AX30: 0 | AY30: 0 | AZ30: 0
D31: ='Efficiency Levels'!C18 -> EL6 | E31: ='Efficiency Levels'!D18 -> 3.58 | H31: =H19 -> 0 | I31: 0 | J31: 0 | K31: 0 | L31: 0 | M31: 0 | N31: 0 | O31: 0 | P31: 0 | Q31: 0 | R31: 0 | S31: 0 | T31: 0 | U31: 0 | V31: 0 | W31: 0 | X31: 0 | Y31: 0 | Z31: 0 | AA31: 0 | AB31: 0 | AC31: =AC19 -> 0 | AD31: 1 | AE31: 1 | AF31: 1 | AG31: 1 | AH31: 1 | AI31: 1 | AJ31: 1 | AK31: 1 | AL31: 1 | AM31: 1 | AN31: 1 | AO31: 1 | AP31: 1 | AQ31: 1 | AR31: 1 | AS31: 1 | AT31: 1 | AU31: 1 | AV31: 1 | AW31: 1 | AX31: 1 | AY31: 1 | AZ31: 1
D32: ='Efficiency Levels'!C19 -> EL7 | E32: ='Efficiency Levels'!D19 -> 3.25 | H32: =H20 -> 0 | I32: 0 | J32: 0 | K32: 0 | L32: 0 | M32: 0 | N32: 0 | O32: 0 | P32: 0 | Q32: 0 | R32: 0 | S32: 0 | T32: 0 | U32: 0 | V32: 0 | W32: 0 | X32: 0 | Y32: 0 | Z32: 0 | AA32: 0 | AB32: 0 | AC32: =AC20 -> 0 | AD32: =AD20 -> 0 | AE32: 0 | AF32: 0 | AG32: 0 | AH32: 0 | AI32: 0 | AJ32: 0 | AK32: 0 | AL32: 0 | AM32: 0 | AN32: 0 | AO32: 0 | AP32: 0 | AQ32: 0 | AR32: 0 | AS32: 0 | AT32: 0 | AU32: 0 | AV32: 0 | AW32: 0 | AX32: 0 | AY32: 0 | AZ32: 0
D33: TOTAL | H33: =SUM(H25:H32) -> 1 | I33: =SUM(I25:I32) -> 1 | J33: =SUM(J25:J32) -> 1 | K33: =SUM(K25:K32) -> 1 | L33: =SUM(L25:L32) -> 1 | M33: =SUM(M25:M32) -> 1 | N33: =SUM(N25:N32) -> 1 | O33: =SUM(O25:O32) -> 1 | P33: =SUM(P25:P32) -> 1 | Q33: =SUM(Q25:Q32) -> 1 | R33: =SUM(R25:R32) -> 1 | S33: =SUM(S25:S32) -> 1 | T33: =SUM(T25:T32) -> 1 | U33: =SUM(U25:U32) -> 1 | V33: =SUM(V25:V32) -> 1 | W33: =SUM(W25:W32) -> 1 | X33: =SUM(X25:X32) -> 1 | Y33: =SUM(Y25:Y32) -> 1 | Z33: =SUM(Z25:Z32) -> 1 | AA33: =SUM(AA25:AA32) -> 1 | AB33: =SUM(AB25:AB32) -> 1 | AC33: =SUM(AC25:AC32) -> 1 | AD33: =SUM(AD25:AD32) -> 1 | AE33: =SUM(AE25:AE32) -> 1 | AF33: =SUM(AF25:AF32) -> 1 | AG33: =SUM(AG25:AG32) -> 1 | AH33: =SUM(AH25:AH32) -> 1 | AI33: =SUM(AI25:AI32) -> 1 | AJ33: =SUM(AJ25:AJ32) -> 1 | AK33: =SUM(AK25:AK32) -> 1 | AL33: =SUM(AL25:AL32) -> 1 | AM33: =SUM(AM25:AM32) -> 1 | AN33: =SUM(AN25:AN32) -> 1 | AO33: =SUM(AO25:AO32) -> 1 | AP33: =SUM(AP25:AP32) -> 1 | AQ33: =SUM(AQ25:AQ32) -> 1 | AR33: =SUM(AR25:AR32) -> 1 | AS33: =SUM(AS25:AS32) -> 1 | AT33: =SUM(AT25:AT32) -> 1 | AU33: =SUM(AU25:AU32) -> 1 | AV33: =SUM(AV25:AV32) -> 1 | AW33: =SUM(AW25:AW32) -> 1 | AX33: =SUM(AX25:AX32) -> 1 | AY33: =SUM(AY25:AY32) -> 1 | AZ33: =SUM(AZ25:AZ32) -> 1
D35: Sources | E35: 1. DOE Refrigerated Beverage Vending Machines 2009 Direct Final Rule, Technical Support Document Chapter 13, Table 13.4.8 Distribution of Small-Sized Class A Equipment in 2012 at Each Trial Standard Level (page 13-12)
E36: 2. DOE Refrigerated Beverage Vending Machines 2009 Direct Final Rule GRIM, (based on NIA data from 2009 BVM Final Rule)
D40: ='Product Classes'!H11&" - "&OFFSET('Product Classes'!$C$9,MATCH('Product Classes'!H11,MODEL_PCS,0),0) -> PC2 - Class A- Medium (AMIN)
D42: PRE-Case | F42: Static Distribution
D43: Efficiency Level | E43: EL (kWh/day) | F43: 2006 | H43: 1990 | I43: =H43+1 -> 1991 | J43: =I43+1 -> 1992 | K43: =J43+1 -> 1993 | L43: =K43+1 -> 1994 | M43: =L43+1 -> 1995 | N43: =M43+1 -> 1996 | O43: =N43+1 -> 1997 | P43: =O43+1 -> 1998 | Q43: =P43+1 -> 1999 | R43: =Q43+1 -> 2000 | S43: =R43+1 -> 2001 | T43: =S43+1 -> 2002 | U43: =T43+1 -> 2003 | V43: =U43+1 -> 2004 | W43: =V43+1 -> 2005 | X43: =W43+1 -> 2006 | Y43: =X43+1 -> 2007 | Z43: =Y43+1 -> 2008 | AA43: =Z43+1 -> 2009 | AB43: =AA43+1 -> 2010 | AC43: =AB43+1 -> 2011 | AD43: =AC43+1 -> 2012 | AE43: =AD43+1 -> 2013 | AF43: =AE43+1 -> 2014 | AG43: =AF43+1 -> 2015 | AH43: =AG43+1 -> 2016 | AI43: =AH43+1 -> 2017 | AJ43: =AI43+1 -> 2018 | AK43: =AJ43+1 -> 2019 | AL43: =AK43+1 -> 2020 | AM43: =AL43+1 -> 2021 | AN43: =AM43+1 -> 2022 | AO43: =AN43+1 -> 2023 | AP43: =AO43+1 -> 2024 | AQ43: =AP43+1 -> 2025 | AR43: =AQ43+1 -> 2026 | AS43: =AR43+1 -> 2027 | AT43: =AS43+1 -> 2028 | AU43: =AT43+1 -> 2029 | AV43: =AU43+1 -> 2030 | AW43: =AV43+1 -> 2031 | AX43: =AW43+1 -> 2032 | AY43: =AX43+1 -> 2033 | AZ43: =AY43+1 -> 2034
D44: ='Efficiency Levels'!C29 -> EL0 | E44: ='Efficiency Levels'!D29 -> 6.53 | F44: 0.1 | H44: =$F44 -> 0.1 | I44: =$F44 -> 0.1 | J44: 0.1 | K44: 0.1 | L44: 0.1 | M44: 0.1 | N44: 0.1 | O44: 0.1 | P44: 0.1 | Q44: 0.1 | R44: 0.1 | S44: 0.1 | T44: 0.1 | U44: 0.1 | V44: 0.1 | W44: 0.1 | X44: 0.1 | Y44: 0.1 | Z44: 0.1 | AA44: 0.1 | AB44: 0.1 | AC44: 0.1 | AD44: 0 | AE44: 0 | AF44: 0 | AG44: 0 | AH44: 0 | AI44: 0 | AJ44: 0 | AK44: 0 | AL44: 0 | AM44: 0 | AN44: 0 | AO44: 0 | AP44: 0 | AQ44: 0 | AR44: 0 | AS44: 0 | AT44: 0 | AU44: 0 | AV44: 0 | AW44: 0 | AX44: 0 | AY44: 0 | AZ44: 0
D45: ='Efficiency Levels'!C30 -> EL1 | E45: ='Efficiency Levels'!D30 -> 5.51 | F45: 0.9 | H45: =$F45 -> 0.9 | I45: 0.9 | J45: 0.9 | K45: 0.9 | L45: 0.9 | M45: 0.9 | N45: 0.9 | O45: 0.9 | P45: 0.9 | Q45: 0.9 | R45: 0.9 | S45: 0.9 | T45: 0.9 | U45: 0.9 | V45: 0.9 | W45: 0.9 | X45: 0.9 | Y45: 0.9 | Z45: 0.9 | AA45: 0.9 | AB45: 0.9 | AC45: 0.9 | AD45: 0 | AE45: 0 | AF45: 0 | AG45: 0 | AH45: 0 | AI45: 0 | AJ45: 0 | AK45: 0 | AL45: 0 | AM45: 0 | AN45: 0 | AO45: 0 | AP45: 0 | AQ45: 0 | AR45: 0 | AS45: 0 | AT45: 0 | AU45: 0 | AV45: 0 | AW45: 0 | AX45: 0 | AY45: 0 | AZ45: 0
D46: ='Efficiency Levels'!C31 -> EL2 | E46: ='Efficiency Levels'!D31 -> 5.25 | F46: 0 | H46: 0 | I46: 0 | J46: 0 | K46: 0 | L46: 0 | M46: 0 | N46: 0 | O46: 0 | P46: 0 | Q46: 0 | R46: 0 | S46: 0 | T46: 0 | U46: 0 | V46: 0 | W46: 0 | X46: 0 | Y46: 0 | Z46: 0 | AA46: 0 | AB46: 0 | AC46: 0 | AD46: 0 | AE46: 0 | AF46: =$F46 -> 0 | AG46: 0 | AH46: 0 | AI46: 0 | AJ46: 0 | AK46: 0 | AL46: 0 | AM46: 0 | AN46: 0 | AO46: 0 | AP46: 0 | AQ46: 0 | AR46: 0 | AS46: 0 | AT46: 0 | AU46: 0 | AV46: 0 | AW46: 0 | AX46: 0 | AY46: 0 | AZ46: 0
D47: ='Efficiency Levels'!C32 -> EL3 | E47: ='Efficiency Levels'!D32 -> 4.75 | F47: 0 | H47: 0 | I47: 0 | J47: 0 | K47: 0 | L47: 0 | M47: 0 | N47: 0 | O47: 0 | P47: 0 | Q47: 0 | R47: 0 | S47: 0 | T47: 0 | U47: 0 | V47: 0 | W47: 0 | X47: 0 | Y47: 0 | Z47: 0 | AA47: 0 | AB47: 0 | AC47: 0 | AD47: 0 | AE47: 0 | AF47: 0 | AG47: 0 | AH47: 0 | AI47: 0 | AJ47: 0 | AK47: 0 | AL47: 0 | AM47: 0 | AN47: 0 | AO47: 0 | AP47: 0 | AQ47: 0 | AR47: 0 | AS47: 0 | AT47: 0 | AU47: 0 | AV47: 0 | AW47: 0 | AX47: 0 | AY47: 0 | AZ47: 0
D48: ='Efficiency Levels'!C33 -> EL4 | E48: ='Efficiency Levels'!D33 -> 4.19 | F48: 0 | H48: 0 | I48: 0 | J48: 0 | K48: 0 | L48: 0 | M48: 0 | N48: 0 | O48: 0 | P48: 0 | Q48: 0 | R48: 0 | S48: 0 | T48: 0 | U48: 0 | V48: 0 | W48: 0 | X48: 0 | Y48: 0 | Z48: 0 | AA48: 0 | AB48: 0 | AC48: 0 | AD48: 0 | AE48: 0 | AF48: 0 | AG48: 0 | AH48: 0 | AI48: 0 | AJ48: 0 | AK48: 0 | AL48: 0 | AM48: 0 | AN48: 0 | AO48: 0 | AP48: 0 | AQ48: 0 | AR48: 0 | AS48: 0 | AT48: 0 | AU48: 0 | AV48: 0 | AW48: 0 | AX48: 0 | AY48: 0 | AZ48: 0
D49: ='Efficiency Levels'!C34 -> EL5 | E49: ='Efficiency Levels'!D34 -> 3.95 | F49: 0 | H49: 0 | I49: 0 | J49: 0 | K49: 0 | L49: 0 | M49: 0 | N49: 0 | O49: 0 | P49: 0 | Q49: 0 | R49: 0 | S49: 0 | T49: 0 | U49: 0 | V49: 0 | W49: 0 | X49: 0 | Y49: 0 | Z49: 0 | AA49: 0 | AB49: 0 | AC49: 0 | AD49: 0 | AE49: 0 | AF49: 0 | AG49: =$F49 -> 0 | AH49: 0 | AI49: 0 | AJ49: 0 | AK49: 0 | AL49: 0 | AM49: 0 | AN49: 0 | AO49: 0 | AP49: 0 | AQ49: 0 | AR49: 0 | AS49: 0 | AT49: 0 | AU49: 0 | AV49: 0 | AW49: 0 | AX49: 0 | AY49: 0 | AZ49: 0
D50: ='Efficiency Levels'!C35 -> EL6 | E50: ='Efficiency Levels'!D35 -> 3.79 | F50: 0 | H50: 0 | I50: 0 | J50: 0 | K50: 0 | L50: 0 | M50: 0 | N50: 0 | O50: =$F50 -> 0 | P50: 0 | Q50: 0 | R50: 0 | S50: 0 | T50: 0 | U50: 0 | V50: 0 | W50: 0 | X50: 0 | Y50: 0 | Z50: 0 | AA50: 0 | AB50: 0 | AC50: 0 | AD50: 1 | AE50: 1 | AF50: 1 | AG50: 1 | AH50: 1 | AI50: 1 | AJ50: 1 | AK50: 1 | AL50: 1 | AM50: 1 | AN50: 1 | AO50: 1 | AP50: 1 | AQ50: 1 | AR50: 1 | AS50: 1 | AT50: 1 | AU50: 1 | AV50: 1 | AW50: 1 | AX50: 1 | AY50: 1 | AZ50: 1
D51: ='Efficiency Levels'!C36 -> EL7 | E51: ='Efficiency Levels'!D36 -> 3.43 | F51: 0 | H51: 0 | I51: 0 | J51: 0 | K51: 0 | L51: 0 | M51: 0 | N51: 0 | O51: 0 | P51: 0 | Q51: 0 | R51: 0 | S51: 0 | T51: 0 | U51: 0 | V51: 0 | W51: 0 | X51: 0 | Y51: 0 | Z51: 0 | AA51: 0 | AB51: 0 | AC51: 0 | AD51: 0 | AE51: 0 | AF51: 0 | AG51: 0 | AH51: 0 | AI51: 0 | AJ51: 0 | AK51: 0 | AL51: 0 | AM51: 0 | AN51: 0 | AO51: 0 | AP51: 0 | AQ51: 0 | AR51: 0 | AS51: 0 | AT51: 0 | AU51: 0 | AV51: 0 | AW51: 0 | AX51: 0 | AY51: 0 | AZ51: 0
D52: TOTAL | F52: =SUM(F44:F51) -> 1 | H52: =SUM(H44:H51) -> 1 | I52: 1 | J52: 1 | K52: 1 | L52: 1 | M52: 1 | N52: 1 | O52: 1 | P52: 1 | Q52: 1 | R52: 1 | S52: 1 | T52: 1 | U52: 1 | V52: 1 | W52: 1 | X52: 1 | Y52: 1 | Z52: 1 | AA52: 1 | AB52: 1 | AC52: 1 | AD52: 1 | AE52: 1 | AF52: 1 | AG52: 1 | AH52: 1 | AI52: 1 | AJ52: 1 | AK52: 1 | AL52: 1 | AM52: 1 | AN52: 1 | AO52: 1 | AP52: 1 | AQ52: 1 | AR52: 1 | AS52: 1 | AT52: 1 | AU52: 1 | AV52: 1 | AW52: 1 | AX52: 1 | AY52: 1 | AZ52: 1
D54: POST-Case
D55: Efficiency Level | E55: EL (kWh/day) | H55: 1990 | I55: =H55+1 -> 1991 | J55: =I55+1 -> 1992 | K55: =J55+1 -> 1993 | L55: =K55+1 -> 1994 | M55: =L55+1 -> 1995 | N55: =M55+1 -> 1996 | O55: =N55+1 -> 1997 | P55: =O55+1 -> 1998 | Q55: =P55+1 -> 1999 | R55: =Q55+1 -> 2000 | S55: =R55+1 -> 2001 | T55: =S55+1 -> 2002 | U55: =T55+1 -> 2003 | V55: =U55+1 -> 2004 | W55: =V55+1 -> 2005 | X55: =X43 -> 2006 | Y55: 2007 | Z55: 2008 | AA55: 2009 | AB55: 2010 | AC55: 2011 | AD55: 2012 | AE55: 2013 | AF55: 2014 | AG55: 2015 | AH55: 2016 | AI55: 2017 | AJ55: 2018 | AK55: 2019 | AL55: 2020 | AM55: 2021 | AN55: 2022 | AO55: 2023 | AP55: 2024 | AQ55: 2025 | AR55: 2026 | AS55: 2027 | AT55: 2028 | AU55: 2029 | AV55: 2030 | AW55: 2031 | AX55: 2032 | AY55: 2033 | AZ55: 2034
D56: ='Efficiency Levels'!C29 -> EL0 | E56: ='Efficiency Levels'!D29 -> 6.53 | H56: =H44 -> 0.1 | I56: 0.1 | J56: 0.1 | K56: 0.1 | L56: 0.1 | M56: 0.1 | N56: 0.1 | O56: 0.1 | P56: 0.1 | Q56: 0.1 | R56: 0.1 | S56: 0.1 | T56: 0.1 | U56: 0.1 | V56: 0.1 | W56: 0.1 | X56: 0.1 | Y56: 0.1 | Z56: 0.1 | AA56: 0.1 | AB56: 0.1 | AC56: 0.1 | AD56: 0 | AE56: 0 | AF56: 0 | AG56: 0 | AH56: 0 | AI56: 0 | AJ56: 0 | AK56: 0 | AL56: 0 | AM56: 0 | AN56: 0 | AO56: 0 | AP56: 0 | AQ56: 0 | AR56: 0 | AS56: 0 | AT56: 0 | AU56: 0 | AV56: 0 | AW56: 0 | AX56: 0 | AY56: 0 | AZ56: 0
D57: ='Efficiency Levels'!C30 -> EL1 | E57: ='Efficiency Levels'!D30 -> 5.51 | H57: =H45 -> 0.9 | I57: 0.9 | J57: 0.9 | K57: 0.9 | L57: 0.9 | M57: 0.9 | N57: 0.9 | O57: 0.9 | P57: 0.9 | Q57: 0.9 | R57: 0.9 | S57: 0.9 | T57: 0.9 | U57: 0.9 | V57: 0.9 | W57: 0.9 | X57: 0.9 | Y57: 0.9 | Z57: 0.9 | AA57: 0.9 | AB57: 0.9 | AC57: 0.9 | AD57: 0 | AE57: 0 | AF57: 0 | AG57: 0 | AH57: 0 | AI57: 0 | AJ57: 0 | AK57: 0 | AL57: 0 | AM57: 0 | AN57: 0 | AO57: 0 | AP57: 0 | AQ57: 0 | AR57: 0 | AS57: 0 | AT57: 0 | AU57: 0 | AV57: 0 | AW57: 0 | AX57: 0 | AY57: 0 | AZ57: 0
D58: ='Efficiency Levels'!C31 -> EL2 | E58: ='Efficiency Levels'!D31 -> 5.25 | H58: =H46 -> 0 | I58: 0 | J58: 0 | K58: 0 | L58: 0 | M58: 0 | N58: 0 | O58: 0 | P58: 0 | Q58: 0 | R58: 0 | S58: 0 | T58: 0 | U58: 0 | V58: 0 | W58: 0 | X58: 0 | Y58: 0 | Z58: 0 | AA58: 0 | AB58: 0 | AC58: 0 | AD58: 0 | AE58: 0 | AF58: 0 | AG58: 0 | AH58: 0 | AI58: 0 | AJ58: 0 | AK58: 0 | AL58: 0 | AM58: 0 | AN58: 0 | AO58: 0 | AP58: 0 | AQ58: 0 | AR58: 0 | AS58: 0 | AT58: 0 | AU58: 0 | AV58: 0 | AW58: 0 | AX58: 0 | AY58: 0 | AZ58: 0
D59: ='Efficiency Levels'!C32 -> EL3 | E59: ='Efficiency Levels'!D32 -> 4.75 | H59: =H48 -> 0 | I59: 0 | J59: 0 | K59: 0 | L59: 0 | M59: 0 | N59: 0 | O59: 0 | P59: 0 | Q59: 0 | R59: 0 | S59: 0 | T59: 0 | U59: 0 | V59: 0 | W59: 0 | X59: 0 | Y59: 0 | Z59: 0 | AA59: 0 | AB59: 0 | AC59: 0 | AD59: 0 | AE59: =AE48 -> 0 | AF59: 0 | AG59: 0 | AH59: 0 | AI59: 0 | AJ59: 0 | AK59: 0 | AL59: 0 | AM59: 0 | AN59: 0 | AO59: 0 | AP59: 0 | AQ59: 0 | AR59: 0 | AS59: 0 | AT59: 0 | AU59: 0 | AV59: 0 | AW59: 0 | AX59: 0 | AY59: 0 | AZ59: 0
D60: ='Efficiency Levels'!C33 -> EL4 | E60: ='Efficiency Levels'!D33 -> 4.19 | H60: 0 | I60: 0 | J60: 0 | K60: 0 | L60: 0 | M60: 0 | N60: 0 | O60: 0 | P60: 0 | Q60: 0 | R60: 0 | S60: 0 | T60: 0 | U60: 0 | V60: 0 | W60: 0 | X60: 0 | Y60: 0 | Z60: 0 | AA60: 0 | AB60: 0 | AC60: 0 | AD60: 0 | AE60: 0 | AF60: 0 | AG60: 0 | AH60: 0 | AI60: 0 | AJ60: 0 | AK60: 0 | AL60: 0 | AM60: 0 | AN60: 0 | AO60: 0 | AP60: 0 | AQ60: 0 | AR60: 0 | AS60: 0 | AT60: 0 | AU60: 0 | AV60: 0 | AW60: 0 | AX60: 0 | AY60: 0 | AZ60: 0
D61: ='Efficiency Levels'!C34 -> EL5 | E61: ='Efficiency Levels'!D34 -> 3.95 | H61: =H49 -> 0 | I61: 0 | J61: 0 | K61: 0 | L61: 0 | M61: 0 | N61: 0 | O61: 0 | P61: 0 | Q61: 0 | R61: 0 | S61: 0 | T61: 0 | U61: 0 | V61: 0 | W61: 0 | X61: 0 | Y61: 0 | Z61: 0 | AA61: 0 | AB61: 0 | AC61: 0 | AD61: =AD49 -> 0 | AE61: 0 | AF61: 0 | AG61: 0 | AH61: 0 | AI61: 0 | AJ61: 0 | AK61: 0 | AL61: 0 | AM61: 0 | AN61: 0 | AO61: 0 | AP61: 0 | AQ61: 0 | AR61: 0 | AS61: 0 | AT61: 0 | AU61: 0 | AV61: 0 | AW61: 0 | AX61: 0 | AY61: 0 | AZ61: 0
D62: ='Efficiency Levels'!C35 -> EL6 | E62: ='Efficiency Levels'!D35 -> 3.79 | H62: =H50 -> 0 | I62: 0 | J62: 0 | K62: 0 | L62: 0 | M62: 0 | N62: 0 | O62: 0 | P62: 0 | Q62: 0 | R62: 0 | S62: 0 | T62: 0 | U62: 0 | V62: 0 | W62: 0 | X62: 0 | Y62: 0 | Z62: 0 | AA62: 0 | AB62: 0 | AC62: 0 | AD62: 1 | AE62: 1 | AF62: 1 | AG62: 1 | AH62: 1 | AI62: 1 | AJ62: 1 | AK62: 1 | AL62: 1 | AM62: 1 | AN62: 1 | AO62: 1 | AP62: 1 | AQ62: 1 | AR62: 1 | AS62: 1 | AT62: 1 | AU62: 1 | AV62: 1 | AW62: 1 | AX62: 1 | AY62: 1 | AZ62: 1
D63: ='Efficiency Levels'!C36 -> EL7 | E63: ='Efficiency Levels'!D36 -> 3.43 | H63: =H51 -> 0 | I63: 0 | J63: 0 | K63: 0 | L63: 0 | M63: 0 | N63: 0 | O63: 0 | P63: 0 | Q63: 0 | R63: 0 | S63: 0 | T63: 0 | U63: 0 | V63: 0 | W63: 0 | X63: 0 | Y63: 0 | Z63: 0 | AA63: 0 | AB63: 0 | AC63: 0 | AD63: =AD51 -> 0 | AE63: 0 | AF63: 0 | AG63: 0 | AH63: 0 | AI63: 0 | AJ63: 0 | AK63: 0 | AL63: 0 | AM63: 0 | AN63: 0 | AO63: 0 | AP63: 0 | AQ63: 0 | AR63: 0 | AS63: 0 | AT63: 0 | AU63: 0 | AV63: 0 | AW63: 0 | AX63: 0 | AY63: 0 | AZ63: 0
D64: TOTAL | H64: =SUM(H56:H63) -> 1 | I64: =SUM(I56:I63) -> 1 | J64: 1 | K64: 1 | L64: 1 | M64: 1 | N64: 1 | O64: 1 | P64: 1 | Q64: 1 | R64: 1 | S64: 1 | T64: 1 | U64: 1 | V64: 1 | W64: 1 | X64: 1 | Y64: 1 | Z64: 1 | AA64: 1 | AB64: 1 | AC64: 1 | AD64: 1 | AE64: 1 | AF64: 1 | AG64: 1 | AH64: 1 | AI64: 1 | AJ64: 1 | AK64: 1 | AL64: 1 | AM64: 1 | AN64: 1 | AO64: 1 | AP64: 1 | AQ64: 1 | AR64: 1 | AS64: 1 | AT64: 1 | AU64: 1 | AV64: 1 | AW64: 1 | AX64: 1 | AY64: 1 | AZ64: 1
D66: Sources | E66: 1. DOE Refrigerated Beverage Vending Machines 2009 Direct Final Rule, Technical Support Document Chapter 13, Table 13.4.9 Distribution of Medium-Sized Class A Equipment in 2012 at Each Trial Standard Level (page 13-13)
E67: 2. DOE Refrigerated Beverage Vending Machines 2009 Direct Final Rule GRIM, (based on NIA data from 2009 BVM Final Rule)
D71: ='Product Classes'!H12&" - "&OFFSET('Product Classes'!$C$9,MATCH('Product Classes'!H12,MODEL_PCS,0),0) -> PC3 - Class A- Large (ALIN)
D73: PRE-Case | F73: Static Distribution
D74: Efficiency Level | E74: EL (kWh/day) | F74: 2006 | H74: 1990 | I74: =H74+1 -> 1991 | J74: =I74+1 -> 1992 | K74: =J74+1 -> 1993 | L74: =K74+1 -> 1994 | M74: =L74+1 -> 1995 | N74: =M74+1 -> 1996 | O74: =N74+1 -> 1997 | P74: =O74+1 -> 1998 | Q74: =P74+1 -> 1999 | R74: =Q74+1 -> 2000 | S74: =R74+1 -> 2001 | T74: =S74+1 -> 2002 | U74: =T74+1 -> 2003 | V74: =U74+1 -> 2004 | W74: =V74+1 -> 2005 | X74: =W74+1 -> 2006 | Y74: =X74+1 -> 2007 | Z74: =Y74+1 -> 2008 | AA74: =Z74+1 -> 2009 | AB74: =AA74+1 -> 2010 | AC74: =AB74+1 -> 2011 | AD74: =AC74+1 -> 2012 | AE74: =AD74+1 -> 2013 | AF74: =AE74+1 -> 2014 | AG74: =AF74+1 -> 2015 | AH74: =AG74+1 -> 2016 | AI74: =AH74+1 -> 2017 | AJ74: =AI74+1 -> 2018 | AK74: =AJ74+1 -> 2019 | AL74: =AK74+1 -> 2020 | AM74: =AL74+1 -> 2021 | AN74: =AM74+1 -> 2022 | AO74: =AN74+1 -> 2023 | AP74: =AO74+1 -> 2024 | AQ74: =AP74+1 -> 2025 | AR74: =AQ74+1 -> 2026 | AS74: =AR74+1 -> 2027 | AT74: =AS74+1 -> 2028 | AU74: =AT74+1 -> 2029 | AV74: =AU74+1 -> 2030 | AW74: =AV74+1 -> 2031 | AX74: =AW74+1 -> 2032 | AY74: =AX74+1 -> 2033 | AZ74: =AY74+1 -> 2034
D75: ='Efficiency Levels'!C46 -> EL0 | E75: ='Efficiency Levels'!D46 -> 6.75 | F75: 0.1 | H75: =$F75 -> 0.1 | I75: =$F75 -> 0.1 | J75: 0.1 | K75: 0.1 | L75: 0.1 | M75: 0.1 | N75: 0.1 | O75: 0.1 | P75: 0.1 | Q75: 0.1 | R75: 0.1 | S75: 0.1 | T75: 0.1 | U75: 0.1 | V75: 0.1 | W75: 0.1 | X75: 0.1 | Y75: 0.1 | Z75: 0.1 | AA75: 0.1 | AB75: 0.1 | AC75: 0.1 | AD75: 0 | AE75: 0 | AF75: 0 | AG75: 0 | AH75: 0 | AI75: 0 | AJ75: 0 | AK75: 0 | AL75: 0 | AM75: 0 | AN75: 0 | AO75: 0 | AP75: 0 | AQ75: 0 | AR75: 0 | AS75: 0 | AT75: 0 | AU75: 0 | AV75: 0 | AW75: 0 | AX75: 0 | AY75: 0 | AZ75: 0
D76: ='Efficiency Levels'!C47 -> EL1 | E76: ='Efficiency Levels'!D47 -> 6.21 | F76: 0.9 | H76: =$F76 -> 0.9 | I76: 0.9 | J76: 0.9 | K76: 0.9 | L76: 0.9 | M76: 0.9 | N76: 0.9 | O76: 0.9 | P76: 0.9 | Q76: 0.9 | R76: 0.9 | S76: 0.9 | T76: 0.9 | U76: 0.9 | V76: 0.9 | W76: 0.9 | X76: 0.9 | Y76: 0.9 | Z76: 0.9 | AA76: 0.9 | AB76: 0.9 | AC76: 0.9 | AD76: 0 | AE76: 0 | AF76: 0 | AG76: 0 | AH76: 0 | AI76: 0 | AJ76: 0 | AK76: 0 | AL76: 0 | AM76: 0 | AN76: 0 | AO76: 0 | AP76: 0 | AQ76: 0 | AR76: 0 | AS76: 0 | AT76: 0 | AU76: 0 | AV76: 0 | AW76: 0 | AX76: 0 | AY76: 0 | AZ76: 0
D77: ='Efficiency Levels'!C48 -> EL2 | E77: ='Efficiency Levels'!D48 -> 5.75 | F77: 0 | H77: 0 | I77: 0 | J77: 0 | K77: 0 | L77: 0 | M77: 0 | N77: 0 | O77: 0 | P77: 0 | Q77: 0 | R77: 0 | S77: 0 | T77: 0 | U77: 0 | V77: 0 | W77: 0 | X77: 0 | Y77: 0 | Z77: 0 | AA77: 0 | AB77: 0 | AC77: 0 | AD77: 0 | AE77: 0 | AF77: =$F77 -> 0 | AG77: 0 | AH77: 0 | AI77: 0 | AJ77: 0 | AK77: 0 | AL77: 0 | AM77: 0 | AN77: 0 | AO77: 0 | AP77: 0 | AQ77: 0 | AR77: 0 | AS77: 0 | AT77: 0 | AU77: 0 | AV77: =$F77 -> 0 | AW77: 0 | AX77: 0 | AY77: 0 | AZ77: 0
D78: ='Efficiency Levels'!C49 -> EL3 | E78: ='Efficiency Levels'!D49 -> 5.25 | F78: 0 | H78: 0 | I78: 0 | J78: 0 | K78: 0 | L78: 0 | M78: 0 | N78: 0 | O78: 0 | P78: 0 | Q78: 0 | R78: 0 | S78: 0 | T78: 0 | U78: 0 | V78: 0 | W78: 0 | X78: 0 | Y78: 0 | Z78: 0 | AA78: 0 | AB78: 0 | AC78: 0 | AD78: 0 | AE78: 0 | AF78: 0 | AG78: 0 | AH78: 0 | AI78: 0 | AJ78: 0 | AK78: 0 | AL78: 0 | AM78: 0 | AN78: 0 | AO78: 0 | AP78: 0 | AQ78: 0 | AR78: 0 | AS78: 0 | AT78: 0 | AU78: 0 | AV78: 0 | AW78: 0 | AX78: 0 | AY78: 0 | AZ78: 0
D79: ='Efficiency Levels'!C50 -> EL4 | E79: ='Efficiency Levels'!D50 -> 4.89 | F79: 0 | H79: 0 | I79: 0 | J79: 0 | K79: 0 | L79: 0 | M79: 0 | N79: 0 | O79: 0 | P79: 0 | Q79: 0 | R79: 0 | S79: 0 | T79: 0 | U79: 0 | V79: 0 | W79: 0 | X79: 0 | Y79: 0 | Z79: 0 | AA79: 0 | AB79: 0 | AC79: 0 | AD79: 0 | AE79: 0 | AF79: 0 | AG79: 0 | AH79: 0 | AI79: 0 | AJ79: 0 | AK79: 0 | AL79: 0 | AM79: 0 | AN79: 0 | AO79: 0 | AP79: 0 | AQ79: 0 | AR79: 0 | AS79: 0 | AT79: 0 | AU79: 0 | AV79: 0 | AW79: 0 | AX79: 0 | AY79: 0 | AZ79: 0
D80: ='Efficiency Levels'!C51 -> EL5 | E80: ='Efficiency Levels'!D51 -> 4.6 | F80: 0 | H80: 0 | I80: 0 | J80: 0 | K80: 0 | L80: 0 | M80: 0 | N80: 0 | O80: 0 | P80: 0 | Q80: 0 | R80: 0 | S80: 0 | T80: 0 | U80: 0 | V80: 0 | W80: 0 | X80: 0 | Y80: 0 | Z80: 0 | AA80: 0 | AB80: 0 | AC80: 0 | AD80: 0 | AE80: 0 | AF80: 0 | AG80: 0 | AH80: 0 | AI80: 0 | AJ80: 0 | AK80: 0 | AL80: 0 | AM80: 0 | AN80: 0 | AO80: 0 | AP80: 0 | AQ80: 0 | AR80: 0 | AS80: 0 | AT80: 0 | AU80: 0 | AV80: 0 | AW80: 0 | AX80: 0 | AY80: 0 | AZ80: 0
D81: ='Efficiency Levels'!C52 -> EL6 | E81: ='Efficiency Levels'!D52 -> 4.41 | F81: 0 | H81: 0 | I81: 0 | J81: 0 | K81: 0 | L81: 0 | M81: 0 | N81: 0 | O81: =$F81 -> 0 | P81: 0 | Q81: 0 | R81: 0 | S81: 0 | T81: 0 | U81: 0 | V81: 0 | W81: 0 | X81: 0 | Y81: 0 | Z81: 0 | AA81: 0 | AB81: 0 | AC81: 0 | AD81: 1 | AE81: 1 | AF81: 1 | AG81: 1 | AH81: 1 | AI81: 1 | AJ81: 1 | AK81: 1 | AL81: 1 | AM81: 1 | AN81: 1 | AO81: 1 | AP81: 1 | AQ81: 1 | AR81: 1 | AS81: 1 | AT81: 1 | AU81: 1 | AV81: 1 | AW81: 1 | AX81: 1 | AY81: 1 | AZ81: 1
D82: ='Efficiency Levels'!C53 -> EL7 | E82: ='Efficiency Levels'!D53 -> 3.94 | F82: 0 | H82: 0 | I82: 0 | J82: 0 | K82: 0 | L82: 0 | M82: 0 | N82: 0 | O82: 0 | P82: 0 | Q82: 0 | R82: 0 | S82: 0 | T82: 0 | U82: 0 | V82: 0 | W82: 0 | X82: 0 | Y82: 0 | Z82: 0 | AA82: 0 | AB82: 0 | AC82: 0 | AD82: 0 | AE82: 0 | AF82: 0 | AG82: 0 | AH82: 0 | AI82: 0 | AJ82: 0 | AK82: 0 | AL82: 0 | AM82: 0 | AN82: 0 | AO82: 0 | AP82: 0 | AQ82: 0 | AR82: 0 | AS82: 0 | AT82: 0 | AU82: 0 | AV82: 0 | AW82: 0 | AX82: 0 | AY82: 0 | AZ82: 0
D83: TOTAL | F83: =SUM(F75:F82) -> 1 | H83: =SUM(H75:H82) -> 1 | I83: 1 | J83: 1 | K83: 1 | L83: 1 | M83: 1 | N83: 1 | O83: 1 | P83: 1 | Q83: 1 | R83: 1 | S83: 1 | T83: 1 | U83: 1 | V83: 1 | W83: 1 | X83: 1 | Y83: 1 | Z83: 1 | AA83: 1 | AB83: 1 | AC83: 1 | AD83: 1 | AE83: 1 | AF83: 1 | AG83: 1 | AH83: 1 | AI83: 1 | AJ83: 1 | AK83: 1 | AL83: 1 | AM83: 1 | AN83: 1 | AO83: 1 | AP83: 1 | AQ83: 1 | AR83: 1 | AS83: 1 | AT83: 1 | AU83: 1 | AV83: 1 | AW83: 1 | AX83: 1 | AY83: 1 | AZ83: 1
D85: POST-Case
D86: Efficiency Level | E86: EL (kWh/day) | H86: 1990 | I86: =H86+1 -> 1991 | J86: =I86+1 -> 1992 | K86: =J86+1 -> 1993 | L86: =K86+1 -> 1994 | M86: =L86+1 -> 1995 | N86: =M86+1 -> 1996 | O86: =N86+1 -> 1997 | P86: =O86+1 -> 1998 | Q86: =P86+1 -> 1999 | R86: =Q86+1 -> 2000 | S86: =R86+1 -> 2001 | T86: =S86+1 -> 2002 | U86: =T86+1 -> 2003 | V86: =U86+1 -> 2004 | W86: =V86+1 -> 2005 | X86: =X74 -> 2006 | Y86: 2007 | Z86: 2008 | AA86: 2009 | AB86: 2010 | AC86: 2011 | AD86: 2012 | AE86: 2013 | AF86: 2014 | AG86: 2015 | AH86: 2016 | AI86: 2017 | AJ86: 2018 | AK86: 2019 | AL86: 2020 | AM86: 2021 | AN86: 2022 | AO86: 2023 | AP86: 2024 | AQ86: 2025 | AR86: 2026 | AS86: 2027 | AT86: 2028 | AU86: 2029 | AV86: 2030 | AW86: 2031 | AX86: 2032 | AY86: 2033 | AZ86: 2034
D87: ='Efficiency Levels'!C46 -> EL0 | E87: ='Efficiency Levels'!D46 -> 6.75 | H87: =H75 -> 0.1 | I87: 0.1 | J87: 0.1 | K87: 0.1 | L87: 0.1 | M87: 0.1 | N87: 0.1 | O87: 0.1 | P87: 0.1 | Q87: 0.1 | R87: 0.1 | S87: 0.1 | T87: 0.1 | U87: 0.1 | V87: 0.1 | W87: 0.1 | X87: 0.1 | Y87: 0.1 | Z87: 0.1 | AA87: 0.1 | AB87: 0.1 | AC87: 0.1 | AD87: 0 | AE87: 0 | AF87: 0 | AG87: 0 | AH87: 0 | AI87: 0 | AJ87: 0 | AK87: 0 | AL87: 0 | AM87: 0 | AN87: 0 | AO87: 0 | AP87: 0 | AQ87: 0 | AR87: 0 | AS87: 0 | AT87: 0 | AU87: 0 | AV87: 0 | AW87: 0 | AX87: 0 | AY87: 0 | AZ87: 0
D88: ='Efficiency Levels'!C47 -> EL1 | E88: ='Efficiency Levels'!D47 -> 6.21 | H88: =H76 -> 0.9 | I88: 0.9 | J88: 0.9 | K88: 0.9 | L88: 0.9 | M88: 0.9 | N88: 0.9 | O88: 0.9 | P88: 0.9 | Q88: 0.9 | R88: 0.9 | S88: 0.9 | T88: 0.9 | U88: 0.9 | V88: 0.9 | W88: 0.9 | X88: 0.9 | Y88: 0.9 | Z88: 0.9 | AA88: 0.9 | AB88: 0.9 | AC88: 0.9 | AD88: 0 | AE88: 0 | AF88: 0 | AG88: 0 | AH88: 0 | AI88: 0 | AJ88: 0 | AK88: 0 | AL88: 0 | AM88: 0 | AN88: 0 | AO88: 0 | AP88: 0 | AQ88: 0 | AR88: 0 | AS88: 0 | AT88: 0 | AU88: 0 | AV88: 0 | AW88: 0 | AX88: 0 | AY88: 0 | AZ88: 0
D89: ='Efficiency Levels'!C48 -> EL2 | E89: ='Efficiency Levels'!D48 -> 5.75 | H89: =H77 -> 0 | I89: 0 | J89: 0 | K89: 0 | L89: 0 | M89: 0 | N89: 0 | O89: 0 | P89: 0 | Q89: 0 | R89: 0 | S89: 0 | T89: 0 | U89: 0 | V89: 0 | W89: 0 | X89: 0 | Y89: 0 | Z89: 0 | AA89: 0 | AB89: 0 | AC89: 0 | AD89: 0 | AE89: 0 | AF89: 0 | AG89: 0 | AH89: 0 | AI89: 0 | AJ89: 0 | AK89: 0 | AL89: 0 | AM89: 0 | AN89: 0 | AO89: 0 | AP89: 0 | AQ89: 0 | AR89: 0 | AS89: 0 | AT89: 0 | AU89: 0 | AV89: 0 | AW89: 0 | AX89: 0 | AY89: 0 | AZ89: 0
D90: ='Efficiency Levels'!C49 -> EL3 | E90: ='Efficiency Levels'!D49 -> 5.25 | H90: =H79 -> 0 | I90: 0 | J90: 0 | K90: 0 | L90: 0 | M90: 0 | N90: 0 | O90: 0 | P90: 0 | Q90: 0 | R90: 0 | S90: 0 | T90: 0 | U90: 0 | V90: 0 | W90: 0 | X90: 0 | Y90: 0 | Z90: 0 | AA90: 0 | AB90: 0 | AC90: 0 | AD90: 0 | AE90: =AE79 -> 0 | AF90: 0 | AG90: 0 | AH90: 0 | AI90: 0 | AJ90: 0 | AK90: 0 | AL90: 0 | AM90: 0 | AN90: 0 | AO90: 0 | AP90: 0 | AQ90: 0 | AR90: 0 | AS90: 0 | AT90: 0 | AU90: 0 | AV90: 0 | AW90: 0 | AX90: 0 | AY90: 0 | AZ90: 0
D91: ='Efficiency Levels'!C50 -> EL4 | E91: ='Efficiency Levels'!D50 -> 4.89 | H91: 0 | I91: 0 | J91: 0 | K91: 0 | L91: 0 | M91: 0 | N91: 0 | O91: 0 | P91: 0 | Q91: 0 | R91: 0 | S91: 0 | T91: 0 | U91: 0 | V91: 0 | W91: 0 | X91: 0 | Y91: 0 | Z91: 0 | AA91: 0 | AB91: 0 | AC91: 0 | AD91: 0 | AE91: 0 | AF91: 0 | AG91: 0 | AH91: 0 | AI91: 0 | AJ91: 0 | AK91: 0 | AL91: 0 | AM91: 0 | AN91: 0 | AO91: 0 | AP91: 0 | AQ91: 0 | AR91: 0 | AS91: 0 | AT91: 0 | AU91: 0 | AV91: 0 | AW91: 0 | AX91: 0 | AY91: 0 | AZ91: 0
D92: ='Efficiency Levels'!C51 -> EL5 | E92: ='Efficiency Levels'!D51 -> 4.6 | H92: =H80 -> 0 | I92: 0 | J92: 0 | K92: 0 | L92: 0 | M92: 0 | N92: 0 | O92: 0 | P92: 0 | Q92: 0 | R92: 0 | S92: 0 | T92: 0 | U92: 0 | V92: 0 | W92: 0 | X92: 0 | Y92: 0 | Z92: 0 | AA92: 0 | AB92: 0 | AC92: 0 | AD92: =AD80 -> 0 | AE92: 0 | AF92: 0 | AG92: 0 | AH92: 0 | AI92: 0 | AJ92: 0 | AK92: 0 | AL92: 0 | AM92: 0 | AN92: 0 | AO92: 0 | AP92: 0 | AQ92: 0 | AR92: 0 | AS92: 0 | AT92: 0 | AU92: 0 | AV92: 0 | AW92: 0 | AX92: 0 | AY92: 0 | AZ92: 0
D93: ='Efficiency Levels'!C52 -> EL6 | E93: ='Efficiency Levels'!D52 -> 4.41 | H93: =H81 -> 0 | I93: 0 | J93: 0 | K93: 0 | L93: 0 | M93: 0 | N93: 0 | O93: 0 | P93: 0 | Q93: 0 | R93: 0 | S93: 0 | T93: 0 | U93: 0 | V93: 0 | W93: 0 | X93: 0 | Y93: 0 | Z93: 0 | AA93: 0 | AB93: 0 | AC93: 0 | AD93: 1 | AE93: 1 | AF93: 1 | AG93: 1 | AH93: 1 | AI93: 1 | AJ93: 1 | AK93: 1 | AL93: 1 | AM93: 1 | AN93: 1 | AO93: 1 | AP93: 1 | AQ93: 1 | AR93: 1 | AS93: 1 | AT93: 1 | AU93: 1 | AV93: 1 | AW93: 1 | AX93: 1 | AY93: 1 | AZ93: 1
D94: ='Efficiency Levels'!C53 -> EL7 | E94: ='Efficiency Levels'!D53 -> 3.94 | H94: =H82 -> 0 | I94: 0 | J94: 0 | K94: 0 | L94: 0 | M94: 0 | N94: 0 | O94: 0 | P94: 0 | Q94: 0 | R94: 0 | S94: 0 | T94: 0 | U94: 0 | V94: 0 | W94: 0 | X94: 0 | Y94: 0 | Z94: 0 | AA94: 0 | AB94: 0 | AC94: 0 | AD94: =AD82 -> 0 | AE94: 0 | AF94: 0 | AG94: 0 | AH94: 0 | AI94: 0 | AJ94: 0 | AK94: 0 | AL94: 0 | AM94: 0 | AN94: 0 | AO94: 0 | AP94: 0 | AQ94: 0 | AR94: 0 | AS94: 0 | AT94: 0 | AU94: 0 | AV94: 0 | AW94: 0 | AX94: 0 | AY94: 0 | AZ94: 0
D95: TOTAL | H95: =SUM(H87:H94) -> 1 | I95: =SUM(I87:I94) -> 1 | J95: 1 | K95: 1 | L95: 1 | M95: 1 | N95: 1 | O95: 1 | P95: 1 | Q95: 1 | R95: 1 | S95: 1 | T95: 1 | U95: 1 | V95: 1 | W95: 1 | X95: 1 | Y95: 1 | Z95: 1 | AA95: 1 | AB95: 1 | AC95: 1 | AD95: 1 | AE95: 1 | AF95: 1 | AG95: 1 | AH95: 1 | AI95: 1 | AJ95: 1 | AK95: 1 | AL95: 1 | AM95: 1 | AN95: 1 | AO95: 1 | AP95: 1 | AQ95: 1 | AR95: 1 | AS95: 1 | AT95: 1 | AU95: 1 | AV95: 1 | AW95: 1 | AX95: 1 | AY95: 1 | AZ95: 1
D97: Sources | E97: 1. DOE Refrigerated Beverage Vending Machines 2009 Direct Final Rule, Technical Support Document Chapter 13, Table 13.4.10 Distribution of Large-Sized Class A Equipment in 2012 at Each Trial Standard Level (page 13-13)
E98: 2. DOE Refrigerated Beverage Vending Machines 2009 Direct Final Rule GRIM, (based on NIA data from 2009 BVM Final Rule)
D102: ='Product Classes'!H13&" - "&OFFSET('Product Classes'!$C$9,MATCH('Product Classes'!H13,MODEL_PCS,0),0) -> PC4 - Class B- Small (BSIO)
D104: PRE-Case | F104: Static Distribution
D105: Efficiency Level | E105: EL (kWh/day) | F105: 2006 | H105: 1990 | I105: =H105+1 -> 1991 | J105: =I105+1 -> 1992 | K105: =J105+1 -> 1993 | L105: =K105+1 -> 1994 | M105: =L105+1 -> 1995 | N105: =M105+1 -> 1996 | O105: =N105+1 -> 1997 | P105: =O105+1 -> 1998 | Q105: =P105+1 -> 1999 | R105: =Q105+1 -> 2000 | S105: =R105+1 -> 2001 | T105: =S105+1 -> 2002 | U105: =T105+1 -> 2003 | V105: =U105+1 -> 2004 | W105: =V105+1 -> 2005 | X105: =W105+1 -> 2006 | Y105: =X105+1 -> 2007 | Z105: =Y105+1 -> 2008 | AA105: =Z105+1 -> 2009 | AB105: =AA105+1 -> 2010 | AC105: =AB105+1 -> 2011 | AD105: =AC105+1 -> 2012 | AE105: =AD105+1 -> 2013 | AF105: =AE105+1 -> 2014 | AG105: =AF105+1 -> 2015 | AH105: =AG105+1 -> 2016 | AI105: =AH105+1 -> 2017 | AJ105: =AI105+1 -> 2018 | AK105: =AJ105+1 -> 2019 | AL105: =AK105+1 -> 2020 | AM105: =AL105+1 -> 2021 | AN105: =AM105+1 -> 2022 | AO105: =AN105+1 -> 2023 | AP105: =AO105+1 -> 2024 | AQ105: =AP105+1 -> 2025 | AR105: =AQ105+1 -> 2026 | AS105: =AR105+1 -> 2027 | AT105: =AS105+1 -> 2028 | AU105: =AT105+1 -> 2029 | AV105: =AU105+1 -> 2030 | AW105: =AV105+1 -> 2031 | AX105: =AW105+1 -> 2032 | AY105: =AX105+1 -> 2033 | AZ105: =AY105+1 -> 2034
D106: ='Efficiency Levels'!C63 -> EL0 | E106: ='Efficiency Levels'!D63 -> 4.96 | F106: 0.1 | H106: =$F106 -> 0.1 | I106: =$F106 -> 0.1 | J106: 0.1 | K106: 0.1 | L106: 0.1 | M106: 0.1 | N106: 0.1 | O106: 0.1 | P106: 0.1 | Q106: 0.1 | R106: 0.1 | S106: 0.1 | T106: 0.1 | U106: 0.1 | V106: 0.1 | W106: 0.1 | X106: 0.1 | Y106: 0.1 | Z106: 0.1 | AA106: 0.1 | AB106: 0.1 | AC106: 0.1 | AD106: 0 | AE106: 0 | AF106: 0 | AG106: 0 | AH106: 0 | AI106: 0 | AJ106: 0 | AK106: 0 | AL106: 0 | AM106: 0 | AN106: 0 | AO106: 0 | AP106: 0 | AQ106: 0 | AR106: 0 | AS106: 0 | AT106: 0 | AU106: 0 | AV106: 0 | AW106: 0 | AX106: 0 | AY106: 0 | AZ106: 0
D107: ='Efficiency Levels'!C64 -> EL1 | E107: ='Efficiency Levels'!D64 -> 4.62 | F107: 0 | H107: =$F107 -> 0 | I107: 0 | J107: 0 | K107: 0 | L107: 0 | M107: 0 | N107: 0 | O107: 0 | P107: 0 | Q107: 0 | R107: 0 | S107: 0 | T107: 0 | U107: 0 | V107: 0 | W107: 0 | X107: 0 | Y107: 0 | Z107: 0 | AA107: 0 | AB107: 0 | AC107: 0 | AD107: 0 | AE107: 0 | AF107: 0 | AG107: 0 | AH107: 0 | AI107: 0 | AJ107: 0 | AK107: 0 | AL107: 0 | AM107: 0 | AN107: 0 | AO107: 0 | AP107: 0 | AQ107: 0 | AR107: 0 | AS107: 0 | AT107: 0 | AU107: 0 | AV107: 0 | AW107: 0 | AX107: 0 | AY107: 0 | AZ107: 0
D108: ='Efficiency Levels'!C65 -> EL2 | E108: ='Efficiency Levels'!D65 -> 4.31 | F108: 0.9 | H108: 0.9 | I108: 0.9 | J108: 0.9 | K108: 0.9 | L108: 0.9 | M108: 0.9 | N108: 0.9 | O108: 0.9 | P108: 0.9 | Q108: 0.9 | R108: 0.9 | S108: 0.9 | T108: 0.9 | U108: 0.9 | V108: 0.9 | W108: 0.9 | X108: 0.9 | Y108: 0.9 | Z108: 0.9 | AA108: 0.9 | AB108: 0.9 | AC108: 0.9 | AD108: 0 | AE108: 0 | AF108: 0 | AG108: 0 | AH108: 0 | AI108: 0 | AJ108: 0 | AK108: 0 | AL108: 0 | AM108: 0 | AN108: 0 | AO108: 0 | AP108: 0 | AQ108: 0 | AR108: 0 | AS108: 0 | AT108: 0 | AU108: 1 | AV108: 1 | AW108: 1 | AX108: 1 | AY108: 1 | AZ108: 1
D109: ='Efficiency Levels'!C66 -> EL3 | E109: ='Efficiency Levels'!D66 -> 4.31 | F109: 0 | H109: 0 | I109: 0 | J109: 0 | K109: 0 | L109: 0 | M109: 0 | N109: 0 | O109: 0 | P109: 0 | Q109: 0 | R109: 0 | S109: 0 | T109: 0 | U109: 0 | V109: 0 | W109: 0 | X109: 0 | Y109: 0 | Z109: 0 | AA109: 0 | AB109: 0 | AC109: 0 | AD109: 1 | AE109: 1 | AF109: 1 | AG109: 1 | AH109: 1 | AI109: 1 | AJ109: 1 | AK109: 1 | AL109: 1 | AM109: 1 | AN109: 1 | AO109: 1 | AP109: 1 | AQ109: 1 | AR109: 1 | AS109: 1 | AT109: 1 | AU109: =$F109 -> 0 | AV109: 0 | AW109: 0 | AX109: 0 | AY109: 0 | AZ109: =$F109 -> 0
D110: ='Efficiency Levels'!C67 -> EL4 | E110: ='Efficiency Levels'!D67 -> 4.28 | F110: 0 | H110: 0 | I110: 0 | J110: 0 | K110: 0 | L110: 0 | M110: 0 | N110: 0 | O110: 0 | P110: 0 | Q110: 0 | R110: 0 | S110: 0 | T110: 0 | U110: 0 | V110: 0 | W110: 0 | X110: 0 | Y110: 0 | Z110: 0 | AA110: 0 | AB110: 0 | AC110: 0 | AD110: 0 | AE110: =$F110 -> 0 | AF110: 0 | AG110: 0 | AH110: 0 | AI110: 0 | AJ110: 0 | AK110: 0 | AL110: 0 | AM110: 0 | AN110: 0 | AO110: 0 | AP110: 0 | AQ110: 0 | AR110: 0 | AS110: 0 | AT110: 0 | AU110: 0 | AV110: 0 | AW110: 0 | AX110: 0 | AY110: 0 | AZ110: 0
D111: ='Efficiency Levels'!C68 -> EL5 | E111: ='Efficiency Levels'!D68 -> 3.78 | F111: 0 | H111: 0 | I111: 0 | J111: 0 | K111: 0 | L111: 0 | M111: 0 | N111: 0 | O111: 0 | P111: 0 | Q111: 0 | R111: 0 | S111: 0 | T111: 0 | U111: 0 | V111: 0 | W111: 0 | X111: 0 | Y111: 0 | Z111: 0 | AA111: 0 | AB111: 0 | AC111: 0 | AD111: 0 | AE111: 0 | AF111: 0 | AG111: 0 | AH111: 0 | AI111: 0 | AJ111: 0 | AK111: 0 | AL111: 0 | AM111: 0 | AN111: 0 | AO111: 0 | AP111: 0 | AQ111: 0 | AR111: 0 | AS111: 0 | AT111: 0 | AU111: 0 | AV111: 0 | AW111: 0 | AX111: 0 | AY111: 0 | AZ111: 0
D112: ='Efficiency Levels'!C69 -> EL6 | E112: ='Efficiency Levels'!D69 -> 3.69 | F112: 0 | H112: 0 | I112: 0 | J112: 0 | K112: 0 | L112: 0 | M112: 0 | N112: 0 | O112: =$F112 -> 0 | P112: 0 | Q112: 0 | R112: 0 | S112: 0 | T112: 0 | U112: 0 | V112: 0 | W112: 0 | X112: 0 | Y112: 0 | Z112: 0 | AA112: 0 | AB112: 0 | AC112: 0 | AD112: 0 | AE112: 0 | AF112: 0 | AG112: 0 | AH112: 0 | AI112: 0 | AJ112: 0 | AK112: 0 | AL112: 0 | AM112: 0 | AN112: 0 | AO112: 0 | AP112: 0 | AQ112: 0 | AR112: 0 | AS112: 0 | AT112: 0 | AU112: 0 | AV112: 0 | AW112: 0 | AX112: 0 | AY112: 0 | AZ112: 0
D113: TOTAL | F113: =SUM(F106:F112) -> 1 | H113: =SUM(H106:H112) -> 1 | I113: 1 | J113: 1 | K113: 1 | L113: 1 | M113: 1 | N113: 1 | O113: 1 | P113: 1 | Q113: 1 | R113: 1 | S113: 1 | T113: 1 | U113: 1 | V113: 1 | W113: 1 | X113: 1 | Y113: 1 | Z113: 1 | AA113: 1 | AB113: 1 | AC113: 1 | AD113: 1 | AE113: 1 | AF113: 1 | AG113: 1 | AH113: 1 | AI113: 1 | AJ113: 1 | AK113: 1 | AL113: 1 | AM113: 1 | AN113: 1 | AO113: 1 | AP113: 1 | AQ113: 1 | AR113: 1 | AS113: 1 | AT113: 1 | AU113: 1 | AV113: 1 | AW113: 1 | AX113: 1 | AY113: 1 | AZ113: 1
D115: POST-Case
D116: Efficiency Level | E116: EL (kWh/day) | H116: 1990 | I116: =H116+1 -> 1991 | J116: =I116+1 -> 1992 | K116: =J116+1 -> 1993 | L116: =K116+1 -> 1994 | M116: =L116+1 -> 1995 | N116: =M116+1 -> 1996 | O116: =N116+1 -> 1997 | P116: =O116+1 -> 1998 | Q116: =P116+1 -> 1999 | R116: =Q116+1 -> 2000 | S116: =R116+1 -> 2001 | T116: =S116+1 -> 2002 | U116: =T116+1 -> 2003 | V116: =U116+1 -> 2004 | W116: =V116+1 -> 2005 | X116: =X105 -> 2006 | Y116: 2007 | Z116: 2008 | AA116: 2009 | AB116: 2010 | AC116: 2011 | AD116: 2012 | AE116: 2013 | AF116: 2014 | AG116: 2015 | AH116: 2016 | AI116: 2017 | AJ116: 2018 | AK116: 2019 | AL116: 2020 | AM116: 2021 | AN116: 2022 | AO116: 2023 | AP116: 2024 | AQ116: 2025 | AR116: 2026 | AS116: 2027 | AT116: 2028 | AU116: 2029 | AV116: 2030 | AW116: 2031 | AX116: 2032 | AY116: 2033 | AZ116: 2034
D117: ='Efficiency Levels'!C63 -> EL0 | E117: ='Efficiency Levels'!D63 -> 4.96 | H117: =H106 -> 0.1 | I117: 0.1 | J117: 0.1 | K117: 0.1 | L117: 0.1 | M117: 0.1 | N117: 0.1 | O117: 0.1 | P117: 0.1 | Q117: 0.1 | R117: 0.1 | S117: 0.1 | T117: 0.1 | U117: 0.1 | V117: 0.1 | W117: 0.1 | X117: 0.1 | Y117: 0.1 | Z117: 0.1 | AA117: 0.1 | AB117: 0.1 | AC117: 0.1 | AD117: 0 | AE117: 0 | AF117: 0 | AG117: 0 | AH117: 0 | AI117: 0 | AJ117: 0 | AK117: 0 | AL117: 0 | AM117: 0 | AN117: 0 | AO117: 0 | AP117: 0 | AQ117: 0 | AR117: 0 | AS117: 0 | AT117: 0 | AU117: 0 | AV117: 0 | AW117: 0 | AX117: 0 | AY117: 0 | AZ117: 0
D118: ='Efficiency Levels'!C64 -> EL1 | E118: ='Efficiency Levels'!D64 -> 4.62 | H118: =H107 -> 0 | I118: 0 | J118: 0 | K118: 0 | L118: 0 | M118: 0 | N118: 0 | O118: 0 | P118: 0 | Q118: 0 | R118: 0 | S118: 0 | T118: 0 | U118: 0 | V118: 0 | W118: 0 | X118: 0 | Y118: 0 | Z118: 0 | AA118: 0 | AB118: 0 | AC118: 0 | AD118: 0 | AE118: 0 | AF118: 0 | AG118: 0 | AH118: 0 | AI118: 0 | AJ118: 0 | AK118: 0 | AL118: 0 | AM118: 0 | AN118: 0 | AO118: 0 | AP118: 0 | AQ118: 0 | AR118: 0 | AS118: 0 | AT118: 0 | AU118: 0 | AV118: 0 | AW118: 0 | AX118: 0 | AY118: 0 | AZ118: 0
D119: ='Efficiency Levels'!C65 -> EL2 | E119: ='Efficiency Levels'!D65 -> 4.31 | H119: =H108 -> 0.9 | I119: 0.9 | J119: 0.9 | K119: 0.9 | L119: 0.9 | M119: 0.9 | N119: 0.9 | O119: 0.9 | P119: 0.9 | Q119: 0.9 | R119: 0.9 | S119: 0.9 | T119: 0.9 | U119: 0.9 | V119: 0.9 | W119: 0.9 | X119: 0.9 | Y119: 0.9 | Z119: 0.9 | AA119: 0.9 | AB119: 0.9 | AC119: 0.9 | AD119: 0 | AE119: 0 | AF119: 0 | AG119: 0 | AH119: 0 | AI119: 0 | AJ119: 0 | AK119: 0 | AL119: 0 | AM119: 0 | AN119: 0 | AO119: 0 | AP119: 0 | AQ119: 0 | AR119: 0 | AS119: 0 | AT119: 0 | AU119: 0 | AV119: 0 | AW119: 0 | AX119: 0 | AY119: 0 | AZ119: 0
D120: ='Efficiency Levels'!C66 -> EL3 | E120: ='Efficiency Levels'!D66 -> 4.31 | H120: =H110 -> 0 | I120: 0 | J120: 0 | K120: 0 | L120: 0 | M120: 0 | N120: 0 | O120: 0 | P120: 0 | Q120: 0 | R120: 0 | S120: 0 | T120: 0 | U120: 0 | V120: 0 | W120: 0 | X120: 0 | Y120: 0 | Z120: 0 | AA120: 0 | AB120: 0 | AC120: 0 | AD120: 1 | AE120: 1 | AF120: 1 | AG120: 1 | AH120: 1 | AI120: 1 | AJ120: 1 | AK120: 1 | AL120: 1 | AM120: 1 | AN120: 1 | AO120: 1 | AP120: 1 | AQ120: 1 | AR120: 1 | AS120: 1 | AT120: 1 | AU120: 1 | AV120: 1 | AW120: 1 | AX120: 1 | AY120: 1 | AZ120: 1
D121: ='Efficiency Levels'!C67 -> EL4 | E121: ='Efficiency Levels'!D67 -> 4.28 | H121: 0 | I121: 0 | J121: 0 | K121: 0 | L121: 0 | M121: 0 | N121: 0 | O121: 0 | P121: 0 | Q121: 0 | R121: 0 | S121: 0 | T121: 0 | U121: 0 | V121: 0 | W121: 0 | X121: 0 | Y121: 0 | Z121: 0 | AA121: 0 | AB121: 0 | AC121: 0 | AD121: 0 | AE121: 0 | AF121: 0 | AG121: 0 | AH121: 0 | AI121: 0 | AJ121: 0 | AK121: 0 | AL121: 0 | AM121: 0 | AN121: 0 | AO121: 0 | AP121: 0 | AQ121: 0 | AR121: 0 | AS121: 0 | AT121: 0 | AU121: 0 | AV121: 0 | AW121: 0 | AX121: 0 | AY121: 0 | AZ121: 0
D122: ='Efficiency Levels'!C68 -> EL5 | E122: ='Efficiency Levels'!D68 -> 3.78 | H122: =H111 -> 0 | I122: 0 | J122: 0 | K122: 0 | L122: 0 | M122: 0 | N122: 0 | O122: 0 | P122: 0 | Q122: 0 | R122: 0 | S122: 0 | T122: 0 | U122: 0 | V122: 0 | W122: 0 | X122: 0 | Y122: 0 | Z122: 0 | AA122: 0 | AB122: 0 | AC122: 0 | AD122: 0 | AE122: 0 | AF122: 0 | AG122: 0 | AH122: 0 | AI122: 0 | AJ122: 0 | AK122: 0 | AL122: 0 | AM122: 0 | AN122: 0 | AO122: 0 | AP122: 0 | AQ122: 0 | AR122: 0 | AS122: 0 | AT122: 0 | AU122: 0 | AV122: 0 | AW122: 0 | AX122: 0 | AY122: 0 | AZ122: 0
D123: ='Efficiency Levels'!C69 -> EL6 | E123: ='Efficiency Levels'!D69 -> 3.69 | H123: =H112 -> 0 | I123: 0 | J123: 0 | K123: 0 | L123: 0 | M123: 0 | N123: 0 | O123: 0 | P123: 0 | Q123: 0 | R123: 0 | S123: 0 | T123: 0 | U123: 0 | V123: 0 | W123: 0 | X123: 0 | Y123: 0 | Z123: 0 | AA123: 0 | AB123: 0 | AC123: 0 | AD123: 0 | AE123: 0 | AF123: 0 | AG123: 0 | AH123: 0 | AI123: 0 | AJ123: 0 | AK123: 0 | AL123: 0 | AM123: 0 | AN123: 0 | AO123: 0 | AP123: 0 | AQ123: 0 | AR123: 0 | AS123: 0 | AT123: 0 | AU123: 0 | AV123: 0 | AW123: 0 | AX123: 0 | AY123: 0 | AZ123: 0
D124: TOTAL | H124: =SUM(H117:H123) -> 1 | I124: 1 | J124: 1 | K124: 1 | L124: 1 | M124: 1 | N124: 1 | O124: 1 | P124: 1 | Q124: 1 | R124: 1 | S124: 1 | T124: 1 | U124: 1 | V124: 1 | W124: 1 | X124: 1 | Y124: 1 | Z124: 1 | AA124: 1 | AB124: 1 | AC124: 1 | AD124: 1 | AE124: 1 | AF124: 1 | AG124: 1 | AH124: 1 | AI124: 1 | AJ124: 1 | AK124: 1 | AL124: 1 | AM124: 1 | AN124: 1 | AO124: 1 | AP124: 1 | AQ124: 1 | AR124: 1 | AS124: 1 | AT124: 1 | AU124: 1 | AV124: 1 | AW124: 1 | AX124: 1 | AY124: 1 | AZ124: 1
D126: Sources | E126: 1. DOE Refrigerated Beverage Vending Machines 2009 Direct Final Rule, Technical Support Document Chapter 13, Table 13.4.11 Distribution of Small-Sized Class B Equipment in 2012 at Each Trial Standard Level (page 13-14)
E127: 2. DOE Refrigerated Beverage Vending Machines 2009 Direct Final Rule GRIM, (based on NIA data from 2009 BVM Final Rule)
D131: ='Product Classes'!H14&" - "&OFFSET('Product Classes'!$C$9,MATCH('Product Classes'!H14,MODEL_PCS,0),0) -> PC5 - Class B- Medium (BMIO)
D133: PRE-Case | F133: Static Distribution
D134: Efficiency Level | E134: EL (kWh/day) | F134: 2006 | H134: 1990 | I134: =H134+1 -> 1991 | J134: =I134+1 -> 1992 | K134: =J134+1 -> 1993 | L134: =K134+1 -> 1994 | M134: =L134+1 -> 1995 | N134: =M134+1 -> 1996 | O134: =N134+1 -> 1997 | P134: =O134+1 -> 1998 | Q134: =P134+1 -> 1999 | R134: =Q134+1 -> 2000 | S134: =R134+1 -> 2001 | T134: =S134+1 -> 2002 | U134: =T134+1 -> 2003 | V134: =U134+1 -> 2004 | W134: =V134+1 -> 2005 | X134: =W134+1 -> 2006 | Y134: =X134+1 -> 2007 | Z134: =Y134+1 -> 2008 | AA134: =Z134+1 -> 2009 | AB134: =AA134+1 -> 2010 | AC134: =AB134+1 -> 2011 | AD134: =AC134+1 -> 2012 | AE134: =AD134+1 -> 2013 | AF134: =AE134+1 -> 2014 | AG134: =AF134+1 -> 2015 | AH134: =AG134+1 -> 2016 | AI134: =AH134+1 -> 2017 | AJ134: =AI134+1 -> 2018 | AK134: =AJ134+1 -> 2019 | AL134: =AK134+1 -> 2020 | AM134: =AL134+1 -> 2021 | AN134: =AM134+1 -> 2022 | AO134: =AN134+1 -> 2023 | AP134: =AO134+1 -> 2024 | AQ134: =AP134+1 -> 2025 | AR134: =AQ134+1 -> 2026 | AS134: =AR134+1 -> 2027 | AT134: =AS134+1 -> 2028 | AU134: =AT134+1 -> 2029 | AV134: =AU134+1 -> 2030 | AW134: =AV134+1 -> 2031 | AX134: =AW134+1 -> 2032 | AY134: =AX134+1 -> 2033 | AZ134: =AY134+1 -> 2034
D135: ='Efficiency Levels'!C79 -> EL0 | E135: ='Efficiency Levels'!D79 -> 5.56 | F135: 0.1 | H135: =$F135 -> 0.1 | I135: =$F135 -> 0.1 | J135: 0.1 | K135: 0.1 | L135: 0.1 | M135: 0.1 | N135: 0.1 | O135: 0.1 | P135: 0.1 | Q135: 0.1 | R135: 0.1 | S135: 0.1 | T135: 0.1 | U135: 0.1 | V135: 0.1 | W135: 0.1 | X135: 0.1 | Y135: 0.1 | Z135: 0.1 | AA135: 0.1 | AB135: 0.1 | AC135: 0.1 | AD135: 0 | AE135: 0 | AF135: 0 | AG135: 0 | AH135: 0 | AI135: 0 | AJ135: 0 | AK135: 0 | AL135: 0 | AM135: 0 | AN135: 0 | AO135: 0 | AP135: 0 | AQ135: 0 | AR135: 0 | AS135: 0 | AT135: 0 | AU135: 0 | AV135: 0 | AW135: 0 | AX135: 0 | AY135: 0 | AZ135: 0
D136: ='Efficiency Levels'!C80 -> EL1 | E136: ='Efficiency Levels'!D80 -> 5.2 | F136: 0 | H136: =$F136 -> 0 | I136: 0 | J136: 0 | K136: 0 | L136: 0 | M136: 0 | N136: 0 | O136: 0 | P136: 0 | Q136: 0 | R136: 0 | S136: 0 | T136: 0 | U136: 0 | V136: 0 | W136: 0 | X136: 0 | Y136: 0 | Z136: 0 | AA136: 0 | AB136: 0 | AC136: 0 | AD136: 0 | AE136: 0 | AF136: 0 | AG136: 0 | AH136: 0 | AI136: 0 | AJ136: 0 | AK136: 0 | AL136: 0 | AM136: 0 | AN136: 0 | AO136: 0 | AP136: 0 | AQ136: 0 | AR136: 0 | AS136: 0 | AT136: 0 | AU136: 0 | AV136: 0 | AW136: 0 | AX136: 0 | AY136: 0 | AZ136: 0
D137: ='Efficiency Levels'!C81 -> EL2 | E137: ='Efficiency Levels'!D81 -> 4.99 | F137: 0.9 | H137: 0.9 | I137: 0.9 | J137: 0.9 | K137: 0.9 | L137: 0.9 | M137: 0.9 | N137: 0.9 | O137: 0.9 | P137: 0.9 | Q137: 0.9 | R137: 0.9 | S137: 0.9 | T137: 0.9 | U137: 0.9 | V137: 0.9 | W137: 0.9 | X137: 0.9 | Y137: 0.9 | Z137: 0.9 | AA137: 0.9 | AB137: 0.9 | AC137: 0.9 | AD137: 0 | AE137: 0 | AF137: 0 | AG137: 0 | AH137: 0 | AI137: 0 | AJ137: 0 | AK137: 0 | AL137: 0 | AM137: 0 | AN137: 0 | AO137: 0 | AP137: 0 | AQ137: 0 | AR137: 0 | AS137: 0 | AT137: 0 | AU137: 0 | AV137: 0 | AW137: 0 | AX137: 0 | AY137: 0 | AZ137: 0
D138: ='Efficiency Levels'!C82 -> EL3 | E138: ='Efficiency Levels'!D82 -> 4.76 | F138: 0 | H138: 0 | I138: 0 | J138: 0 | K138: 0 | L138: 0 | M138: 0 | N138: 0 | O138: 0 | P138: 0 | Q138: 0 | R138: 0 | S138: 0 | T138: 0 | U138: 0 | V138: 0 | W138: 0 | X138: 0 | Y138: 0 | Z138: 0 | AA138: 0 | AB138: 0 | AC138: 0 | AD138: 1 | AE138: 1 | AF138: 1 | AG138: 1 | AH138: 1 | AI138: 1 | AJ138: 1 | AK138: 1 | AL138: 1 | AM138: 1 | AN138: 1 | AO138: 1 | AP138: 1 | AQ138: 1 | AR138: 1 | AS138: 1 | AT138: 1 | AU138: 1 | AV138: 1 | AW138: 1 | AX138: 1 | AY138: 1 | AZ138: 1
D139: ='Efficiency Levels'!C83 -> EL4 | E139: ='Efficiency Levels'!D83 -> 4.72 | F139: 0 | H139: 0 | I139: 0 | J139: 0 | K139: 0 | L139: 0 | M139: 0 | N139: 0 | O139: 0 | P139: 0 | Q139: 0 | R139: 0 | S139: 0 | T139: 0 | U139: 0 | V139: 0 | W139: 0 | X139: 0 | Y139: 0 | Z139: 0 | AA139: 0 | AB139: 0 | AC139: 0 | AD139: 0 | AE139: =$F139 -> 0 | AF139: 0 | AG139: 0 | AH139: 0 | AI139: 0 | AJ139: 0 | AK139: 0 | AL139: 0 | AM139: 0 | AN139: 0 | AO139: 0 | AP139: 0 | AQ139: 0 | AR139: 0 | AS139: 0 | AT139: 0 | AU139: =$F139 -> 0 | AV139: 0 | AW139: 0 | AX139: 0 | AY139: 0 | AZ139: 0
D140: ='Efficiency Levels'!C84 -> EL5 | E140: ='Efficiency Levels'!D84 -> 4.22 | F140: 0 | H140: 0 | I140: 0 | J140: 0 | K140: 0 | L140: 0 | M140: 0 | N140: 0 | O140: 0 | P140: 0 | Q140: 0 | R140: 0 | S140: 0 | T140: 0 | U140: 0 | V140: 0 | W140: 0 | X140: 0 | Y140: 0 | Z140: 0 | AA140: 0 | AB140: 0 | AC140: 0 | AD140: 0 | AE140: 0 | AF140: 0 | AG140: 0 | AH140: 0 | AI140: 0 | AJ140: 0 | AK140: 0 | AL140: 0 | AM140: 0 | AN140: 0 | AO140: 0 | AP140: 0 | AQ140: 0 | AR140: 0 | AS140: 0 | AT140: 0 | AU140: 0 | AV140: 0 | AW140: 0 | AX140: 0 | AY140: 0 | AZ140: 0
D141: ='Efficiency Levels'!C85 -> EL6 | E141: ='Efficiency Levels'!D85 -> 4.12 | F141: 0 | H141: 0 | I141: 0 | J141: 0 | K141: 0 | L141: 0 | M141: 0 | N141: 0 | O141: =$F141 -> 0 | P141: 0 | Q141: 0 | R141: 0 | S141: 0 | T141: 0 | U141: 0 | V141: 0 | W141: 0 | X141: 0 | Y141: 0 | Z141: 0 | AA141: 0 | AB141: 0 | AC141: 0 | AD141: 0 | AE141: 0 | AF141: 0 | AG141: 0 | AH141: 0 | AI141: 0 | AJ141: 0 | AK141: 0 | AL141: 0 | AM141: 0 | AN141: 0 | AO141: 0 | AP141: 0 | AQ141: 0 | AR141: 0 | AS141: 0 | AT141: 0 | AU141: 0 | AV141: 0 | AW141: 0 | AX141: 0 | AY141: 0 | AZ141: 0
D142: TOTAL | F142: =SUM(F135:F141) -> 1 | H142: =SUM(H135:H141) -> 1 | I142: 1 | J142: 1 | K142: 1 | L142: 1 | M142: 1 | N142: 1 | O142: 1 | P142: 1 | Q142: 1 | R142: 1 | S142: 1 | T142: 1 | U142: 1 | V142: 1 | W142: 1 | X142: 1 | Y142: 1 | Z142: 1 | AA142: 1 | AB142: 1 | AC142: 1 | AD142: 1 | AE142: 1 | AF142: 1 | AG142: 1 | AH142: 1 | AI142: 1 | AJ142: 1 | AK142: 1 | AL142: 1 | AM142: 1 | AN142: 1 | AO142: 1 | AP142: 1 | AQ142: 1 | AR142: 1 | AS142: 1 | AT142: 1 | AU142: 1 | AV142: 1 | AW142: 1 | AX142: 1 | AY142: 1 | AZ142: 1
D144: POST-Case
D145: Efficiency Level | E145: EL (kWh/day) | H145: 1990 | I145: =H145+1 -> 1991 | J145: =I145+1 -> 1992 | K145: =J145+1 -> 1993 | L145: =K145+1 -> 1994 | M145: =L145+1 -> 1995 | N145: =M145+1 -> 1996 | O145: =N145+1 -> 1997 | P145: =O145+1 -> 1998 | Q145: =P145+1 -> 1999 | R145: =Q145+1 -> 2000 | S145: =R145+1 -> 2001 | T145: =S145+1 -> 2002 | U145: =T145+1 -> 2003 | V145: =U145+1 -> 2004 | W145: =V145+1 -> 2005 | X145: =X134 -> 2006 | Y145: 2007 | Z145: 2008 | AA145: 2009 | AB145: 2010 | AC145: 2011 | AD145: 2012 | AE145: 2013 | AF145: 2014 | AG145: 2015 | AH145: 2016 | AI145: 2017 | AJ145: 2018 | AK145: 2019 | AL145: 2020 | AM145: 2021 | AN145: 2022 | AO145: 2023 | AP145: 2024 | AQ145: 2025 | AR145: 2026 | AS145: 2027 | AT145: 2028 | AU145: 2029 | AV145: 2030 | AW145: 2031 | AX145: 2032 | AY145: 2033 | AZ145: 2034
D146: ='Efficiency Levels'!C79 -> EL0 | E146: ='Efficiency Levels'!D79 -> 5.56 | H146: =H135 -> 0.1 | I146: 0.1 | J146: 0.1 | K146: 0.1 | L146: 0.1 | M146: 0.1 | N146: 0.1 | O146: 0.1 | P146: 0.1 | Q146: 0.1 | R146: 0.1 | S146: 0.1 | T146: 0.1 | U146: 0.1 | V146: 0.1 | W146: 0.1 | X146: 0.1 | Y146: 0.1 | Z146: 0.1 | AA146: 0.1 | AB146: 0.1 | AC146: 0.1 | AD146: 0 | AE146: 0 | AF146: 0 | AG146: 0 | AH146: 0 | AI146: 0 | AJ146: 0 | AK146: 0 | AL146: 0 | AM146: 0 | AN146: 0 | AO146: 0 | AP146: 0 | AQ146: 0 | AR146: 0 | AS146: 0 | AT146: 0 | AU146: 0 | AV146: 0 | AW146: 0 | AX146: 0 | AY146: 0 | AZ146: 0
D147: ='Efficiency Levels'!C80 -> EL1 | E147: ='Efficiency Levels'!D80 -> 5.2 | H147: =H136 -> 0 | I147: 0 | J147: 0 | K147: 0 | L147: 0 | M147: 0 | N147: 0 | O147: 0 | P147: 0 | Q147: 0 | R147: 0 | S147: 0 | T147: 0 | U147: 0 | V147: 0 | W147: 0 | X147: 0 | Y147: 0 | Z147: 0 | AA147: 0 | AB147: 0 | AC147: 0 | AD147: 0 | AE147: 0 | AF147: 0 | AG147: 0 | AH147: 0 | AI147: 0 | AJ147: 0 | AK147: 0 | AL147: 0 | AM147: 0 | AN147: 0 | AO147: 0 | AP147: 0 | AQ147: 0 | AR147: 0 | AS147: 0 | AT147: 0 | AU147: 0 | AV147: 0 | AW147: 0 | AX147: 0 | AY147: 0 | AZ147: 0
D148: ='Efficiency Levels'!C81 -> EL2 | E148: ='Efficiency Levels'!D81 -> 4.99 | H148: =H137 -> 0.9 | I148: 0.9 | J148: 0.9 | K148: 0.9 | L148: 0.9 | M148: 0.9 | N148: 0.9 | O148: 0.9 | P148: 0.9 | Q148: 0.9 | R148: 0.9 | S148: 0.9 | T148: 0.9 | U148: 0.9 | V148: 0.9 | W148: 0.9 | X148: 0.9 | Y148: 0.9 | Z148: 0.9 | AA148: 0.9 | AB148: 0.9 | AC148: 0.9 | AD148: 0 | AE148: 0 | AF148: 0 | AG148: 0 | AH148: 0 | AI148: 0 | AJ148: 0 | AK148: 0 | AL148: 0 | AM148: 0 | AN148: 0 | AO148: 0 | AP148: 0 | AQ148: 0 | AR148: 0 | AS148: 0 | AT148: 0 | AU148: 0 | AV148: 0 | AW148: 0 | AX148: 0 | AY148: 0 | AZ148: 0
D149: ='Efficiency Levels'!C82 -> EL3 | E149: ='Efficiency Levels'!D82 -> 4.76 | H149: =H139 -> 0 | I149: 0 | J149: 0 | K149: 0 | L149: 0 | M149: 0 | N149: 0 | O149: 0 | P149: 0 | Q149: 0 | R149: 0 | S149: 0 | T149: 0 | U149: 0 | V149: 0 | W149: 0 | X149: 0 | Y149: 0 | Z149: 0 | AA149: 0 | AB149: 0 | AC149: 0 | AD149: 1 | AE149: 1 | AF149: 1 | AG149: 1 | AH149: 1 | AI149: 1 | AJ149: 1 | AK149: 1 | AL149: 1 | AM149: 1 | AN149: 1 | AO149: 1 | AP149: 1 | AQ149: 1 | AR149: 1 | AS149: 1 | AT149: 1 | AU149: 1 | AV149: 1 | AW149: 1 | AX149: 1 | AY149: 1 | AZ149: 1
D150: ='Efficiency Levels'!C83 -> EL4 | E150: ='Efficiency Levels'!D83 -> 4.72 | H150: 0 | I150: 0 | J150: 0 | K150: 0 | L150: 0 | M150: 0 | N150: 0 | O150: 0 | P150: 0 | Q150: 0 | R150: 0 | S150: 0 | T150: 0 | U150: 0 | V150: 0 | W150: 0 | X150: 0 | Y150: 0 | Z150: 0 | AA150: 0 | AB150: 0 | AC150: 0 | AD150: 0 | AE150: 0 | AF150: 0 | AG150: 0 | AH150: 0 | AI150: 0 | AJ150: 0 | AK150: 0 | AL150: 0 | AM150: 0 | AN150: 0 | AO150: 0 | AP150: 0 | AQ150: 0 | AR150: 0 | AS150: 0 | AT150: 0 | AU150: 0 | AV150: 0 | AW150: 0 | AX150: 0 | AY150: 0 | AZ150: 0
D151: ='Efficiency Levels'!C84 -> EL5 | E151: ='Efficiency Levels'!D84 -> 4.22 | H151: =H140 -> 0 | I151: 0 | J151: 0 | K151: 0 | L151: 0 | M151: 0 | N151: 0 | O151: 0 | P151: 0 | Q151: 0 | R151: 0 | S151: 0 | T151: 0 | U151: 0 | V151: 0 | W151: 0 | X151: 0 | Y151: 0 | Z151: 0 | AA151: 0 | AB151: 0 | AC151: 0 | AD151: 0 | AE151: 0 | AF151: 0 | AG151: 0 | AH151: 0 | AI151: 0 | AJ151: 0 | AK151: 0 | AL151: 0 | AM151: 0 | AN151: 0 | AO151: 0 | AP151: 0 | AQ151: 0 | AR151: 0 | AS151: 0 | AT151: 0 | AU151: 0 | AV151: 0 | AW151: 0 | AX151: 0 | AY151: 0 | AZ151: 0
D152: ='Efficiency Levels'!C85 -> EL6 | E152: ='Efficiency Levels'!D85 -> 4.12 | H152: =H141 -> 0 | I152: 0 | J152: 0 | K152: 0 | L152: 0 | M152: 0 | N152: 0 | O152: 0 | P152: 0 | Q152: 0 | R152: 0 | S152: 0 | T152: 0 | U152: 0 | V152: 0 | W152: 0 | X152: 0 | Y152: 0 | Z152: 0 | AA152: 0 | AB152: 0 | AC152: 0 | AD152: 0 | AE152: 0 | AF152: 0 | AG152: 0 | AH152: 0 | AI152: 0 | AJ152: 0 | AK152: 0 | AL152: 0 | AM152: 0 | AN152: 0 | AO152: 0 | AP152: 0 | AQ152: 0 | AR152: 0 | AS152: 0 | AT152: 0 | AU152: 0 | AV152: 0 | AW152: 0 | AX152: 0 | AY152: 0 | AZ152: 0
D153: TOTAL | H153: =SUM(H146:H152) -> 1 | I153: 1 | J153: 1 | K153: 1 | L153: 1 | M153: 1 | N153: 1 | O153: 1 | P153: 1 | Q153: 1 | R153: 1 | S153: 1 | T153: 1 | U153: 1 | V153: 1 | W153: 1 | X153: 1 | Y153: 1 | Z153: 1 | AA153: 1 | AB153: 1 | AC153: 1 | AD153: 1 | AE153: 1 | AF153: 1 | AG153: 1 | AH153: 1 | AI153: 1 | AJ153: 1 | AK153: 1 | AL153: 1 | AM153: 1 | AN153: 1 | AO153: 1 | AP153: 1 | AQ153: 1 | AR153: 1 | AS153: 1 | AT153: 1 | AU153: 1 | AV153: 1 | AW153: 1 | AX153: 1 | AY153: 1 | AZ153: 1
D155: Sources | E155: 1. DOE Refrigerated Beverage Vending Machines 2009 Direct Final Rule, Technical Support Document Chapter 13, Table 13.4.12 Distribution of Medium-Sized Class B Equipment in 2012 at Each Trial Standard Level (page 13-14)
E156: 2. DOE Refrigerated Beverage Vending Machines 2009 Direct Final Rule GRIM, (based on NIA data from 2009 BVM Final Rule)
D160: ='Product Classes'!H15&" - "&OFFSET('Product Classes'!$C$9,MATCH('Product Classes'!H15,MODEL_PCS,0),0) -> PC6 - Class B- Large (BLIO)
D162: PRE-Case | F162: Static Distribution
D163: Efficiency Level | E163: EL (kWh/day) | F163: 2006 | H163: 1990 | I163: =H163+1 -> 1991 | J163: =I163+1 -> 1992 | K163: =J163+1 -> 1993 | L163: =K163+1 -> 1994 | M163: =L163+1 -> 1995 | N163: =M163+1 -> 1996 | O163: =N163+1 -> 1997 | P163: =O163+1 -> 1998 | Q163: =P163+1 -> 1999 | R163: =Q163+1 -> 2000 | S163: =R163+1 -> 2001 | T163: =S163+1 -> 2002 | U163: =T163+1 -> 2003 | V163: =U163+1 -> 2004 | W163: =V163+1 -> 2005 | X163: =W163+1 -> 2006 | Y163: =X163+1 -> 2007 | Z163: =Y163+1 -> 2008 | AA163: =Z163+1 -> 2009 | AB163: =AA163+1 -> 2010 | AC163: =AB163+1 -> 2011 | AD163: =AC163+1 -> 2012 | AE163: =AD163+1 -> 2013 | AF163: =AE163+1 -> 2014 | AG163: =AF163+1 -> 2015 | AH163: =AG163+1 -> 2016 | AI163: =AH163+1 -> 2017 | AJ163: =AI163+1 -> 2018 | AK163: =AJ163+1 -> 2019 | AL163: =AK163+1 -> 2020 | AM163: =AL163+1 -> 2021 | AN163: =AM163+1 -> 2022 | AO163: =AN163+1 -> 2023 | AP163: =AO163+1 -> 2024 | AQ163: =AP163+1 -> 2025 | AR163: =AQ163+1 -> 2026 | AS163: =AR163+1 -> 2027 | AT163: =AS163+1 -> 2028 | AU163: =AT163+1 -> 2029 | AV163: =AU163+1 -> 2030 | AW163: =AV163+1 -> 2031 | AX163: =AW163+1 -> 2032 | AY163: =AX163+1 -> 2033 | AZ163: =AY163+1 -> 2034
D164: ='Efficiency Levels'!C95 -> EL0 | E164: ='Efficiency Levels'!D95 -> 5.85 | F164: 0.1 | H164: =$F164 -> 0.1 | I164: =$F164 -> 0.1 | J164: 0.1 | K164: 0.1 | L164: 0.1 | M164: 0.1 | N164: 0.1 | O164: 0.1 | P164: 0.1 | Q164: 0.1 | R164: 0.1 | S164: 0.1 | T164: 0.1 | U164: 0.1 | V164: 0.1 | W164: 0.1 | X164: 0.1 | Y164: 0.1 | Z164: 0.1 | AA164: 0.1 | AB164: 0.1 | AC164: 0.1 | AD164: 0 | AE164: 0 | AF164: 0 | AG164: 0 | AH164: 0 | AI164: 0 | AJ164: 0 | AK164: 0 | AL164: 0 | AM164: 0 | AN164: 0 | AO164: 0 | AP164: 0 | AQ164: 0 | AR164: 0 | AS164: 0 | AT164: 0 | AU164: 0 | AV164: 0 | AW164: 0 | AX164: 0 | AY164: 0 | AZ164: 0
D165: ='Efficiency Levels'!C96 -> EL1 | E165: ='Efficiency Levels'!D96 -> 5.48 | F165: 0 | H165: =$F165 -> 0 | I165: 0 | J165: 0 | K165: 0 | L165: 0 | M165: 0 | N165: 0 | O165: 0 | P165: 0 | Q165: 0 | R165: 0 | S165: 0 | T165: 0 | U165: 0 | V165: 0 | W165: 0 | X165: 0 | Y165: 0 | Z165: 0 | AA165: 0 | AB165: 0 | AC165: 0 | AD165: 0 | AE165: 0 | AF165: 0 | AG165: 0 | AH165: 0 | AI165: 0 | AJ165: 0 | AK165: 0 | AL165: 0 | AM165: 0 | AN165: 0 | AO165: 0 | AP165: 0 | AQ165: 0 | AR165: 0 | AS165: 0 | AT165: 0 | AU165: 0 | AV165: 0 | AW165: 0 | AX165: 0 | AY165: 0 | AZ165: 0
D166: ='Efficiency Levels'!C97 -> EL2 | E166: ='Efficiency Levels'!D97 -> 5.33 | F166: 0.9 | H166: 0.9 | I166: 0.9 | J166: 0.9 | K166: 0.9 | L166: 0.9 | M166: 0.9 | N166: 0.9 | O166: 0.9 | P166: 0.9 | Q166: 0.9 | R166: 0.9 | S166: 0.9 | T166: 0.9 | U166: 0.9 | V166: 0.9 | W166: 0.9 | X166: 0.9 | Y166: 0.9 | Z166: 0.9 | AA166: 0.9 | AB166: 0.9 | AC166: 0.9 | AD166: 0 | AE166: 0 | AF166: 0 | AG166: 0 | AH166: 0 | AI166: 0 | AJ166: 0 | AK166: 0 | AL166: 0 | AM166: 0 | AN166: 0 | AO166: 0 | AP166: 0 | AQ166: 0 | AR166: 0 | AS166: 0 | AT166: 0 | AU166: 0 | AV166: 0 | AW166: 0 | AX166: 0 | AY166: 0 | AZ166: 0
D167: ='Efficiency Levels'!C98 -> EL3 | E167: ='Efficiency Levels'!D98 -> 5.07 | F167: 0 | H167: 0 | I167: 0 | J167: 0 | K167: 0 | L167: 0 | M167: 0 | N167: 0 | O167: 0 | P167: 0 | Q167: 0 | R167: 0 | S167: 0 | T167: 0 | U167: 0 | V167: 0 | W167: 0 | X167: 0 | Y167: 0 | Z167: 0 | AA167: 0 | AB167: 0 | AC167: 0 | AD167: 1 | AE167: 1 | AF167: 1 | AG167: 1 | AH167: 1 | AI167: 1 | AJ167: 1 | AK167: 1 | AL167: 1 | AM167: 1 | AN167: 1 | AO167: 1 | AP167: 1 | AQ167: 1 | AR167: 1 | AS167: 1 | AT167: 1 | AU167: 1 | AV167: 1 | AW167: 1 | AX167: 1 | AY167: 1 | AZ167: 1
D168: ='Efficiency Levels'!C99 -> EL4 | E168: ='Efficiency Levels'!D99 -> 5.03 | F168: 0 | H168: 0 | I168: 0 | J168: 0 | K168: 0 | L168: 0 | M168: 0 | N168: 0 | O168: 0 | P168: 0 | Q168: 0 | R168: 0 | S168: 0 | T168: 0 | U168: 0 | V168: 0 | W168: 0 | X168: 0 | Y168: 0 | Z168: 0 | AA168: 0 | AB168: 0 | AC168: 0 | AD168: 0 | AE168: =$F168 -> 0 | AF168: 0 | AG168: 0 | AH168: 0 | AI168: 0 | AJ168: 0 | AK168: 0 | AL168: 0 | AM168: 0 | AN168: 0 | AO168: 0 | AP168: 0 | AQ168: 0 | AR168: 0 | AS168: 0 | AT168: 0 | AU168: =$F168 -> 0 | AV168: 0 | AW168: 0 | AX168: 0 | AY168: 0 | AZ168: 0
D169: ='Efficiency Levels'!C100 -> EL5 | E169: ='Efficiency Levels'!D100 -> 4.52 | F169: 0 | H169: 0 | I169: 0 | J169: 0 | K169: 0 | L169: 0 | M169: 0 | N169: 0 | O169: 0 | P169: 0 | Q169: 0 | R169: 0 | S169: 0 | T169: 0 | U169: 0 | V169: 0 | W169: 0 | X169: 0 | Y169: 0 | Z169: 0 | AA169: 0 | AB169: 0 | AC169: 0 | AD169: 0 | AE169: 0 | AF169: 0 | AG169: 0 | AH169: 0 | AI169: 0 | AJ169: 0 | AK169: 0 | AL169: 0 | AM169: 0 | AN169: 0 | AO169: 0 | AP169: 0 | AQ169: 0 | AR169: 0 | AS169: 0 | AT169: 0 | AU169: 0 | AV169: 0 | AW169: 0 | AX169: 0 | AY169: 0 | AZ169: 0
D170: ='Efficiency Levels'!C101 -> EL6 | E170: ='Efficiency Levels'!D101 -> 4.41 | F170: 0 | H170: 0 | I170: 0 | J170: 0 | K170: 0 | L170: 0 | M170: 0 | N170: 0 | O170: =$F170 -> 0 | P170: 0 | Q170: 0 | R170: 0 | S170: 0 | T170: 0 | U170: 0 | V170: 0 | W170: 0 | X170: 0 | Y170: 0 | Z170: 0 | AA170: 0 | AB170: 0 | AC170: 0 | AD170: 0 | AE170: 0 | AF170: 0 | AG170: 0 | AH170: 0 | AI170: 0 | AJ170: 0 | AK170: 0 | AL170: 0 | AM170: 0 | AN170: 0 | AO170: 0 | AP170: 0 | AQ170: 0 | AR170: 0 | AS170: 0 | AT170: 0 | AU170: 0 | AV170: 0 | AW170: 0 | AX170: 0 | AY170: 0 | AZ170: 0
D171: TOTAL | F171: =SUM(F164:F170) -> 1 | H171: =SUM(H164:H170) -> 1 | I171: 1 | J171: 1 | K171: 1 | L171: 1 | M171: 1 | N171: 1 | O171: 1 | P171: 1 | Q171: 1 | R171: 1 | S171: 1 | T171: 1 | U171: 1 | V171: 1 | W171: 1 | X171: 1 | Y171: 1 | Z171: 1 | AA171: 1 | AB171: 1 | AC171: 1 | AD171: 1 | AE171: 1 | AF171: 1 | AG171: 1 | AH171: 1 | AI171: 1 | AJ171: 1 | AK171: 1 | AL171: 1 | AM171: 1 | AN171: 1 | AO171: 1 | AP171: 1 | AQ171: 1 | AR171: 1 | AS171: 1 | AT171: 1 | AU171: 1 | AV171: 1 | AW171: 1 | AX171: 1 | AY171: 1 | AZ171: 1
D173: POST-Case
D174: Efficiency Level | E174: EL (kWh/day) | H174: 1990 | I174: =H174+1 -> 1991 | J174: =I174+1 -> 1992 | K174: =J174+1 -> 1993 | L174: =K174+1 -> 1994 | M174: =L174+1 -> 1995 | N174: =M174+1 -> 1996 | O174: =N174+1 -> 1997 | P174: =O174+1 -> 1998 | Q174: =P174+1 -> 1999 | R174: =Q174+1 -> 2000 | S174: =R174+1 -> 2001 | T174: =S174+1 -> 2002 | U174: =T174+1 -> 2003 | V174: =U174+1 -> 2004 | W174: =V174+1 -> 2005 | X174: =X163 -> 2006 | Y174: 2007 | Z174: 2008 | AA174: 2009 | AB174: 2010 | AC174: 2011 | AD174: 2012 | AE174: 2013 | AF174: 2014 | AG174: 2015 | AH174: 2016 | AI174: 2017 | AJ174: 2018 | AK174: 2019 | AL174: 2020 | AM174: 2021 | AN174: 2022 | AO174: 2023 | AP174: 2024 | AQ174: 2025 | AR174: 2026 | AS174: 2027 | AT174: 2028 | AU174: 2029 | AV174: 2030 | AW174: 2031 | AX174: 2032 | AY174: 2033 | AZ174: 2034
D175: ='Efficiency Levels'!C95 -> EL0 | E175: ='Efficiency Levels'!D95 -> 5.85 | H175: =H164 -> 0.1 | I175: 0.1 | J175: 0.1 | K175: 0.1 | L175: 0.1 | M175: 0.1 | N175: 0.1 | O175: 0.1 | P175: 0.1 | Q175: 0.1 | R175: 0.1 | S175: 0.1 | T175: 0.1 | U175: 0.1 | V175: 0.1 | W175: 0.1 | X175: 0.1 | Y175: 0.1 | Z175: 0.1 | AA175: 0.1 | AB175: 0.1 | AC175: 0.1 | AD175: 0 | AE175: 0 | AF175: 0 | AG175: 0 | AH175: 0 | AI175: 0 | AJ175: 0 | AK175: 0 | AL175: 0 | AM175: 0 | AN175: 0 | AO175: 0 | AP175: 0 | AQ175: 0 | AR175: 0 | AS175: 0 | AT175: 0 | AU175: 0 | AV175: 0 | AW175: 0 | AX175: 0 | AY175: 0 | AZ175: 0
D176: ='Efficiency Levels'!C96 -> EL1 | E176: ='Efficiency Levels'!D96 -> 5.48 | H176: =H165 -> 0 | I176: 0 | J176: 0 | K176: 0 | L176: 0 | M176: 0 | N176: 0 | O176: 0 | P176: 0 | Q176: 0 | R176: 0 | S176: 0 | T176: 0 | U176: 0 | V176: 0 | W176: 0 | X176: 0 | Y176: 0 | Z176: 0 | AA176: 0 | AB176: 0 | AC176: 0 | AD176: 0 | AE176: 0 | AF176: 0 | AG176: 0 | AH176: 0 | AI176: 0 | AJ176: 0 | AK176: 0 | AL176: 0 | AM176: 0 | AN176: 0 | AO176: 0 | AP176: 0 | AQ176: 0 | AR176: 0 | AS176: 0 | AT176: 0 | AU176: 0 | AV176: 0 | AW176: 0 | AX176: 0 | AY176: 0 | AZ176: 0
D177: ='Efficiency Levels'!C97 -> EL2 | E177: ='Efficiency Levels'!D97 -> 5.33 | H177: =H166 -> 0.9 | I177: 0.9 | J177: 0.9 | K177: 0.9 | L177: 0.9 | M177: 0.9 | N177: 0.9 | O177: 0.9 | P177: 0.9 | Q177: 0.9 | R177: 0.9 | S177: 0.9 | T177: 0.9 | U177: 0.9 | V177: 0.9 | W177: 0.9 | X177: 0.9 | Y177: 0.9 | Z177: 0.9 | AA177: 0.9 | AB177: 0.9 | AC177: 0.9 | AD177: 0 | AE177: 0 | AF177: 0 | AG177: 0 | AH177: 0 | AI177: 0 | AJ177: 0 | AK177: 0 | AL177: 0 | AM177: 0 | AN177: 0 | AO177: 0 | AP177: 0 | AQ177: 0 | AR177: 0 | AS177: 0 | AT177: 0 | AU177: 0 | AV177: 0 | AW177: 0 | AX177: 0 | AY177: 0 | AZ177: 0
D178: ='Efficiency Levels'!C98 -> EL3 | E178: ='Efficiency Levels'!D98 -> 5.07 | H178: =H168 -> 0 | I178: 0 | J178: 0 | K178: 0 | L178: 0 | M178: 0 | N178: 0 | O178: 0 | P178: 0 | Q178: 0 | R178: 0 | S178: 0 | T178: 0 | U178: 0 | V178: 0 | W178: 0 | X178: 0 | Y178: 0 | Z178: 0 | AA178: 0 | AB178: 0 | AC178: 0 | AD178: 1 | AE178: 1 | AF178: 1 | AG178: 1 | AH178: 1 | AI178: 1 | AJ178: 1 | AK178: 1 | AL178: 1 | AM178: 1 | AN178: 1 | AO178: 1 | AP178: 1 | AQ178: 1 | AR178: 1 | AS178: 1 | AT178: 1 | AU178: 1 | AV178: 1 | AW178: 1 | AX178: 1 | AY178: 1 | AZ178: 1
D179: ='Efficiency Levels'!C99 -> EL4 | E179: ='Efficiency Levels'!D99 -> 5.03 | H179: 0 | I179: 0 | J179: 0 | K179: 0 | L179: 0 | M179: 0 | N179: 0 | O179: 0 | P179: 0 | Q179: 0 | R179: 0 | S179: 0 | T179: 0 | U179: 0 | V179: 0 | W179: 0 | X179: 0 | Y179: 0 | Z179: 0 | AA179: 0 | AB179: 0 | AC179: 0 | AD179: 0 | AE179: 0 | AF179: 0 | AG179: 0 | AH179: 0 | AI179: 0 | AJ179: 0 | AK179: 0 | AL179: 0 | AM179: 0 | AN179: 0 | AO179: 0 | AP179: 0 | AQ179: 0 | AR179: 0 | AS179: 0 | AT179: 0 | AU179: 0 | AV179: 0 | AW179: 0 | AX179: 0 | AY179: 0 | AZ179: 0
D180: ='Efficiency Levels'!C100 -> EL5 | E180: ='Efficiency Levels'!D100 -> 4.52 | H180: =H169 -> 0 | I180: 0 | J180: 0 | K180: 0 | L180: 0 | M180: 0 | N180: 0 | O180: 0 | P180: 0 | Q180: 0 | R180: 0 | S180: 0 | T180: 0 | U180: 0 | V180: 0 | W180: 0 | X180: 0 | Y180: 0 | Z180: 0 | AA180: 0 | AB180: 0 | AC180: 0 | AD180: 0 | AE180: 0 | AF180: 0 | AG180: 0 | AH180: 0 | AI180: 0 | AJ180: 0 | AK180: 0 | AL180: 0 | AM180: 0 | AN180: 0 | AO180: 0 | AP180: 0 | AQ180: 0 | AR180: 0 | AS180: 0 | AT180: 0 | AU180: 0 | AV180: 0 | AW180: 0 | AX180: 0 | AY180: 0 | AZ180: 0
D181: ='Efficiency Levels'!C101 -> EL6 | E181: ='Efficiency Levels'!D101 -> 4.41 | H181: =H170 -> 0 | I181: 0 | J181: 0 | K181: 0 | L181: 0 | M181: 0 | N181: 0 | O181: 0 | P181: 0 | Q181: 0 | R181: 0 | S181: 0 | T181: 0 | U181: 0 | V181: 0 | W181: 0 | X181: 0 | Y181: 0 | Z181: 0 | AA181: 0 | AB181: 0 | AC181: 0 | AD181: 0 | AE181: 0 | AF181: 0 | AG181: 0 | AH181: 0 | AI181: 0 | AJ181: 0 | AK181: 0 | AL181: 0 | AM181: 0 | AN181: 0 | AO181: 0 | AP181: 0 | AQ181: 0 | AR181: 0 | AS181: 0 | AT181: 0 | AU181: 0 | AV181: 0 | AW181: 0 | AX181: 0 | AY181: 0 | AZ181: 0
D182: TOTAL | H182: =SUM(H175:H181) -> 1 | I182: 1 | J182: 1 | K182: 1 | L182: 1 | M182: 1 | N182: 1 | O182: 1 | P182: 1 | Q182: 1 | R182: 1 | S182: 1 | T182: 1 | U182: 1 | V182: 1 | W182: 1 | X182: 1 | Y182: 1 | Z182: 1 | AA182: 1 | AB182: 1 | AC182: 1 | AD182: 1 | AE182: 1 | AF182: 1 | AG182: 1 | AH182: 1 | AI182: 1 | AJ182: 1 | AK182: 1 | AL182: 1 | AM182: 1 | AN182: 1 | AO182: 1 | AP182: 1 | AQ182: 1 | AR182: 1 | AS182: 1 | AT182: 1 | AU182: 1 | AV182: 1 | AW182: 1 | AX182: 1 | AY182: 1 | AZ182: 1
D184: Sources | E184: 1. DOE Refrigerated Beverage Vending Machines 2009 Direct Final Rule, Technical Support Document Chapter 13, Table 13.4.13 Distribution of Large-Sized Class B Equipment in 2012 at Each Trial Standard Level (page 13-15)
E185: 2. DOE Refrigerated Beverage Vending Machines 2009 Direct Final Rule GRIM, (based on NIA data from 2009 BVM Final Rule)

Sheet Shipments and Stock
C2: Shipments and Stock
C4: NAVIGATION
C6: COMMENTS
C8: Building Type
C9: =RESULTS!$C$9 -> TOTAL
C12: Beverage_Vending_Machines
E13: 1987 | F13: 1988 | G13: 1989 | H13: 1990 | I13: 1991 | J13: 1992 | K13: 1993 | L13: 1994 | M13: 1995 | N13: 1996 | O13: 1997 | P13: 1998 | Q13: 1999 | R13: 2000 | S13: 2001 | T13: 2002 | U13: 2003 | V13: 2004 | W13: 2005 | X13: 2006 | Y13: 2007 | Z13: 2008 | AA13: 2009 | AB13: 2010 | AC13: 2011 | AD13: 2012 | AE13: 2013 | AF13: 2014 | AG13: 2015 | AH13: 2016 | AI13: 2017 | AJ13: 2018 | AK13: 2019 | AL13: 2020 | AM13: 2021 | AN13: 2022 | AO13: 2023 | AP13: 2024 | AQ13: 2025 | AR13: 2026 | AS13: 2027 | AT13: 2028 | AU13: 2029 | AV13: 2030 | AW13: 2031 | AX13: 2032 | AY13: 2033 | AZ13: 2034
C14: 6P Shipments | D14: (units) | E14: pre-dates plan | F14: pre-dates plan | G14: pre-dates plan | H14: pre-dates plan | I14: pre-dates plan | J14: pre-dates plan | K14: pre-dates plan | L14: pre-dates plan | M14: pre-dates plan | N14: pre-dates plan | O14: pre-dates plan | P14: pre-dates plan | Q14: pre-dates plan | R14: pre-dates plan | S14: pre-dates plan | T14: pre-dates plan | U14: pre-dates plan | V14: pre-dates plan | W14: pre-dates plan | X14: pre-dates plan | Y14: pre-dates plan | Z14: pre-dates plan | AA14: pre-dates plan | AB14: =INDEX('[1]6P Shipments'!$D$11:$L$35,MATCH(AB$13,'[1]6P Shipments'!$C$11:$C$35,0),MATCH($C$12,'[1]6P Shipments'!$D$10:$L$10,0)) -> 10421.2159 | AC14: =INDEX('[1]6P Shipments'!$D$11:$L$35,MATCH(AC$13,'[1]6P Shipments'!$C$11:$C$35,0),MATCH($C$12,'[1]6P Shipments'!$D$10:$L$10,0)) -> 10312.07222 | AD14: =INDEX('[1]6P Shipments'!$D$11:$L$35,MATCH(AD$13,'[1]6P Shipments'!$C$11:$C$35,0),MATCH($C$12,'[1]6P Shipments'!$D$10:$L$10,0)) -> 10229.80966 | AE14: =INDEX('[1]6P Shipments'!$D$11:$L$35,MATCH(AE$13,'[1]6P Shipments'!$C$11:$C$35,0),MATCH($C$12,'[1]6P Shipments'!$D$10:$L$10,0)) -> 10220.46986 | AF14: =INDEX('[1]6P Shipments'!$D$11:$L$35,MATCH(AF$13,'[1]6P Shipments'!$C$11:$C$35,0),MATCH($C$12,'[1]6P Shipments'!$D$10:$L$10,0)) -> 10181.73526 | AG14: =INDEX('[1]6P Shipments'!$D$11:$L$35,MATCH(AG$13,'[1]6P Shipments'!$C$11:$C$35,0),MATCH($C$12,'[1]6P Shipments'!$D$10:$L$10,0)) -> 10151.28197 | AH14: =INDEX('[1]6P Shipments'!$D$11:$L$35,MATCH(AH$13,'[1]6P Shipments'!$C$11:$C$35,0),MATCH($C$12,'[1]6P Shipments'!$D$10:$L$10,0)) -> 10134.79561 | AI14: =INDEX('[1]6P Shipments'!$D$11:$L$35,MATCH(AI$13,'[1]6P Shipments'!$C$11:$C$35,0),MATCH($C$12,'[1]6P Shipments'!$D$10:$L$10,0)) -> 10237.56352 | AJ14: =INDEX('[1]6P Shipments'!$D$11:$L$35,MATCH(AJ$13,'[1]6P Shipments'!$C$11:$C$35,0),MATCH($C$12,'[1]6P Shipments'!$D$10:$L$10,0)) -> 10305.27479 | AK14: =INDEX('[1]6P Shipments'!$D$11:$L$35,MATCH(AK$13,'[1]6P Shipments'!$C$11:$C$35,0),MATCH($C$12,'[1]6P Shipments'!$D$10:$L$10,0)) -> 10397.22029 | AL14: =INDEX('[1]6P Shipments'!$D$11:$L$35,MATCH(AL$13,'[1]6P Shipments'!$C$11:$C$35,0),MATCH($C$12,'[1]6P Shipments'!$D$10:$L$10,0)) -> 10522.6927 | AM14: =INDEX('[1]6P Shipments'!$D$11:$L$35,MATCH(AM$13,'[1]6P Shipments'!$C$11:$C$35,0),MATCH($C$12,'[1]6P Shipments'!$D$10:$L$10,0)) -> 10707.37855 | AN14: =INDEX('[1]6P Shipments'!$D$11:$L$35,MATCH(AN$13,'[1]6P Shipments'!$C$11:$C$35,0),MATCH($C$12,'[1]6P Shipments'!$D$10:$L$10,0)) -> 10851.35812 | AO14: =INDEX('[1]6P Shipments'!$D$11:$L$35,MATCH(AO$13,'[1]6P Shipments'!$C$11:$C$35,0),MATCH($C$12,'[1]6P Shipments'!$D$10:$L$10,0)) -> 10914.66529 | AP14: =INDEX('[1]6P Shipments'!$D$11:$L$35,MATCH(AP$13,'[1]6P Shipments'!$C$11:$C$35,0),MATCH($C$12,'[1]6P Shipments'!$D$10:$L$10,0)) -> 10994.93539 | AQ14: =INDEX('[1]6P Shipments'!$D$11:$L$35,MATCH(AQ$13,'[1]6P Shipments'!$C$11:$C$35,0),MATCH($C$12,'[1]6P Shipments'!$D$10:$L$10,0)) -> 11101.7893 | AR14: =INDEX('[1]6P Shipments'!$D$11:$L$35,MATCH(AR$13,'[1]6P Shipments'!$C$11:$C$35,0),MATCH($C$12,'[1]6P Shipments'!$D$10:$L$10,0)) -> 11221.52909 | AS14: =INDEX('[1]6P Shipments'!$D$11:$L$35,MATCH(AS$13,'[1]6P Shipments'!$C$11:$C$35,0),MATCH($C$12,'[1]6P Shipments'!$D$10:$L$10,0)) -> 11325.45007 | AT14: =INDEX('[1]6P Shipments'!$D$11:$L$35,MATCH(AT$13,'[1]6P Shipments'!$C$11:$C$35,0),MATCH($C$12,'[1]6P Shipments'!$D$10:$L$10,0)) -> 11444.28868 | AU14: =INDEX('[1]6P Shipments'!$D$11:$L$35,MATCH(AU$13,'[1]6P Shipments'!$C$11:$C$35,0),MATCH($C$12,'[1]6P Shipments'!$D$10:$L$10,0)) -> 11573.17445 | AV14: =INDEX('[1]6P Shipments'!$D$11:$L$35,MATCH(AV$13,'[1]6P Shipments'!$C$11:$C$35,0),MATCH($C$12,'[1]6P Shipments'!$D$10:$L$10,0)) -> 11704.63794 | AW14: =INDEX('[1]6P Shipments'!$D$11:$L$35,MATCH(AW$13,'[1]6P Shipments'!$C$11:$C$35,0),MATCH($C$12,'[1]6P Shipments'!$D$10:$L$10,0)) -> 11704.63794 | AX14: =INDEX('[1]6P Shipments'!$D$11:$L$35,MATCH(AX$13,'[1]6P Shipments'!$C$11:$C$35,0),MATCH($C$12,'[1]6P Shipments'!$D$10:$L$10,0)) -> 11704.63794 | AY14: =INDEX('[1]6P Shipments'!$D$11:$L$35,MATCH(AY$13,'[1]6P Shipments'!$C$11:$C$35,0),MATCH($C$12,'[1]6P Shipments'!$D$10:$L$10,0)) -> 11704.63794 | AZ14: =INDEX('[1]6P Shipments'!$D$11:$L$35,MATCH(AZ$13,'[1]6P Shipments'!$C$11:$C$35,0),MATCH($C$12,'[1]6P Shipments'!$D$10:$L$10,0)) -> 11704.63794
C15: Replacement Shipments | D15: (units) | E15: =OFFSET(INDEX('[1]SHIPMENTS - TOTAL'!$E$8:$BF$467,MATCH($C$12,'[1]SHIPMENTS - TOTAL'!$C$8:$C$25,0),MATCH(E$13,'[1]SHIPMENTS - TOTAL'!$E$7:$BF$7,0)),MATCH($C$9,'[1]SHIPMENTS - TOTAL'!$D$2:$D$467,0)-1,0) ->  | F15: =OFFSET(INDEX('[1]SHIPMENTS - TOTAL'!$E$8:$BF$467,MATCH($C$12,'[1]SHIPMENTS - TOTAL'!$C$8:$C$25,0),MATCH(F$13,'[1]SHIPMENTS - TOTAL'!$E$7:$BF$7,0)),MATCH($C$9,'[1]SHIPMENTS - TOTAL'!$D$2:$D$467,0)-1,0) ->  | G15: =OFFSET(INDEX('[1]SHIPMENTS - TOTAL'!$E$8:$BF$467,MATCH($C$12,'[1]SHIPMENTS - TOTAL'!$C$8:$C$25,0),MATCH(G$13,'[1]SHIPMENTS - TOTAL'!$E$7:$BF$7,0)),MATCH($C$9,'[1]SHIPMENTS - TOTAL'!$D$2:$D$467,0)-1,0) ->  | H15: =OFFSET(INDEX('[1]SHIPMENTS - TOTAL'!$E$8:$BF$467,MATCH($C$12,'[1]SHIPMENTS - TOTAL'!$C$8:$C$25,0),MATCH(H$13,'[1]SHIPMENTS - TOTAL'!$E$7:$BF$7,0)),MATCH($C$9,'[1]SHIPMENTS - TOTAL'!$D$2:$D$467,0)-1,0) ->  | I15: =OFFSET(INDEX('[1]SHIPMENTS - TOTAL'!$E$8:$BF$467,MATCH($C$12,'[1]SHIPMENTS - TOTAL'!$C$8:$C$25,0),MATCH(I$13,'[1]SHIPMENTS - TOTAL'!$E$7:$BF$7,0)),MATCH($C$9,'[1]SHIPMENTS - TOTAL'!$D$2:$D$467,0)-1,0) ->  | J15: =OFFSET(INDEX('[1]SHIPMENTS - TOTAL'!$E$8:$BF$467,MATCH($C$12,'[1]SHIPMENTS - TOTAL'!$C$8:$C$25,0),MATCH(J$13,'[1]SHIPMENTS - TOTAL'!$E$7:$BF$7,0)),MATCH($C$9,'[1]SHIPMENTS - TOTAL'!$D$2:$D$467,0)-1,0) ->  | K15: =OFFSET(INDEX('[1]SHIPMENTS - TOTAL'!$E$8:$BF$467,MATCH($C$12,'[1]SHIPMENTS - TOTAL'!$C$8:$C$25,0),MATCH(K$13,'[1]SHIPMENTS - TOTAL'!$E$7:$BF$7,0)),MATCH($C$9,'[1]SHIPMENTS - TOTAL'!$D$2:$D$467,0)-1,0) ->  | L15: =OFFSET(INDEX('[1]SHIPMENTS - TOTAL'!$E$8:$BF$467,MATCH($C$12,'[1]SHIPMENTS - TOTAL'!$C$8:$C$25,0),MATCH(L$13,'[1]SHIPMENTS - TOTAL'!$E$7:$BF$7,0)),MATCH($C$9,'[1]SHIPMENTS - TOTAL'!$D$2:$D$467,0)-1,0) ->  | M15: =OFFSET(INDEX('[1]SHIPMENTS - TOTAL'!$E$8:$BF$467,MATCH($C$12,'[1]SHIPMENTS - TOTAL'!$C$8:$C$25,0),MATCH(M$13,'[1]SHIPMENTS - TOTAL'!$E$7:$BF$7,0)),MATCH($C$9,'[1]SHIPMENTS - TOTAL'!$D$2:$D$467,0)-1,0) ->  | N15: =OFFSET(INDEX('[1]SHIPMENTS - TOTAL'!$E$8:$BF$467,MATCH($C$12,'[1]SHIPMENTS - TOTAL'!$C$8:$C$25,0),MATCH(N$13,'[1]SHIPMENTS - TOTAL'!$E$7:$BF$7,0)),MATCH($C$9,'[1]SHIPMENTS - TOTAL'!$D$2:$D$467,0)-1,0) ->  | O15: =OFFSET(INDEX('[1]SHIPMENTS - TOTAL'!$E$8:$BF$467,MATCH($C$12,'[1]SHIPMENTS - TOTAL'!$C$8:$C$25,0),MATCH(O$13,'[1]SHIPMENTS - TOTAL'!$E$7:$BF$7,0)),MATCH($C$9,'[1]SHIPMENTS - TOTAL'!$D$2:$D$467,0)-1,0) ->  | P15: =OFFSET(INDEX('[1]SHIPMENTS - TOTAL'!$E$8:$BF$467,MATCH($C$12,'[1]SHIPMENTS - TOTAL'!$C$8:$C$25,0),MATCH(P$13,'[1]SHIPMENTS - TOTAL'!$E$7:$BF$7,0)),MATCH($C$9,'[1]SHIPMENTS - TOTAL'!$D$2:$D$467,0)-1,0) ->  | Q15: =OFFSET(INDEX('[1]SHIPMENTS - TOTAL'!$E$8:$BF$467,MATCH($C$12,'[1]SHIPMENTS - TOTAL'!$C$8:$C$25,0),MATCH(Q$13,'[1]SHIPMENTS - TOTAL'!$E$7:$BF$7,0)),MATCH($C$9,'[1]SHIPMENTS - TOTAL'!$D$2:$D$467,0)-1,0) ->  | R15: =OFFSET(INDEX('[1]SHIPMENTS - TOTAL'!$E$8:$BF$467,MATCH($C$12,'[1]SHIPMENTS - TOTAL'!$C$8:$C$25,0),MATCH(R$13,'[1]SHIPMENTS - TOTAL'!$E$7:$BF$7,0)),MATCH($C$9,'[1]SHIPMENTS - TOTAL'!$D$2:$D$467,0)-1,0) ->  | S15: =OFFSET(INDEX('[1]SHIPMENTS - TOTAL'!$E$8:$BF$467,MATCH($C$12,'[1]SHIPMENTS - TOTAL'!$C$8:$C$25,0),MATCH(S$13,'[1]SHIPMENTS - TOTAL'!$E$7:$BF$7,0)),MATCH($C$9,'[1]SHIPMENTS - TOTAL'!$D$2:$D$467,0)-1,0) ->  | T15: =OFFSET(INDEX('[1]SHIPMENTS - TOTAL'!$E$8:$BF$467,MATCH($C$12,'[1]SHIPMENTS - TOTAL'!$C$8:$C$25,0),MATCH(T$13,'[1]SHIPMENTS - TOTAL'!$E$7:$BF$7,0)),MATCH($C$9,'[1]SHIPMENTS - TOTAL'!$D$2:$D$467,0)-1,0) ->  | U15: =OFFSET(INDEX('[1]SHIPMENTS - TOTAL'!$E$8:$BF$467,MATCH($C$12,'[1]SHIPMENTS - TOTAL'!$C$8:$C$25,0),MATCH(U$13,'[1]SHIPMENTS - TOTAL'!$E$7:$BF$7,0)),MATCH($C$9,'[1]SHIPMENTS - TOTAL'!$D$2:$D$467,0)-1,0) ->  | V15: =OFFSET(INDEX('[1]SHIPMENTS - TOTAL'!$E$8:$BF$467,MATCH($C$12,'[1]SHIPMENTS - TOTAL'!$C$8:$C$25,0),MATCH(V$13,'[1]SHIPMENTS - TOTAL'!$E$7:$BF$7,0)),MATCH($C$9,'[1]SHIPMENTS - TOTAL'!$D$2:$D$467,0)-1,0) ->  | W15: =OFFSET(INDEX('[1]SHIPMENTS - TOTAL'!$E$8:$BF$467,MATCH($C$12,'[1]SHIPMENTS - TOTAL'!$C$8:$C$25,0),MATCH(W$13,'[1]SHIPMENTS - TOTAL'!$E$7:$BF$7,0)),MATCH($C$9,'[1]SHIPMENTS - TOTAL'!$D$2:$D$467,0)-1,0) ->  | X15: =OFFSET(INDEX('[1]SHIPMENTS - TOTAL'!$E$8:$BF$467,MATCH($C$12,'[1]SHIPMENTS - TOTAL'!$C$8:$C$25,0),MATCH(X$13,'[1]SHIPMENTS - TOTAL'!$E$7:$BF$7,0)),MATCH($C$9,'[1]SHIPMENTS - TOTAL'!$D$2:$D$467,0)-1,0) ->  | Y15: =OFFSET(INDEX('[1]SHIPMENTS - TOTAL'!$E$8:$BF$467,MATCH($C$12,'[1]SHIPMENTS - TOTAL'!$C$8:$C$25,0),MATCH(Y$13,'[1]SHIPMENTS - TOTAL'!$E$7:$BF$7,0)),MATCH($C$9,'[1]SHIPMENTS - TOTAL'!$D$2:$D$467,0)-1,0) ->  | Z15: =OFFSET(INDEX('[1]SHIPMENTS - TOTAL'!$E$8:$BF$467,MATCH($C$12,'[1]SHIPMENTS - TOTAL'!$C$8:$C$25,0),MATCH(Z$13,'[1]SHIPMENTS - TOTAL'!$E$7:$BF$7,0)),MATCH($C$9,'[1]SHIPMENTS - TOTAL'!$D$2:$D$467,0)-1,0) ->  | AA15: =OFFSET(INDEX('[1]SHIPMENTS - TOTAL'!$E$8:$BF$467,MATCH($C$12,'[1]SHIPMENTS - TOTAL'!$C$8:$C$25,0),MATCH(AA$13,'[1]SHIPMENTS - TOTAL'!$E$7:$BF$7,0)),MATCH($C$9,'[1]SHIPMENTS - TOTAL'!$D$2:$D$467,0)-1,0) ->  | AB15: =OFFSET(INDEX('[1]SHIPMENTS - TOTAL'!$E$8:$BF$467,MATCH($C$12,'[1]SHIPMENTS - TOTAL'!$C$8:$C$25,0),MATCH(AB$13,'[1]SHIPMENTS - TOTAL'!$E$7:$BF$7,0)),MATCH($C$9,'[1]SHIPMENTS - TOTAL'!$D$2:$D$467,0)-1,0) ->  | AC15: =OFFSET(INDEX('[1]SHIPMENTS - TOTAL'!$E$8:$BF$467,MATCH($C$12,'[1]SHIPMENTS - TOTAL'!$C$8:$C$25,0),MATCH(AC$13,'[1]SHIPMENTS - TOTAL'!$E$7:$BF$7,0)),MATCH($C$9,'[1]SHIPMENTS - TOTAL'!$D$2:$D$467,0)-1,0) ->  | AD15: =OFFSET(INDEX('[1]SHIPMENTS - TOTAL'!$E$8:$BF$467,MATCH($C$12,'[1]SHIPMENTS - TOTAL'!$C$8:$C$25,0),MATCH(AD$13,'[1]SHIPMENTS - TOTAL'!$E$7:$BF$7,0)),MATCH($C$9,'[1]SHIPMENTS - TOTAL'!$D$2:$D$467,0)-1,0) ->  | AE15: =OFFSET(INDEX('[1]SHIPMENTS - TOTAL'!$E$8:$BF$467,MATCH($C$12,'[1]SHIPMENTS - TOTAL'!$C$8:$C$25,0),MATCH(AE$13,'[1]SHIPMENTS - TOTAL'!$E$7:$BF$7,0)),MATCH($C$9,'[1]SHIPMENTS - TOTAL'!$D$2:$D$467,0)-1,0) ->  | AF15: =OFFSET(INDEX('[1]SHIPMENTS - TOTAL'!$E$8:$BF$467,MATCH($C$12,'[1]SHIPMENTS - TOTAL'!$C$8:$C$25,0),MATCH(AF$13,'[1]SHIPMENTS - TOTAL'!$E$7:$BF$7,0)),MATCH($C$9,'[1]SHIPMENTS - TOTAL'!$D$2:$D$467,0)-1,0) ->  | AG15: =OFFSET(INDEX('[1]SHIPMENTS - TOTAL'!$E$8:$BF$467,MATCH($C$12,'[1]SHIPMENTS - TOTAL'!$C$8:$C$25,0),MATCH(AG$13,'[1]SHIPMENTS - TOTAL'!$E$7:$BF$7,0)),MATCH($C$9,'[1]SHIPMENTS - TOTAL'!$D$2:$D$467,0)-1,0) ->  | AH15: =OFFSET(INDEX('[1]SHIPMENTS - TOTAL'!$E$8:$BF$467,MATCH($C$12,'[1]SHIPMENTS - TOTAL'!$C$8:$C$25,0),MATCH(AH$13,'[1]SHIPMENTS - TOTAL'!$E$7:$BF$7,0)),MATCH($C$9,'[1]SHIPMENTS - TOTAL'!$D$2:$D$467,0)-1,0) ->  | AI15: =OFFSET(INDEX('[1]SHIPMENTS - TOTAL'!$E$8:$BF$467,MATCH($C$12,'[1]SHIPMENTS - TOTAL'!$C$8:$C$25,0),MATCH(AI$13,'[1]SHIPMENTS - TOTAL'!$E$7:$BF$7,0)),MATCH($C$9,'[1]SHIPMENTS - TOTAL'!$D$2:$D$467,0)-1,0) ->  | AJ15: =OFFSET(INDEX('[1]SHIPMENTS - TOTAL'!$E$8:$BF$467,MATCH($C$12,'[1]SHIPMENTS - TOTAL'!$C$8:$C$25,0),MATCH(AJ$13,'[1]SHIPMENTS - TOTAL'!$E$7:$BF$7,0)),MATCH($C$9,'[1]SHIPMENTS - TOTAL'!$D$2:$D$467,0)-1,0) ->  | AK15: =OFFSET(INDEX('[1]SHIPMENTS - TOTAL'!$E$8:$BF$467,MATCH($C$12,'[1]SHIPMENTS - TOTAL'!$C$8:$C$25,0),MATCH(AK$13,'[1]SHIPMENTS - TOTAL'!$E$7:$BF$7,0)),MATCH($C$9,'[1]SHIPMENTS - TOTAL'!$D$2:$D$467,0)-1,0) ->  | AL15: =OFFSET(INDEX('[1]SHIPMENTS - TOTAL'!$E$8:$BF$467,MATCH($C$12,'[1]SHIPMENTS - TOTAL'!$C$8:$C$25,0),MATCH(AL$13,'[1]SHIPMENTS - TOTAL'!$E$7:$BF$7,0)),MATCH($C$9,'[1]SHIPMENTS - TOTAL'!$D$2:$D$467,0)-1,0) ->  | AM15: =OFFSET(INDEX('[1]SHIPMENTS - TOTAL'!$E$8:$BF$467,MATCH($C$12,'[1]SHIPMENTS - TOTAL'!$C$8:$C$25,0),MATCH(AM$13,'[1]SHIPMENTS - TOTAL'!$E$7:$BF$7,0)),MATCH($C$9,'[1]SHIPMENTS - TOTAL'!$D$2:$D$467,0)-1,0) ->  | AN15: =OFFSET(INDEX('[1]SHIPMENTS - TOTAL'!$E$8:$BF$467,MATCH($C$12,'[1]SHIPMENTS - TOTAL'!$C$8:$C$25,0),MATCH(AN$13,'[1]SHIPMENTS - TOTAL'!$E$7:$BF$7,0)),MATCH($C$9,'[1]SHIPMENTS - TOTAL'!$D$2:$D$467,0)-1,0) ->  | AO15: =OFFSET(INDEX('[1]SHIPMENTS - TOTAL'!$E$8:$BF$467,MATCH($C$12,'[1]SHIPMENTS - TOTAL'!$C$8:$C$25,0),MATCH(AO$13,'[1]SHIPMENTS - TOTAL'!$E$7:$BF$7,0)),MATCH($C$9,'[1]SHIPMENTS - TOTAL'!$D$2:$D$467,0)-1,0) ->  | AP15: =OFFSET(INDEX('[1]SHIPMENTS - TOTAL'!$E$8:$BF$467,MATCH($C$12,'[1]SHIPMENTS - TOTAL'!$C$8:$C$25,0),MATCH(AP$13,'[1]SHIPMENTS - TOTAL'!$E$7:$BF$7,0)),MATCH($C$9,'[1]SHIPMENTS - TOTAL'!$D$2:$D$467,0)-1,0) ->  | AQ15: =OFFSET(INDEX('[1]SHIPMENTS - TOTAL'!$E$8:$BF$467,MATCH($C$12,'[1]SHIPMENTS - TOTAL'!$C$8:$C$25,0),MATCH(AQ$13,'[1]SHIPMENTS - TOTAL'!$E$7:$BF$7,0)),MATCH($C$9,'[1]SHIPMENTS - TOTAL'!$D$2:$D$467,0)-1,0) ->  | AR15: =OFFSET(INDEX('[1]SHIPMENTS - TOTAL'!$E$8:$BF$467,MATCH($C$12,'[1]SHIPMENTS - TOTAL'!$C$8:$C$25,0),MATCH(AR$13,'[1]SHIPMENTS - TOTAL'!$E$7:$BF$7,0)),MATCH($C$9,'[1]SHIPMENTS - TOTAL'!$D$2:$D$467,0)-1,0) ->  | AS15: =OFFSET(INDEX('[1]SHIPMENTS - TOTAL'!$E$8:$BF$467,MATCH($C$12,'[1]SHIPMENTS - TOTAL'!$C$8:$C$25,0),MATCH(AS$13,'[1]SHIPMENTS - TOTAL'!$E$7:$BF$7,0)),MATCH($C$9,'[1]SHIPMENTS - TOTAL'!$D$2:$D$467,0)-1,0) ->  | AT15: =OFFSET(INDEX('[1]SHIPMENTS - TOTAL'!$E$8:$BF$467,MATCH($C$12,'[1]SHIPMENTS - TOTAL'!$C$8:$C$25,0),MATCH(AT$13,'[1]SHIPMENTS - TOTAL'!$E$7:$BF$7,0)),MATCH($C$9,'[1]SHIPMENTS - TOTAL'!$D$2:$D$467,0)-1,0) ->  | AU15: =OFFSET(INDEX('[1]SHIPMENTS - TOTAL'!$E$8:$BF$467,MATCH($C$12,'[1]SHIPMENTS - TOTAL'!$C$8:$C$25,0),MATCH(AU$13,'[1]SHIPMENTS - TOTAL'!$E$7:$BF$7,0)),MATCH($C$9,'[1]SHIPMENTS - TOTAL'!$D$2:$D$467,0)-1,0) ->  | AV15: =OFFSET(INDEX('[1]SHIPMENTS - TOTAL'!$E$8:$BF$467,MATCH($C$12,'[1]SHIPMENTS - TOTAL'!$C$8:$C$25,0),MATCH(AV$13,'[1]SHIPMENTS - TOTAL'!$E$7:$BF$7,0)),MATCH($C$9,'[1]SHIPMENTS - TOTAL'!$D$2:$D$467,0)-1,0) ->  | AW15: =OFFSET(INDEX('[1]SHIPMENTS - TOTAL'!$E$8:$BF$467,MATCH($C$12,'[1]SHIPMENTS - TOTAL'!$C$8:$C$25,0),MATCH(AW$13,'[1]SHIPMENTS - TOTAL'!$E$7:$BF$7,0)),MATCH($C$9,'[1]SHIPMENTS - TOTAL'!$D$2:$D$467,0)-1,0) ->  | AX15: =OFFSET(INDEX('[1]SHIPMENTS - TOTAL'!$E$8:$BF$467,MATCH($C$12,'[1]SHIPMENTS - TOTAL'!$C$8:$C$25,0),MATCH(AX$13,'[1]SHIPMENTS - TOTAL'!$E$7:$BF$7,0)),MATCH($C$9,'[1]SHIPMENTS - TOTAL'!$D$2:$D$467,0)-1,0) ->  | AY15: =OFFSET(INDEX('[1]SHIPMENTS - TOTAL'!$E$8:$BF$467,MATCH($C$12,'[1]SHIPMENTS - TOTAL'!$C$8:$C$25,0),MATCH(AY$13,'[1]SHIPMENTS - TOTAL'!$E$7:$BF$7,0)),MATCH($C$9,'[1]SHIPMENTS - TOTAL'!$D$2:$D$467,0)-1,0) ->  | AZ15: =OFFSET(INDEX('[1]SHIPMENTS - TOTAL'!$E$8:$BF$467,MATCH($C$12,'[1]SHIPMENTS - TOTAL'!$C$8:$C$25,0),MATCH(AZ$13,'[1]SHIPMENTS - TOTAL'!$E$7:$BF$7,0)),MATCH($C$9,'[1]SHIPMENTS - TOTAL'!$D$2:$D$467,0)-1,0) -> 
C16: Net New Shipments | D16: (units) | E16: =OFFSET(INDEX('[1]SHIPMENTS - TOTAL'!$E$8:$BF$467,MATCH($C$12,'[1]SHIPMENTS - TOTAL'!$C$8:$C$25,0),MATCH(E$13,'[1]SHIPMENTS - TOTAL'!$E$7:$BF$7,0)),MATCH($C$9,'[1]SHIPMENTS - TOTAL'!$D$2:$D$467,0)-1+1,0) ->  | F16: =OFFSET(INDEX('[1]SHIPMENTS - TOTAL'!$E$8:$BF$467,MATCH($C$12,'[1]SHIPMENTS - TOTAL'!$C$8:$C$25,0),MATCH(F$13,'[1]SHIPMENTS - TOTAL'!$E$7:$BF$7,0)),MATCH($C$9,'[1]SHIPMENTS - TOTAL'!$D$2:$D$467,0)-1+1,0) ->  | G16: =OFFSET(INDEX('[1]SHIPMENTS - TOTAL'!$E$8:$BF$467,MATCH($C$12,'[1]SHIPMENTS - TOTAL'!$C$8:$C$25,0),MATCH(G$13,'[1]SHIPMENTS - TOTAL'!$E$7:$BF$7,0)),MATCH($C$9,'[1]SHIPMENTS - TOTAL'!$D$2:$D$467,0)-1+1,0) ->  | H16: =OFFSET(INDEX('[1]SHIPMENTS - TOTAL'!$E$8:$BF$467,MATCH($C$12,'[1]SHIPMENTS - TOTAL'!$C$8:$C$25,0),MATCH(H$13,'[1]SHIPMENTS - TOTAL'!$E$7:$BF$7,0)),MATCH($C$9,'[1]SHIPMENTS - TOTAL'!$D$2:$D$467,0)-1+1,0) ->  | I16: =OFFSET(INDEX('[1]SHIPMENTS - TOTAL'!$E$8:$BF$467,MATCH($C$12,'[1]SHIPMENTS - TOTAL'!$C$8:$C$25,0),MATCH(I$13,'[1]SHIPMENTS - TOTAL'!$E$7:$BF$7,0)),MATCH($C$9,'[1]SHIPMENTS - TOTAL'!$D$2:$D$467,0)-1+1,0) ->  | J16: =OFFSET(INDEX('[1]SHIPMENTS - TOTAL'!$E$8:$BF$467,MATCH($C$12,'[1]SHIPMENTS - TOTAL'!$C$8:$C$25,0),MATCH(J$13,'[1]SHIPMENTS - TOTAL'!$E$7:$BF$7,0)),MATCH($C$9,'[1]SHIPMENTS - TOTAL'!$D$2:$D$467,0)-1+1,0) ->  | K16: =OFFSET(INDEX('[1]SHIPMENTS - TOTAL'!$E$8:$BF$467,MATCH($C$12,'[1]SHIPMENTS - TOTAL'!$C$8:$C$25,0),MATCH(K$13,'[1]SHIPMENTS - TOTAL'!$E$7:$BF$7,0)),MATCH($C$9,'[1]SHIPMENTS - TOTAL'!$D$2:$D$467,0)-1+1,0) ->  | L16: =OFFSET(INDEX('[1]SHIPMENTS - TOTAL'!$E$8:$BF$467,MATCH($C$12,'[1]SHIPMENTS - TOTAL'!$C$8:$C$25,0),MATCH(L$13,'[1]SHIPMENTS - TOTAL'!$E$7:$BF$7,0)),MATCH($C$9,'[1]SHIPMENTS - TOTAL'!$D$2:$D$467,0)-1+1,0) ->  | M16: =OFFSET(INDEX('[1]SHIPMENTS - TOTAL'!$E$8:$BF$467,MATCH($C$12,'[1]SHIPMENTS - TOTAL'!$C$8:$C$25,0),MATCH(M$13,'[1]SHIPMENTS - TOTAL'!$E$7:$BF$7,0)),MATCH($C$9,'[1]SHIPMENTS - TOTAL'!$D$2:$D$467,0)-1+1,0) ->  | N16: =OFFSET(INDEX('[1]SHIPMENTS - TOTAL'!$E$8:$BF$467,MATCH($C$12,'[1]SHIPMENTS - TOTAL'!$C$8:$C$25,0),MATCH(N$13,'[1]SHIPMENTS - TOTAL'!$E$7:$BF$7,0)),MATCH($C$9,'[1]SHIPMENTS - TOTAL'!$D$2:$D$467,0)-1+1,0) ->  | O16: =OFFSET(INDEX('[1]SHIPMENTS - TOTAL'!$E$8:$BF$467,MATCH($C$12,'[1]SHIPMENTS - TOTAL'!$C$8:$C$25,0),MATCH(O$13,'[1]SHIPMENTS - TOTAL'!$E$7:$BF$7,0)),MATCH($C$9,'[1]SHIPMENTS - TOTAL'!$D$2:$D$467,0)-1+1,0) ->  | P16: =OFFSET(INDEX('[1]SHIPMENTS - TOTAL'!$E$8:$BF$467,MATCH($C$12,'[1]SHIPMENTS - TOTAL'!$C$8:$C$25,0),MATCH(P$13,'[1]SHIPMENTS - TOTAL'!$E$7:$BF$7,0)),MATCH($C$9,'[1]SHIPMENTS - TOTAL'!$D$2:$D$467,0)-1+1,0) ->  | Q16: =OFFSET(INDEX('[1]SHIPMENTS - TOTAL'!$E$8:$BF$467,MATCH($C$12,'[1]SHIPMENTS - TOTAL'!$C$8:$C$25,0),MATCH(Q$13,'[1]SHIPMENTS - TOTAL'!$E$7:$BF$7,0)),MATCH($C$9,'[1]SHIPMENTS - TOTAL'!$D$2:$D$467,0)-1+1,0) ->  | R16: =OFFSET(INDEX('[1]SHIPMENTS - TOTAL'!$E$8:$BF$467,MATCH($C$12,'[1]SHIPMENTS - TOTAL'!$C$8:$C$25,0),MATCH(R$13,'[1]SHIPMENTS - TOTAL'!$E$7:$BF$7,0)),MATCH($C$9,'[1]SHIPMENTS - TOTAL'!$D$2:$D$467,0)-1+1,0) ->  | S16: =OFFSET(INDEX('[1]SHIPMENTS - TOTAL'!$E$8:$BF$467,MATCH($C$12,'[1]SHIPMENTS - TOTAL'!$C$8:$C$25,0),MATCH(S$13,'[1]SHIPMENTS - TOTAL'!$E$7:$BF$7,0)),MATCH($C$9,'[1]SHIPMENTS - TOTAL'!$D$2:$D$467,0)-1+1,0) ->  | T16: =OFFSET(INDEX('[1]SHIPMENTS - TOTAL'!$E$8:$BF$467,MATCH($C$12,'[1]SHIPMENTS - TOTAL'!$C$8:$C$25,0),MATCH(T$13,'[1]SHIPMENTS - TOTAL'!$E$7:$BF$7,0)),MATCH($C$9,'[1]SHIPMENTS - TOTAL'!$D$2:$D$467,0)-1+1,0) ->  | U16: =OFFSET(INDEX('[1]SHIPMENTS - TOTAL'!$E$8:$BF$467,MATCH($C$12,'[1]SHIPMENTS - TOTAL'!$C$8:$C$25,0),MATCH(U$13,'[1]SHIPMENTS - TOTAL'!$E$7:$BF$7,0)),MATCH($C$9,'[1]SHIPMENTS - TOTAL'!$D$2:$D$467,0)-1+1,0) ->  | V16: =OFFSET(INDEX('[1]SHIPMENTS - TOTAL'!$E$8:$BF$467,MATCH($C$12,'[1]SHIPMENTS - TOTAL'!$C$8:$C$25,0),MATCH(V$13,'[1]SHIPMENTS - TOTAL'!$E$7:$BF$7,0)),MATCH($C$9,'[1]SHIPMENTS - TOTAL'!$D$2:$D$467,0)-1+1,0) ->  | W16: =OFFSET(INDEX('[1]SHIPMENTS - TOTAL'!$E$8:$BF$467,MATCH($C$12,'[1]SHIPMENTS - TOTAL'!$C$8:$C$25,0),MATCH(W$13,'[1]SHIPMENTS - TOTAL'!$E$7:$BF$7,0)),MATCH($C$9,'[1]SHIPMENTS - TOTAL'!$D$2:$D$467,0)-1+1,0) ->  | X16: =OFFSET(INDEX('[1]SHIPMENTS - TOTAL'!$E$8:$BF$467,MATCH($C$12,'[1]SHIPMENTS - TOTAL'!$C$8:$C$25,0),MATCH(X$13,'[1]SHIPMENTS - TOTAL'!$E$7:$BF$7,0)),MATCH($C$9,'[1]SHIPMENTS - TOTAL'!$D$2:$D$467,0)-1+1,0) ->  | Y16: =OFFSET(INDEX('[1]SHIPMENTS - TOTAL'!$E$8:$BF$467,MATCH($C$12,'[1]SHIPMENTS - TOTAL'!$C$8:$C$25,0),MATCH(Y$13,'[1]SHIPMENTS - TOTAL'!$E$7:$BF$7,0)),MATCH($C$9,'[1]SHIPMENTS - TOTAL'!$D$2:$D$467,0)-1+1,0) ->  | Z16: =OFFSET(INDEX('[1]SHIPMENTS - TOTAL'!$E$8:$BF$467,MATCH($C$12,'[1]SHIPMENTS - TOTAL'!$C$8:$C$25,0),MATCH(Z$13,'[1]SHIPMENTS - TOTAL'!$E$7:$BF$7,0)),MATCH($C$9,'[1]SHIPMENTS - TOTAL'!$D$2:$D$467,0)-1+1,0) ->  | AA16: =OFFSET(INDEX('[1]SHIPMENTS - TOTAL'!$E$8:$BF$467,MATCH($C$12,'[1]SHIPMENTS - TOTAL'!$C$8:$C$25,0),MATCH(AA$13,'[1]SHIPMENTS - TOTAL'!$E$7:$BF$7,0)),MATCH($C$9,'[1]SHIPMENTS - TOTAL'!$D$2:$D$467,0)-1+1,0) ->  | AB16: =OFFSET(INDEX('[1]SHIPMENTS - TOTAL'!$E$8:$BF$467,MATCH($C$12,'[1]SHIPMENTS - TOTAL'!$C$8:$C$25,0),MATCH(AB$13,'[1]SHIPMENTS - TOTAL'!$E$7:$BF$7,0)),MATCH($C$9,'[1]SHIPMENTS - TOTAL'!$D$2:$D$467,0)-1+1,0) ->  | AC16: =OFFSET(INDEX('[1]SHIPMENTS - TOTAL'!$E$8:$BF$467,MATCH($C$12,'[1]SHIPMENTS - TOTAL'!$C$8:$C$25,0),MATCH(AC$13,'[1]SHIPMENTS - TOTAL'!$E$7:$BF$7,0)),MATCH($C$9,'[1]SHIPMENTS - TOTAL'!$D$2:$D$467,0)-1+1,0) ->  | AD16: =OFFSET(INDEX('[1]SHIPMENTS - TOTAL'!$E$8:$BF$467,MATCH($C$12,'[1]SHIPMENTS - TOTAL'!$C$8:$C$25,0),MATCH(AD$13,'[1]SHIPMENTS - TOTAL'!$E$7:$BF$7,0)),MATCH($C$9,'[1]SHIPMENTS - TOTAL'!$D$2:$D$467,0)-1+1,0) ->  | AE16: =OFFSET(INDEX('[1]SHIPMENTS - TOTAL'!$E$8:$BF$467,MATCH($C$12,'[1]SHIPMENTS - TOTAL'!$C$8:$C$25,0),MATCH(AE$13,'[1]SHIPMENTS - TOTAL'!$E$7:$BF$7,0)),MATCH($C$9,'[1]SHIPMENTS - TOTAL'!$D$2:$D$467,0)-1+1,0) ->  | AF16: =OFFSET(INDEX('[1]SHIPMENTS - TOTAL'!$E$8:$BF$467,MATCH($C$12,'[1]SHIPMENTS - TOTAL'!$C$8:$C$25,0),MATCH(AF$13,'[1]SHIPMENTS - TOTAL'!$E$7:$BF$7,0)),MATCH($C$9,'[1]SHIPMENTS - TOTAL'!$D$2:$D$467,0)-1+1,0) ->  | AG16: =OFFSET(INDEX('[1]SHIPMENTS - TOTAL'!$E$8:$BF$467,MATCH($C$12,'[1]SHIPMENTS - TOTAL'!$C$8:$C$25,0),MATCH(AG$13,'[1]SHIPMENTS - TOTAL'!$E$7:$BF$7,0)),MATCH($C$9,'[1]SHIPMENTS - TOTAL'!$D$2:$D$467,0)-1+1,0) ->  | AH16: =OFFSET(INDEX('[1]SHIPMENTS - TOTAL'!$E$8:$BF$467,MATCH($C$12,'[1]SHIPMENTS - TOTAL'!$C$8:$C$25,0),MATCH(AH$13,'[1]SHIPMENTS - TOTAL'!$E$7:$BF$7,0)),MATCH($C$9,'[1]SHIPMENTS - TOTAL'!$D$2:$D$467,0)-1+1,0) ->  | AI16: =OFFSET(INDEX('[1]SHIPMENTS - TOTAL'!$E$8:$BF$467,MATCH($C$12,'[1]SHIPMENTS - TOTAL'!$C$8:$C$25,0),MATCH(AI$13,'[1]SHIPMENTS - TOTAL'!$E$7:$BF$7,0)),MATCH($C$9,'[1]SHIPMENTS - TOTAL'!$D$2:$D$467,0)-1+1,0) ->  | AJ16: =OFFSET(INDEX('[1]SHIPMENTS - TOTAL'!$E$8:$BF$467,MATCH($C$12,'[1]SHIPMENTS - TOTAL'!$C$8:$C$25,0),MATCH(AJ$13,'[1]SHIPMENTS - TOTAL'!$E$7:$BF$7,0)),MATCH($C$9,'[1]SHIPMENTS - TOTAL'!$D$2:$D$467,0)-1+1,0) ->  | AK16: =OFFSET(INDEX('[1]SHIPMENTS - TOTAL'!$E$8:$BF$467,MATCH($C$12,'[1]SHIPMENTS - TOTAL'!$C$8:$C$25,0),MATCH(AK$13,'[1]SHIPMENTS - TOTAL'!$E$7:$BF$7,0)),MATCH($C$9,'[1]SHIPMENTS - TOTAL'!$D$2:$D$467,0)-1+1,0) ->  | AL16: =OFFSET(INDEX('[1]SHIPMENTS - TOTAL'!$E$8:$BF$467,MATCH($C$12,'[1]SHIPMENTS - TOTAL'!$C$8:$C$25,0),MATCH(AL$13,'[1]SHIPMENTS - TOTAL'!$E$7:$BF$7,0)),MATCH($C$9,'[1]SHIPMENTS - TOTAL'!$D$2:$D$467,0)-1+1,0) ->  | AM16: =OFFSET(INDEX('[1]SHIPMENTS - TOTAL'!$E$8:$BF$467,MATCH($C$12,'[1]SHIPMENTS - TOTAL'!$C$8:$C$25,0),MATCH(AM$13,'[1]SHIPMENTS - TOTAL'!$E$7:$BF$7,0)),MATCH($C$9,'[1]SHIPMENTS - TOTAL'!$D$2:$D$467,0)-1+1,0) ->  | AN16: =OFFSET(INDEX('[1]SHIPMENTS - TOTAL'!$E$8:$BF$467,MATCH($C$12,'[1]SHIPMENTS - TOTAL'!$C$8:$C$25,0),MATCH(AN$13,'[1]SHIPMENTS - TOTAL'!$E$7:$BF$7,0)),MATCH($C$9,'[1]SHIPMENTS - TOTAL'!$D$2:$D$467,0)-1+1,0) ->  | AO16: =OFFSET(INDEX('[1]SHIPMENTS - TOTAL'!$E$8:$BF$467,MATCH($C$12,'[1]SHIPMENTS - TOTAL'!$C$8:$C$25,0),MATCH(AO$13,'[1]SHIPMENTS - TOTAL'!$E$7:$BF$7,0)),MATCH($C$9,'[1]SHIPMENTS - TOTAL'!$D$2:$D$467,0)-1+1,0) ->  | AP16: =OFFSET(INDEX('[1]SHIPMENTS - TOTAL'!$E$8:$BF$467,MATCH($C$12,'[1]SHIPMENTS - TOTAL'!$C$8:$C$25,0),MATCH(AP$13,'[1]SHIPMENTS - TOTAL'!$E$7:$BF$7,0)),MATCH($C$9,'[1]SHIPMENTS - TOTAL'!$D$2:$D$467,0)-1+1,0) ->  | AQ16: =OFFSET(INDEX('[1]SHIPMENTS - TOTAL'!$E$8:$BF$467,MATCH($C$12,'[1]SHIPMENTS - TOTAL'!$C$8:$C$25,0),MATCH(AQ$13,'[1]SHIPMENTS - TOTAL'!$E$7:$BF$7,0)),MATCH($C$9,'[1]SHIPMENTS - TOTAL'!$D$2:$D$467,0)-1+1,0) ->  | AR16: =OFFSET(INDEX('[1]SHIPMENTS - TOTAL'!$E$8:$BF$467,MATCH($C$12,'[1]SHIPMENTS - TOTAL'!$C$8:$C$25,0),MATCH(AR$13,'[1]SHIPMENTS - TOTAL'!$E$7:$BF$7,0)),MATCH($C$9,'[1]SHIPMENTS - TOTAL'!$D$2:$D$467,0)-1+1,0) ->  | AS16: =OFFSET(INDEX('[1]SHIPMENTS - TOTAL'!$E$8:$BF$467,MATCH($C$12,'[1]SHIPMENTS - TOTAL'!$C$8:$C$25,0),MATCH(AS$13,'[1]SHIPMENTS - TOTAL'!$E$7:$BF$7,0)),MATCH($C$9,'[1]SHIPMENTS - TOTAL'!$D$2:$D$467,0)-1+1,0) ->  | AT16: =OFFSET(INDEX('[1]SHIPMENTS - TOTAL'!$E$8:$BF$467,MATCH($C$12,'[1]SHIPMENTS - TOTAL'!$C$8:$C$25,0),MATCH(AT$13,'[1]SHIPMENTS - TOTAL'!$E$7:$BF$7,0)),MATCH($C$9,'[1]SHIPMENTS - TOTAL'!$D$2:$D$467,0)-1+1,0) ->  | AU16: =OFFSET(INDEX('[1]SHIPMENTS - TOTAL'!$E$8:$BF$467,MATCH($C$12,'[1]SHIPMENTS - TOTAL'!$C$8:$C$25,0),MATCH(AU$13,'[1]SHIPMENTS - TOTAL'!$E$7:$BF$7,0)),MATCH($C$9,'[1]SHIPMENTS - TOTAL'!$D$2:$D$467,0)-1+1,0) ->  | AV16: =OFFSET(INDEX('[1]SHIPMENTS - TOTAL'!$E$8:$BF$467,MATCH($C$12,'[1]SHIPMENTS - TOTAL'!$C$8:$C$25,0),MATCH(AV$13,'[1]SHIPMENTS - TOTAL'!$E$7:$BF$7,0)),MATCH($C$9,'[1]SHIPMENTS - TOTAL'!$D$2:$D$467,0)-1+1,0) ->  | AW16: =OFFSET(INDEX('[1]SHIPMENTS - TOTAL'!$E$8:$BF$467,MATCH($C$12,'[1]SHIPMENTS - TOTAL'!$C$8:$C$25,0),MATCH(AW$13,'[1]SHIPMENTS - TOTAL'!$E$7:$BF$7,0)),MATCH($C$9,'[1]SHIPMENTS - TOTAL'!$D$2:$D$467,0)-1+1,0) ->  | AX16: =OFFSET(INDEX('[1]SHIPMENTS - TOTAL'!$E$8:$BF$467,MATCH($C$12,'[1]SHIPMENTS - TOTAL'!$C$8:$C$25,0),MATCH(AX$13,'[1]SHIPMENTS - TOTAL'!$E$7:$BF$7,0)),MATCH($C$9,'[1]SHIPMENTS - TOTAL'!$D$2:$D$467,0)-1+1,0) ->  | AY16: =OFFSET(INDEX('[1]SHIPMENTS - TOTAL'!$E$8:$BF$467,MATCH($C$12,'[1]SHIPMENTS - TOTAL'!$C$8:$C$25,0),MATCH(AY$13,'[1]SHIPMENTS - TOTAL'!$E$7:$BF$7,0)),MATCH($C$9,'[1]SHIPMENTS - TOTAL'!$D$2:$D$467,0)-1+1,0) ->  | AZ16: =OFFSET(INDEX('[1]SHIPMENTS - TOTAL'!$E$8:$BF$467,MATCH($C$12,'[1]SHIPMENTS - TOTAL'!$C$8:$C$25,0),MATCH(AZ$13,'[1]SHIPMENTS - TOTAL'!$E$7:$BF$7,0)),MATCH($C$9,'[1]SHIPMENTS - TOTAL'!$D$2:$D$467,0)-1+1,0) -> 
C17: Total Model Shipments | D17: (units) | E17: =SUM(E15:E16) -> 
C18: Model Installed Stock | D18: (units) | E18: =OFFSET(INDEX('[1]STOCK - TOTAL'!$E$8:$BF$305,MATCH($C$12,'[1]STOCK - TOTAL'!$C$8:$C$16,0),MATCH(E$13,'[1]STOCK - TOTAL'!$E$7:$BF$7,0)),MATCH($C$9,'[1]STOCK - TOTAL'!$D:$D,0)-2,0) ->  | F18: =OFFSET(INDEX('[1]STOCK - TOTAL'!$E$8:$BF$305,MATCH($C$12,'[1]STOCK - TOTAL'!$C$8:$C$16,0),MATCH(F$13,'[1]STOCK - TOTAL'!$E$7:$BF$7,0)),MATCH($C$9,'[1]STOCK - TOTAL'!$D:$D,0)-2,0) ->  | G18: =OFFSET(INDEX('[1]STOCK - TOTAL'!$E$8:$BF$305,MATCH($C$12,'[1]STOCK - TOTAL'!$C$8:$C$16,0),MATCH(G$13,'[1]STOCK - TOTAL'!$E$7:$BF$7,0)),MATCH($C$9,'[1]STOCK - TOTAL'!$D:$D,0)-2,0) ->  | H18: =OFFSET(INDEX('[1]STOCK - TOTAL'!$E$8:$BF$305,MATCH($C$12,'[1]STOCK - TOTAL'!$C$8:$C$16,0),MATCH(H$13,'[1]STOCK - TOTAL'!$E$7:$BF$7,0)),MATCH($C$9,'[1]STOCK - TOTAL'!$D:$D,0)-2,0) ->  | I18: =OFFSET(INDEX('[1]STOCK - TOTAL'!$E$8:$BF$305,MATCH($C$12,'[1]STOCK - TOTAL'!$C$8:$C$16,0),MATCH(I$13,'[1]STOCK - TOTAL'!$E$7:$BF$7,0)),MATCH($C$9,'[1]STOCK - TOTAL'!$D:$D,0)-2,0) ->  | J18: =OFFSET(INDEX('[1]STOCK - TOTAL'!$E$8:$BF$305,MATCH($C$12,'[1]STOCK - TOTAL'!$C$8:$C$16,0),MATCH(J$13,'[1]STOCK - TOTAL'!$E$7:$BF$7,0)),MATCH($C$9,'[1]STOCK - TOTAL'!$D:$D,0)-2,0) ->  | K18: =OFFSET(INDEX('[1]STOCK - TOTAL'!$E$8:$BF$305,MATCH($C$12,'[1]STOCK - TOTAL'!$C$8:$C$16,0),MATCH(K$13,'[1]STOCK - TOTAL'!$E$7:$BF$7,0)),MATCH($C$9,'[1]STOCK - TOTAL'!$D:$D,0)-2,0) ->  | L18: =OFFSET(INDEX('[1]STOCK - TOTAL'!$E$8:$BF$305,MATCH($C$12,'[1]STOCK - TOTAL'!$C$8:$C$16,0),MATCH(L$13,'[1]STOCK - TOTAL'!$E$7:$BF$7,0)),MATCH($C$9,'[1]STOCK - TOTAL'!$D:$D,0)-2,0) ->  | M18: =OFFSET(INDEX('[1]STOCK - TOTAL'!$E$8:$BF$305,MATCH($C$12,'[1]STOCK - TOTAL'!$C$8:$C$16,0),MATCH(M$13,'[1]STOCK - TOTAL'!$E$7:$BF$7,0)),MATCH($C$9,'[1]STOCK - TOTAL'!$D:$D,0)-2,0) ->  | N18: =OFFSET(INDEX('[1]STOCK - TOTAL'!$E$8:$BF$305,MATCH($C$12,'[1]STOCK - TOTAL'!$C$8:$C$16,0),MATCH(N$13,'[1]STOCK - TOTAL'!$E$7:$BF$7,0)),MATCH($C$9,'[1]STOCK - TOTAL'!$D:$D,0)-2,0) ->  | O18: =OFFSET(INDEX('[1]STOCK - TOTAL'!$E$8:$BF$305,MATCH($C$12,'[1]STOCK - TOTAL'!$C$8:$C$16,0),MATCH(O$13,'[1]STOCK - TOTAL'!$E$7:$BF$7,0)),MATCH($C$9,'[1]STOCK - TOTAL'!$D:$D,0)-2,0) ->  | P18: =OFFSET(INDEX('[1]STOCK - TOTAL'!$E$8:$BF$305,MATCH($C$12,'[1]STOCK - TOTAL'!$C$8:$C$16,0),MATCH(P$13,'[1]STOCK - TOTAL'!$E$7:$BF$7,0)),MATCH($C$9,'[1]STOCK - TOTAL'!$D:$D,0)-2,0) ->  | Q18: =OFFSET(INDEX('[1]STOCK - TOTAL'!$E$8:$BF$305,MATCH($C$12,'[1]STOCK - TOTAL'!$C$8:$C$16,0),MATCH(Q$13,'[1]STOCK - TOTAL'!$E$7:$BF$7,0)),MATCH($C$9,'[1]STOCK - TOTAL'!$D:$D,0)-2,0) ->  | R18: =OFFSET(INDEX('[1]STOCK - TOTAL'!$E$8:$BF$305,MATCH($C$12,'[1]STOCK - TOTAL'!$C$8:$C$16,0),MATCH(R$13,'[1]STOCK - TOTAL'!$E$7:$BF$7,0)),MATCH($C$9,'[1]STOCK - TOTAL'!$D:$D,0)-2,0) ->  | S18: =OFFSET(INDEX('[1]STOCK - TOTAL'!$E$8:$BF$305,MATCH($C$12,'[1]STOCK - TOTAL'!$C$8:$C$16,0),MATCH(S$13,'[1]STOCK - TOTAL'!$E$7:$BF$7,0)),MATCH($C$9,'[1]STOCK - TOTAL'!$D:$D,0)-2,0) ->  | T18: =OFFSET(INDEX('[1]STOCK - TOTAL'!$E$8:$BF$305,MATCH($C$12,'[1]STOCK - TOTAL'!$C$8:$C$16,0),MATCH(T$13,'[1]STOCK - TOTAL'!$E$7:$BF$7,0)),MATCH($C$9,'[1]STOCK - TOTAL'!$D:$D,0)-2,0) ->  | U18: =OFFSET(INDEX('[1]STOCK - TOTAL'!$E$8:$BF$305,MATCH($C$12,'[1]STOCK - TOTAL'!$C$8:$C$16,0),MATCH(U$13,'[1]STOCK - TOTAL'!$E$7:$BF$7,0)),MATCH($C$9,'[1]STOCK - TOTAL'!$D:$D,0)-2,0) ->  | V18: =OFFSET(INDEX('[1]STOCK - TOTAL'!$E$8:$BF$305,MATCH($C$12,'[1]STOCK - TOTAL'!$C$8:$C$16,0),MATCH(V$13,'[1]STOCK - TOTAL'!$E$7:$BF$7,0)),MATCH($C$9,'[1]STOCK - TOTAL'!$D:$D,0)-2,0) ->  | W18: =OFFSET(INDEX('[1]STOCK - TOTAL'!$E$8:$BF$305,MATCH($C$12,'[1]STOCK - TOTAL'!$C$8:$C$16,0),MATCH(W$13,'[1]STOCK - TOTAL'!$E$7:$BF$7,0)),MATCH($C$9,'[1]STOCK - TOTAL'!$D:$D,0)-2,0) ->  | X18: =OFFSET(INDEX('[1]STOCK - TOTAL'!$E$8:$BF$305,MATCH($C$12,'[1]STOCK - TOTAL'!$C$8:$C$16,0),MATCH(X$13,'[1]STOCK - TOTAL'!$E$7:$BF$7,0)),MATCH($C$9,'[1]STOCK - TOTAL'!$D:$D,0)-2,0) ->  | Y18: =OFFSET(INDEX('[1]STOCK - TOTAL'!$E$8:$BF$305,MATCH($C$12,'[1]STOCK - TOTAL'!$C$8:$C$16,0),MATCH(Y$13,'[1]STOCK - TOTAL'!$E$7:$BF$7,0)),MATCH($C$9,'[1]STOCK - TOTAL'!$D:$D,0)-2,0) ->  | Z18: =OFFSET(INDEX('[1]STOCK - TOTAL'!$E$8:$BF$305,MATCH($C$12,'[1]STOCK - TOTAL'!$C$8:$C$16,0),MATCH(Z$13,'[1]STOCK - TOTAL'!$E$7:$BF$7,0)),MATCH($C$9,'[1]STOCK - TOTAL'!$D:$D,0)-2,0) ->  | AA18: =OFFSET(INDEX('[1]STOCK - TOTAL'!$E$8:$BF$305,MATCH($C$12,'[1]STOCK - TOTAL'!$C$8:$C$16,0),MATCH(AA$13,'[1]STOCK - TOTAL'!$E$7:$BF$7,0)),MATCH($C$9,'[1]STOCK - TOTAL'!$D:$D,0)-2,0) ->  | AB18: =OFFSET(INDEX('[1]STOCK - TOTAL'!$E$8:$BF$305,MATCH($C$12,'[1]STOCK - TOTAL'!$C$8:$C$16,0),MATCH(AB$13,'[1]STOCK - TOTAL'!$E$7:$BF$7,0)),MATCH($C$9,'[1]STOCK - TOTAL'!$D:$D,0)-2,0) ->  | AC18: =OFFSET(INDEX('[1]STOCK - TOTAL'!$E$8:$BF$305,MATCH($C$12,'[1]STOCK - TOTAL'!$C$8:$C$16,0),MATCH(AC$13,'[1]STOCK - TOTAL'!$E$7:$BF$7,0)),MATCH($C$9,'[1]STOCK - TOTAL'!$D:$D,0)-2,0) ->  | AD18: =OFFSET(INDEX('[1]STOCK - TOTAL'!$E$8:$BF$305,MATCH($C$12,'[1]STOCK - TOTAL'!$C$8:$C$16,0),MATCH(AD$13,'[1]STOCK - TOTAL'!$E$7:$BF$7,0)),MATCH($C$9,'[1]STOCK - TOTAL'!$D:$D,0)-2,0) ->  | AE18: =OFFSET(INDEX('[1]STOCK - TOTAL'!$E$8:$BF$305,MATCH($C$12,'[1]STOCK - TOTAL'!$C$8:$C$16,0),MATCH(AE$13,'[1]STOCK - TOTAL'!$E$7:$BF$7,0)),MATCH($C$9,'[1]STOCK - TOTAL'!$D:$D,0)-2,0) ->  | AF18: =OFFSET(INDEX('[1]STOCK - TOTAL'!$E$8:$BF$305,MATCH($C$12,'[1]STOCK - TOTAL'!$C$8:$C$16,0),MATCH(AF$13,'[1]STOCK - TOTAL'!$E$7:$BF$7,0)),MATCH($C$9,'[1]STOCK - TOTAL'!$D:$D,0)-2,0) ->  | AG18: =OFFSET(INDEX('[1]STOCK - TOTAL'!$E$8:$BF$305,MATCH($C$12,'[1]STOCK - TOTAL'!$C$8:$C$16,0),MATCH(AG$13,'[1]STOCK - TOTAL'!$E$7:$BF$7,0)),MATCH($C$9,'[1]STOCK - TOTAL'!$D:$D,0)-2,0) ->  | AH18: =OFFSET(INDEX('[1]STOCK - TOTAL'!$E$8:$BF$305,MATCH($C$12,'[1]STOCK - TOTAL'!$C$8:$C$16,0),MATCH(AH$13,'[1]STOCK - TOTAL'!$E$7:$BF$7,0)),MATCH($C$9,'[1]STOCK - TOTAL'!$D:$D,0)-2,0) ->  | AI18: =OFFSET(INDEX('[1]STOCK - TOTAL'!$E$8:$BF$305,MATCH($C$12,'[1]STOCK - TOTAL'!$C$8:$C$16,0),MATCH(AI$13,'[1]STOCK - TOTAL'!$E$7:$BF$7,0)),MATCH($C$9,'[1]STOCK - TOTAL'!$D:$D,0)-2,0) ->  | AJ18: =OFFSET(INDEX('[1]STOCK - TOTAL'!$E$8:$BF$305,MATCH($C$12,'[1]STOCK - TOTAL'!$C$8:$C$16,0),MATCH(AJ$13,'[1]STOCK - TOTAL'!$E$7:$BF$7,0)),MATCH($C$9,'[1]STOCK - TOTAL'!$D:$D,0)-2,0) ->  | AK18: =OFFSET(INDEX('[1]STOCK - TOTAL'!$E$8:$BF$305,MATCH($C$12,'[1]STOCK - TOTAL'!$C$8:$C$16,0),MATCH(AK$13,'[1]STOCK - TOTAL'!$E$7:$BF$7,0)),MATCH($C$9,'[1]STOCK - TOTAL'!$D:$D,0)-2,0) ->  | AL18: =OFFSET(INDEX('[1]STOCK - TOTAL'!$E$8:$BF$305,MATCH($C$12,'[1]STOCK - TOTAL'!$C$8:$C$16,0),MATCH(AL$13,'[1]STOCK - TOTAL'!$E$7:$BF$7,0)),MATCH($C$9,'[1]STOCK - TOTAL'!$D:$D,0)-2,0) ->  | AM18: =OFFSET(INDEX('[1]STOCK - TOTAL'!$E$8:$BF$305,MATCH($C$12,'[1]STOCK - TOTAL'!$C$8:$C$16,0),MATCH(AM$13,'[1]STOCK - TOTAL'!$E$7:$BF$7,0)),MATCH($C$9,'[1]STOCK - TOTAL'!$D:$D,0)-2,0) ->  | AN18: =OFFSET(INDEX('[1]STOCK - TOTAL'!$E$8:$BF$305,MATCH($C$12,'[1]STOCK - TOTAL'!$C$8:$C$16,0),MATCH(AN$13,'[1]STOCK - TOTAL'!$E$7:$BF$7,0)),MATCH($C$9,'[1]STOCK - TOTAL'!$D:$D,0)-2,0) ->  | AO18: =OFFSET(INDEX('[1]STOCK - TOTAL'!$E$8:$BF$305,MATCH($C$12,'[1]STOCK - TOTAL'!$C$8:$C$16,0),MATCH(AO$13,'[1]STOCK - TOTAL'!$E$7:$BF$7,0)),MATCH($C$9,'[1]STOCK - TOTAL'!$D:$D,0)-2,0) ->  | AP18: =OFFSET(INDEX('[1]STOCK - TOTAL'!$E$8:$BF$305,MATCH($C$12,'[1]STOCK - TOTAL'!$C$8:$C$16,0),MATCH(AP$13,'[1]STOCK - TOTAL'!$E$7:$BF$7,0)),MATCH($C$9,'[1]STOCK - TOTAL'!$D:$D,0)-2,0) ->  | AQ18: =OFFSET(INDEX('[1]STOCK - TOTAL'!$E$8:$BF$305,MATCH($C$12,'[1]STOCK - TOTAL'!$C$8:$C$16,0),MATCH(AQ$13,'[1]STOCK - TOTAL'!$E$7:$BF$7,0)),MATCH($C$9,'[1]STOCK - TOTAL'!$D:$D,0)-2,0) ->  | AR18: =OFFSET(INDEX('[1]STOCK - TOTAL'!$E$8:$BF$305,MATCH($C$12,'[1]STOCK - TOTAL'!$C$8:$C$16,0),MATCH(AR$13,'[1]STOCK - TOTAL'!$E$7:$BF$7,0)),MATCH($C$9,'[1]STOCK - TOTAL'!$D:$D,0)-2,0) ->  | AS18: =OFFSET(INDEX('[1]STOCK - TOTAL'!$E$8:$BF$305,MATCH($C$12,'[1]STOCK - TOTAL'!$C$8:$C$16,0),MATCH(AS$13,'[1]STOCK - TOTAL'!$E$7:$BF$7,0)),MATCH($C$9,'[1]STOCK - TOTAL'!$D:$D,0)-2,0) ->  | AT18: =OFFSET(INDEX('[1]STOCK - TOTAL'!$E$8:$BF$305,MATCH($C$12,'[1]STOCK - TOTAL'!$C$8:$C$16,0),MATCH(AT$13,'[1]STOCK - TOTAL'!$E$7:$BF$7,0)),MATCH($C$9,'[1]STOCK - TOTAL'!$D:$D,0)-2,0) ->  | AU18: =OFFSET(INDEX('[1]STOCK - TOTAL'!$E$8:$BF$305,MATCH($C$12,'[1]STOCK - TOTAL'!$C$8:$C$16,0),MATCH(AU$13,'[1]STOCK - TOTAL'!$E$7:$BF$7,0)),MATCH($C$9,'[1]STOCK - TOTAL'!$D:$D,0)-2,0) ->  | AV18: =OFFSET(INDEX('[1]STOCK - TOTAL'!$E$8:$BF$305,MATCH($C$12,'[1]STOCK - TOTAL'!$C$8:$C$16,0),MATCH(AV$13,'[1]STOCK - TOTAL'!$E$7:$BF$7,0)),MATCH($C$9,'[1]STOCK - TOTAL'!$D:$D,0)-2,0) ->  | AW18: =OFFSET(INDEX('[1]STOCK - TOTAL'!$E$8:$BF$305,MATCH($C$12,'[1]STOCK - TOTAL'!$C$8:$C$16,0),MATCH(AW$13,'[1]STOCK - TOTAL'!$E$7:$BF$7,0)),MATCH($C$9,'[1]STOCK - TOTAL'!$D:$D,0)-2,0) ->  | AX18: =OFFSET(INDEX('[1]STOCK - TOTAL'!$E$8:$BF$305,MATCH($C$12,'[1]STOCK - TOTAL'!$C$8:$C$16,0),MATCH(AX$13,'[1]STOCK - TOTAL'!$E$7:$BF$7,0)),MATCH($C$9,'[1]STOCK - TOTAL'!$D:$D,0)-2,0) ->  | AY18: =OFFSET(INDEX('[1]STOCK - TOTAL'!$E$8:$BF$305,MATCH($C$12,'[1]STOCK - TOTAL'!$C$8:$C$16,0),MATCH(AY$13,'[1]STOCK - TOTAL'!$E$7:$BF$7,0)),MATCH($C$9,'[1]STOCK - TOTAL'!$D:$D,0)-2,0) ->  | AZ18: =OFFSET(INDEX('[1]STOCK - TOTAL'!$E$8:$BF$305,MATCH($C$12,'[1]STOCK - TOTAL'!$C$8:$C$16,0),MATCH(AZ$13,'[1]STOCK - TOTAL'!$E$7:$BF$7,0)),MATCH($C$9,'[1]STOCK - TOTAL'!$D:$D,0)-2,0) -> 

Sheet 6P UEC Development
C2: Council UEC Development
C4: NAVIGATION
C6: COMMENTS
C9: 6P Average UEC | D9: 1479 | E9: kWh/year
C11: Source
C12: 6P Conservation Supply Curve Files: Refrigerators Freezers Ice Makers Beverage Vending, ‘BVM’ tab, Calculated based on Efficiency Level 4 for Class A and Class B (cells F120-123, F116, R116 and AC116) and Market Share (cells J210-O210).

Sheet UEC Development
C2: UEC Development
C4: NAVIGATION
C6: COMMENTS
C9: ='Product Classes'!H10&" - "&OFFSET('Product Classes'!$C$9,MATCH('Product Classes'!H10,MODEL_PCS,0),0) -> PC1 - Class A- Small (ASIN)
D11: Per Cycle Energy Consumption
C12: Efficiency Level | D12: Energy Factor | E12: Yearly
D13: kWh/day | E13: kWh/year
C14: ='Efficiency Levels'!C12&" - "&'Efficiency Levels'!D12 -> EL0 - 6.1 | D14: ='Efficiency Levels'!D12 -> 6.1 | E14: =D14*'Constants and Menus'!$D$12 -> 2228.025
C15: ='Efficiency Levels'!C13&" - "&'Efficiency Levels'!D13 -> EL1 - 5.27 | D15: ='Efficiency Levels'!D13 -> 5.27 | E15: =D15*'Constants and Menus'!$D$12 -> 1924.8675
C16: ='Efficiency Levels'!C14&" - "&'Efficiency Levels'!D14 -> EL2 - 4.75 | D16: ='Efficiency Levels'!D14 -> 4.75 | E16: =D16*'Constants and Menus'!$D$12 -> 1734.9375
C17: ='Efficiency Levels'!C15&" - "&'Efficiency Levels'!D15 -> EL3 - 4.25 | D17: ='Efficiency Levels'!D15 -> 4.25 | E17: =D17*'Constants and Menus'!$D$12 -> 1552.3125
C18: ='Efficiency Levels'!C16&" - "&'Efficiency Levels'!D16 -> EL4 - 3.95 | D18: ='Efficiency Levels'!D16 -> 3.95 | E18: =D18*'Constants and Menus'!$D$12 -> 1442.7375
C19: ='Efficiency Levels'!C17&" - "&'Efficiency Levels'!D17 -> EL5 - 3.73 | D19: ='Efficiency Levels'!D17 -> 3.73 | E19: =D19*'Constants and Menus'!$D$12 -> 1362.3825
C20: ='Efficiency Levels'!C18&" - "&'Efficiency Levels'!D18 -> EL6 - 3.58 | D20: ='Efficiency Levels'!D18 -> 3.58 | E20: =D20*'Constants and Menus'!$D$12 -> 1307.595
C21: ='Efficiency Levels'!C19&" - "&'Efficiency Levels'!D19 -> EL7 - 3.25 | D21: ='Efficiency Levels'!D19 -> 3.25 | E21: =D21*'Constants and Menus'!$D$12 -> 1187.0625
C25: ='Product Classes'!H11&" - "&OFFSET('Product Classes'!$C$9,MATCH('Product Classes'!H11,MODEL_PCS,0),0) -> PC2 - Class A- Medium (AMIN)
D27: Per Cycle Energy Consumption
C28: Efficiency Level | D28: Energy Factor | E28: Yearly
D29: kWh/day | E29: kWh/year
C30: ='Efficiency Levels'!C29&" - "&'Efficiency Levels'!D29 -> EL0 - 6.53 | D30: ='Efficiency Levels'!D29 -> 6.53 | E30: =D30*'Constants and Menus'!$D$12 -> 2385.0825
C31: ='Efficiency Levels'!C30&" - "&'Efficiency Levels'!D30 -> EL1 - 5.51 | D31: ='Efficiency Levels'!D30 -> 5.51 | E31: =D31*'Constants and Menus'!$D$12 -> 2012.5275
C32: ='Efficiency Levels'!C31&" - "&'Efficiency Levels'!D31 -> EL2 - 5.25 | D32: ='Efficiency Levels'!D31 -> 5.25 | E32: =D32*'Constants and Menus'!$D$12 -> 1917.5625
C33: ='Efficiency Levels'!C32&" - "&'Efficiency Levels'!D32 -> EL3 - 4.75 | D33: ='Efficiency Levels'!D32 -> 4.75 | E33: =D33*'Constants and Menus'!$D$12 -> 1734.9375
C34: ='Efficiency Levels'!C33&" - "&'Efficiency Levels'!D33 -> EL4 - 4.19 | D34: ='Efficiency Levels'!D33 -> 4.19 | E34: =D34*'Constants and Menus'!$D$12 -> 1530.3975
C35: ='Efficiency Levels'!C34&" - "&'Efficiency Levels'!D34 -> EL5 - 3.95 | D35: ='Efficiency Levels'!D34 -> 3.95 | E35: =D35*'Constants and Menus'!$D$12 -> 1442.7375
C36: ='Efficiency Levels'!C35&" - "&'Efficiency Levels'!D35 -> EL6 - 3.79 | D36: ='Efficiency Levels'!D35 -> 3.79 | E36: =D36*'Constants and Menus'!$D$12 -> 1384.2975
C37: ='Efficiency Levels'!C36&" - "&'Efficiency Levels'!D36 -> EL7 - 3.43 | D37: ='Efficiency Levels'!D36 -> 3.43 | E37: =D37*'Constants and Menus'!$D$12 -> 1252.8075
C41: ='Product Classes'!H12&" - "&OFFSET('Product Classes'!$C$9,MATCH('Product Classes'!H12,MODEL_PCS,0),0) -> PC3 - Class A- Large (ALIN)
D43: Per Cycle Energy Consumption
C44: Efficiency Level | D44: Energy Factor | E44: Yearly
D45: kWh/day | E45: kWh/year
C46: ='Efficiency Levels'!C46&" - "&'Efficiency Levels'!D46 -> EL0 - 6.75 | D46: ='Efficiency Levels'!D46 -> 6.75 | E46: =D46*'Constants and Menus'!$D$12 -> 2465.4375
C47: ='Efficiency Levels'!C47&" - "&'Efficiency Levels'!D47 -> EL1 - 6.21 | D47: ='Efficiency Levels'!D47 -> 6.21 | E47: =D47*'Constants and Menus'!$D$12 -> 2268.2025
C48: ='Efficiency Levels'!C48&" - "&'Efficiency Levels'!D48 -> EL2 - 5.75 | D48: ='Efficiency Levels'!D48 -> 5.75 | E48: =D48*'Constants and Menus'!$D$12 -> 2100.1875
C49: ='Efficiency Levels'!C49&" - "&'Efficiency Levels'!D49 -> EL3 - 5.25 | D49: ='Efficiency Levels'!D49 -> 5.25 | E49: =D49*'Constants and Menus'!$D$12 -> 1917.5625
C50: ='Efficiency Levels'!C50&" - "&'Efficiency Levels'!D50 -> EL4 - 4.89 | D50: ='Efficiency Levels'!D50 -> 4.89 | E50: =D50*'Constants and Menus'!$D$12 -> 1786.0725
C51: ='Efficiency Levels'!C51&" - "&'Efficiency Levels'!D51 -> EL5 - 4.6 | D51: ='Efficiency Levels'!D51 -> 4.6 | E51: =D51*'Constants and Menus'!$D$12 -> 1680.15
C52: ='Efficiency Levels'!C52&" - "&'Efficiency Levels'!D52 -> EL6 - 4.41 | D52: ='Efficiency Levels'!D52 -> 4.41 | E52: =D52*'Constants and Menus'!$D$12 -> 1610.7525
C53: ='Efficiency Levels'!C53&" - "&'Efficiency Levels'!D53 -> EL7 - 3.94 | D53: ='Efficiency Levels'!D53 -> 3.94 | E53: =D53*'Constants and Menus'!$D$12 -> 1439.085
C57: ='Product Classes'!H13&" - "&OFFSET('Product Classes'!$C$9,MATCH('Product Classes'!H13,MODEL_PCS,0),0) -> PC4 - Class B- Small (BSIO)
D59: Per Cycle Energy Consumption
C60: Efficiency Level | D60: Energy Factor | E60: Yearly
D61: kWh/day | E61: kWh/year
C62: ='Efficiency Levels'!C63&" - "&'Efficiency Levels'!D63 -> EL0 - 4.96 | D62: ='Efficiency Levels'!D63 -> 4.96 | E62: =D62*'Constants and Menus'!$D$12 -> 1811.64
C63: ='Efficiency Levels'!C64&" - "&'Efficiency Levels'!D64 -> EL1 - 4.62 | D63: ='Efficiency Levels'!D64 -> 4.62 | E63: =D63*'Constants and Menus'!$D$12 -> 1687.455
C64: ='Efficiency Levels'!C65&" - "&'Efficiency Levels'!D65 -> EL2 - 4.31 | D64: ='Efficiency Levels'!D65 -> 4.31 | E64: =D64*'Constants and Menus'!$D$12 -> 1574.2275
C65: ='Efficiency Levels'!C66&" - "&'Efficiency Levels'!D66 -> EL3 - 4.31 | D65: ='Efficiency Levels'!D66 -> 4.31 | E65: =D65*'Constants and Menus'!$D$12 -> 1574.2275
C66: ='Efficiency Levels'!C67&" - "&'Efficiency Levels'!D67 -> EL4 - 4.28 | D66: ='Efficiency Levels'!D67 -> 4.28 | E66: =D66*'Constants and Menus'!$D$12 -> 1563.27
C67: ='Efficiency Levels'!C68&" - "&'Efficiency Levels'!D68 -> EL5 - 3.78 | D67: ='Efficiency Levels'!D68 -> 3.78 | E67: =D67*'Constants and Menus'!$D$12 -> 1380.645
C68: ='Efficiency Levels'!C69&" - "&'Efficiency Levels'!D69 -> EL6 - 3.69 | D68: ='Efficiency Levels'!D69 -> 3.69 | E68: =D68*'Constants and Menus'!$D$12 -> 1347.7725
C72: ='Product Classes'!H14&" - "&OFFSET('Product Classes'!$C$9,MATCH('Product Classes'!H14,MODEL_PCS,0),0) -> PC5 - Class B- Medium (BMIO)
D74: Per Cycle Energy Consumption
C75: Efficiency Level | D75: Energy Factor | E75: Yearly
D76: kWh/day | E76: kWh/year
C77: ='Efficiency Levels'!C79&" - "&'Efficiency Levels'!D79 -> EL0 - 5.56 | D77: ='Efficiency Levels'!D79 -> 5.56 | E77: =D77*'Constants and Menus'!$D$12 -> 2030.79
C78: ='Efficiency Levels'!C80&" - "&'Efficiency Levels'!D80 -> EL1 - 5.2 | D78: ='Efficiency Levels'!D80 -> 5.2 | E78: =D78*'Constants and Menus'!$D$12 -> 1899.3
C79: ='Efficiency Levels'!C81&" - "&'Efficiency Levels'!D81 -> EL2 - 4.99 | D79: ='Efficiency Levels'!D81 -> 4.99 | E79: =D79*'Constants and Menus'!$D$12 -> 1822.5975
C80: ='Efficiency Levels'!C82&" - "&'Efficiency Levels'!D82 -> EL3 - 4.76 | D80: ='Efficiency Levels'!D82 -> 4.76 | E80: =D80*'Constants and Menus'!$D$12 -> 1738.59
C81: ='Efficiency Levels'!C83&" - "&'Efficiency Levels'!D83 -> EL4 - 4.72 | D81: ='Efficiency Levels'!D83 -> 4.72 | E81: =D81*'Constants and Menus'!$D$12 -> 1723.98
C82: ='Efficiency Levels'!C84&" - "&'Efficiency Levels'!D84 -> EL5 - 4.22 | D82: ='Efficiency Levels'!D84 -> 4.22 | E82: =D82*'Constants and Menus'!$D$12 -> 1541.355
C83: ='Efficiency Levels'!C85&" - "&'Efficiency Levels'!D85 -> EL6 - 4.12 | D83: ='Efficiency Levels'!D85 -> 4.12 | E83: =D83*'Constants and Menus'!$D$12 -> 1504.83
C87: ='Product Classes'!H15&" - "&OFFSET('Product Classes'!$C$9,MATCH('Product Classes'!H15,MODEL_PCS,0),0) -> PC6 - Class B- Large (BLIO)
D89: Per Cycle Energy Consumption
C90: Efficiency Level | D90: Energy Factor | E90: Yearly
D91: kWh/day | E91: kWh/year
C92: ='Efficiency Levels'!C95&" - "&'Efficiency Levels'!D95 -> EL0 - 5.85 | D92: ='Efficiency Levels'!D95 -> 5.85 | E92: =D92*'Constants and Menus'!$D$12 -> 2136.7125
C93: ='Efficiency Levels'!C96&" - "&'Efficiency Levels'!D96 -> EL1 - 5.48 | D93: ='Efficiency Levels'!D96 -> 5.48 | E93: =D93*'Constants and Menus'!$D$12 -> 2001.57
C94: ='Efficiency Levels'!C97&" - "&'Efficiency Levels'!D97 -> EL2 - 5.33 | D94: ='Efficiency Levels'!D97 -> 5.33 | E94: =D94*'Constants and Menus'!$D$12 -> 1946.7825
C95: ='Efficiency Levels'!C98&" - "&'Efficiency Levels'!D98 -> EL3 - 5.07 | D95: ='Efficiency Levels'!D98 -> 5.07 | E95: =D95*'Constants and Menus'!$D$12 -> 1851.8175
C96: ='Efficiency Levels'!C99&" - "&'Efficiency Levels'!D99 -> EL4 - 5.03 | D96: ='Efficiency Levels'!D99 -> 5.03 | E96: =D96*'Constants and Menus'!$D$12 -> 1837.2075
C97: ='Efficiency Levels'!C100&" - "&'Efficiency Levels'!D100 -> EL5 - 4.52 | D97: ='Efficiency Levels'!D100 -> 4.52 | E97: =D97*'Constants and Menus'!$D$12 -> 1650.93
C98: ='Efficiency Levels'!C101&" - "&'Efficiency Levels'!D101 -> EL6 - 4.41 | D98: ='Efficiency Levels'!D101 -> 4.41 | E98: =D98*'Constants and Menus'!$D$12 -> 1610.7525

Sheet UEC
C2: Weighted Annual UEC
C4: NAVIGATION
C6: COMMENTS
C9: Market UEC (Shipment Weighted Average)
D10: 1990 | E10: =D10+1 -> 1991 | F10: =E10+1 -> 1992 | G10: 1993 | H10: 1994 | I10: 1995 | J10: 1996 | K10: 1997 | L10: 1998 | M10: 1999 | N10: 2000 | O10: 2001 | P10: 2002 | Q10: 2003 | R10: 2004 | S10: 2005 | T10: 2006 | U10: 2007 | V10: 2008 | W10: 2009 | X10: 2010 | Y10: 2011 | Z10: 2012 | AA10: 2013 | AB10: 2014 | AC10: 2015 | AD10: 2016 | AE10: 2017 | AF10: 2018 | AG10: 2019 | AH10: 2020 | AI10: 2021 | AJ10: 2022 | AK10: 2023 | AL10: 2024 | AM10: 2025 | AN10: 2026 | AO10: 2027 | AP10: 2028 | AQ10: 2029 | AR10: 2030 | AS10: 2031 | AT10: 2032 | AU10: 2033 | AV10: 2034
C11: PRE-Case UEC | D11: ='Product Class Dist'!D$10*SUMPRODUCT('Efficiency Dist'!H13:H20,'UEC Development'!$E$14:$E$21)+'Product Class Dist'!D$11*SUMPRODUCT('Efficiency Dist'!H44:H51,'UEC Development'!$E$30:$E$37)+'Product Class Dist'!D$12*SUMPRODUCT('Efficiency Dist'!H75:H82,'UEC Development'!$E$46:$E$53)+'Product Class Dist'!D$13*SUMPRODUCT('Efficiency Dist'!H106:H112,'UEC Development'!$E$62:$E$68)+'Product Class Dist'!D$14*SUMPRODUCT('Efficiency Dist'!H135:H141,'UEC Development'!$D$77:$D$83)+'Product Class Dist'!D$15*SUMPRODUCT('Efficiency Dist'!H164:H170,'UEC Development'!$E$92:$E$98) -> 1421.771455 | E11: ='Product Class Dist'!E$10*SUMPRODUCT('Efficiency Dist'!I13:I20,'UEC Development'!$E$14:$E$21)+'Product Class Dist'!E$11*SUMPRODUCT('Efficiency Dist'!I44:I51,'UEC Development'!$E$30:$E$37)+'Product Class Dist'!E$12*SUMPRODUCT('Efficiency Dist'!I75:I82,'UEC Development'!$E$46:$E$53)+'Product Class Dist'!E$13*SUMPRODUCT('Efficiency Dist'!I106:I112,'UEC Development'!$E$62:$E$68)+'Product Class Dist'!E$14*SUMPRODUCT('Efficiency Dist'!I135:I141,'UEC Development'!$D$77:$D$83)+'Product Class Dist'!E$15*SUMPRODUCT('Efficiency Dist'!I164:I170,'UEC Development'!$E$92:$E$98) -> 1421.771455 | F11: ='Product Class Dist'!F$10*SUMPRODUCT('Efficiency Dist'!J13:J20,'UEC Development'!$E$14:$E$21)+'Product Class Dist'!F$11*SUMPRODUCT('Efficiency Dist'!J44:J51,'UEC Development'!$E$30:$E$37)+'Product Class Dist'!F$12*SUMPRODUCT('Efficiency Dist'!J75:J82,'UEC Development'!$E$46:$E$53)+'Product Class Dist'!F$13*SUMPRODUCT('Efficiency Dist'!J106:J112,'UEC Development'!$E$62:$E$68)+'Product Class Dist'!F$14*SUMPRODUCT('Efficiency Dist'!J135:J141,'UEC Development'!$D$77:$D$83)+'Product Class Dist'!F$15*SUMPRODUCT('Efficiency Dist'!J164:J170,'UEC Development'!$E$92:$E$98) -> 1421.771455 | G11: ='Product Class Dist'!G$10*SUMPRODUCT('Efficiency Dist'!K13:K20,'UEC Development'!$E$14:$E$21)+'Product Class Dist'!G$11*SUMPRODUCT('Efficiency Dist'!K44:K51,'UEC Development'!$E$30:$E$37)+'Product Class Dist'!G$12*SUMPRODUCT('Efficiency Dist'!K75:K82,'UEC Development'!$E$46:$E$53)+'Product Class Dist'!G$13*SUMPRODUCT('Efficiency Dist'!K106:K112,'UEC Development'!$E$62:$E$68)+'Product Class Dist'!G$14*SUMPRODUCT('Efficiency Dist'!K135:K141,'UEC Development'!$D$77:$D$83)+'Product Class Dist'!G$15*SUMPRODUCT('Efficiency Dist'!K164:K170,'UEC Development'!$E$92:$E$98) -> 1421.771455 | H11: ='Product Class Dist'!H$10*SUMPRODUCT('Efficiency Dist'!L13:L20,'UEC Development'!$E$14:$E$21)+'Product Class Dist'!H$11*SUMPRODUCT('Efficiency Dist'!L44:L51,'UEC Development'!$E$30:$E$37)+'Product Class Dist'!H$12*SUMPRODUCT('Efficiency Dist'!L75:L82,'UEC Development'!$E$46:$E$53)+'Product Class Dist'!H$13*SUMPRODUCT('Efficiency Dist'!L106:L112,'UEC Development'!$E$62:$E$68)+'Product Class Dist'!H$14*SUMPRODUCT('Efficiency Dist'!L135:L141,'UEC Development'!$D$77:$D$83)+'Product Class Dist'!H$15*SUMPRODUCT('Efficiency Dist'!L164:L170,'UEC Development'!$E$92:$E$98) -> 1421.771455 | I11: ='Product Class Dist'!I$10*SUMPRODUCT('Efficiency Dist'!M13:M20,'UEC Development'!$E$14:$E$21)+'Product Class Dist'!I$11*SUMPRODUCT('Efficiency Dist'!M44:M51,'UEC Development'!$E$30:$E$37)+'Product Class Dist'!I$12*SUMPRODUCT('Efficiency Dist'!M75:M82,'UEC Development'!$E$46:$E$53)+'Product Class Dist'!I$13*SUMPRODUCT('Efficiency Dist'!M106:M112,'UEC Development'!$E$62:$E$68)+'Product Class Dist'!I$14*SUMPRODUCT('Efficiency Dist'!M135:M141,'UEC Development'!$D$77:$D$83)+'Product Class Dist'!I$15*SUMPRODUCT('Efficiency Dist'!M164:M170,'UEC Development'!$E$92:$E$98) -> 1421.771455 | J11: ='Product Class Dist'!J$10*SUMPRODUCT('Efficiency Dist'!N13:N20,'UEC Development'!$E$14:$E$21)+'Product Class Dist'!J$11*SUMPRODUCT('Efficiency Dist'!N44:N51,'UEC Development'!$E$30:$E$37)+'Product Class Dist'!J$12*SUMPRODUCT('Efficiency Dist'!N75:N82,'UEC Development'!$E$46:$E$53)+'Product Class Dist'!J$13*SUMPRODUCT('Efficiency Dist'!N106:N112,'UEC Development'!$E$62:$E$68)+'Product Class Dist'!J$14*SUMPRODUCT('Efficiency Dist'!N135:N141,'UEC Development'!$D$77:$D$83)+'Product Class Dist'!J$15*SUMPRODUCT('Efficiency Dist'!N164:N170,'UEC Development'!$E$92:$E$98) -> 1421.771455 | K11: ='Product Class Dist'!K$10*SUMPRODUCT('Efficiency Dist'!O13:O20,'UEC Development'!$E$14:$E$21)+'Product Class Dist'!K$11*SUMPRODUCT('Efficiency Dist'!O44:O51,'UEC Development'!$E$30:$E$37)+'Product Class Dist'!K$12*SUMPRODUCT('Efficiency Dist'!O75:O82,'UEC Development'!$E$46:$E$53)+'Product Class Dist'!K$13*SUMPRODUCT('Efficiency Dist'!O106:O112,'UEC Development'!$E$62:$E$68)+'Product Class Dist'!K$14*SUMPRODUCT('Efficiency Dist'!O135:O141,'UEC Development'!$D$77:$D$83)+'Product Class Dist'!K$15*SUMPRODUCT('Efficiency Dist'!O164:O170,'UEC Development'!$E$92:$E$98) -> 1421.771455 | L11: ='Product Class Dist'!L$10*SUMPRODUCT('Efficiency Dist'!P13:P20,'UEC Development'!$E$14:$E$21)+'Product Class Dist'!L$11*SUMPRODUCT('Efficiency Dist'!P44:P51,'UEC Development'!$E$30:$E$37)+'Product Class Dist'!L$12*SUMPRODUCT('Efficiency Dist'!P75:P82,'UEC Development'!$E$46:$E$53)+'Product Class Dist'!L$13*SUMPRODUCT('Efficiency Dist'!P106:P112,'UEC Development'!$E$62:$E$68)+'Product Class Dist'!L$14*SUMPRODUCT('Efficiency Dist'!P135:P141,'UEC Development'!$D$77:$D$83)+'Product Class Dist'!L$15*SUMPRODUCT('Efficiency Dist'!P164:P170,'UEC Development'!$E$92:$E$98) -> 1421.771455 | M11: ='Product Class Dist'!M$10*SUMPRODUCT('Efficiency Dist'!Q13:Q20,'UEC Development'!$E$14:$E$21)+'Product Class Dist'!M$11*SUMPRODUCT('Efficiency Dist'!Q44:Q51,'UEC Development'!$E$30:$E$37)+'Product Class Dist'!M$12*SUMPRODUCT('Efficiency Dist'!Q75:Q82,'UEC Development'!$E$46:$E$53)+'Product Class Dist'!M$13*SUMPRODUCT('Efficiency Dist'!Q106:Q112,'UEC Development'!$E$62:$E$68)+'Product Class Dist'!M$14*SUMPRODUCT('Efficiency Dist'!Q135:Q141,'UEC Development'!$D$77:$D$83)+'Product Class Dist'!M$15*SUMPRODUCT('Efficiency Dist'!Q164:Q170,'UEC Development'!$E$92:$E$98) -> 1421.771455 | N11: ='Product Class Dist'!N$10*SUMPRODUCT('Efficiency Dist'!R13:R20,'UEC Development'!$E$14:$E$21)+'Product Class Dist'!N$11*SUMPRODUCT('Efficiency Dist'!R44:R51,'UEC Development'!$E$30:$E$37)+'Product Class Dist'!N$12*SUMPRODUCT('Efficiency Dist'!R75:R82,'UEC Development'!$E$46:$E$53)+'Product Class Dist'!N$13*SUMPRODUCT('Efficiency Dist'!R106:R112,'UEC Development'!$E$62:$E$68)+'Product Class Dist'!N$14*SUMPRODUCT('Efficiency Dist'!R135:R141,'UEC Development'!$D$77:$D$83)+'Product Class Dist'!N$15*SUMPRODUCT('Efficiency Dist'!R164:R170,'UEC Development'!$E$92:$E$98) -> 1421.771455 | O11: ='Product Class Dist'!O$10*SUMPRODUCT('Efficiency Dist'!S13:S20,'UEC Development'!$E$14:$E$21)+'Product Class Dist'!O$11*SUMPRODUCT('Efficiency Dist'!S44:S51,'UEC Development'!$E$30:$E$37)+'Product Class Dist'!O$12*SUMPRODUCT('Efficiency Dist'!S75:S82,'UEC Development'!$E$46:$E$53)+'Product Class Dist'!O$13*SUMPRODUCT('Efficiency Dist'!S106:S112,'UEC Development'!$E$62:$E$68)+'Product Class Dist'!O$14*SUMPRODUCT('Efficiency Dist'!S135:S141,'UEC Development'!$D$77:$D$83)+'Product Class Dist'!O$15*SUMPRODUCT('Efficiency Dist'!S164:S170,'UEC Development'!$E$92:$E$98) -> 1421.771455 | P11: ='Product Class Dist'!P$10*SUMPRODUCT('Efficiency Dist'!T13:T20,'UEC Development'!$E$14:$E$21)+'Product Class Dist'!P$11*SUMPRODUCT('Efficiency Dist'!T44:T51,'UEC Development'!$E$30:$E$37)+'Product Class Dist'!P$12*SUMPRODUCT('Efficiency Dist'!T75:T82,'UEC Development'!$E$46:$E$53)+'Product Class Dist'!P$13*SUMPRODUCT('Efficiency Dist'!T106:T112,'UEC Development'!$E$62:$E$68)+'Product Class Dist'!P$14*SUMPRODUCT('Efficiency Dist'!T135:T141,'UEC Development'!$D$77:$D$83)+'Product Class Dist'!P$15*SUMPRODUCT('Efficiency Dist'!T164:T170,'UEC Development'!$E$92:$E$98) -> 1421.771455 | Q11: ='Product Class Dist'!Q$10*SUMPRODUCT('Efficiency Dist'!U13:U20,'UEC Development'!$E$14:$E$21)+'Product Class Dist'!Q$11*SUMPRODUCT('Efficiency Dist'!U44:U51,'UEC Development'!$E$30:$E$37)+'Product Class Dist'!Q$12*SUMPRODUCT('Efficiency Dist'!U75:U82,'UEC Development'!$E$46:$E$53)+'Product Class Dist'!Q$13*SUMPRODUCT('Efficiency Dist'!U106:U112,'UEC Development'!$E$62:$E$68)+'Product Class Dist'!Q$14*SUMPRODUCT('Efficiency Dist'!U135:U141,'UEC Development'!$D$77:$D$83)+'Product Class Dist'!Q$15*SUMPRODUCT('Efficiency Dist'!U164:U170,'UEC Development'!$E$92:$E$98) -> 1421.771455 | R11: ='Product Class Dist'!R$10*SUMPRODUCT('Efficiency Dist'!V13:V20,'UEC Development'!$E$14:$E$21)+'Product Class Dist'!R$11*SUMPRODUCT('Efficiency Dist'!V44:V51,'UEC Development'!$E$30:$E$37)+'Product Class Dist'!R$12*SUMPRODUCT('Efficiency Dist'!V75:V82,'UEC Development'!$E$46:$E$53)+'Product Class Dist'!R$13*SUMPRODUCT('Efficiency Dist'!V106:V112,'UEC Development'!$E$62:$E$68)+'Product Class Dist'!R$14*SUMPRODUCT('Efficiency Dist'!V135:V141,'UEC Development'!$D$77:$D$83)+'Product Class Dist'!R$15*SUMPRODUCT('Efficiency Dist'!V164:V170,'UEC Development'!$E$92:$E$98) -> 1421.771455 | S11: ='Product Class Dist'!S$10*SUMPRODUCT('Efficiency Dist'!W13:W20,'UEC Development'!$E$14:$E$21)+'Product Class Dist'!S$11*SUMPRODUCT('Efficiency Dist'!W44:W51,'UEC Development'!$E$30:$E$37)+'Product Class Dist'!S$12*SUMPRODUCT('Efficiency Dist'!W75:W82,'UEC Development'!$E$46:$E$53)+'Product Class Dist'!S$13*SUMPRODUCT('Efficiency Dist'!W106:W112,'UEC Development'!$E$62:$E$68)+'Product Class Dist'!S$14*SUMPRODUCT('Efficiency Dist'!W135:W141,'UEC Development'!$D$77:$D$83)+'Product Class Dist'!S$15*SUMPRODUCT('Efficiency Dist'!W164:W170,'UEC Development'!$E$92:$E$98) -> 1421.771455 | T11: ='Product Class Dist'!T$10*SUMPRODUCT('Efficiency Dist'!X13:X20,'UEC Development'!$E$14:$E$21)+'Product Class Dist'!T$11*SUMPRODUCT('Efficiency Dist'!X44:X51,'UEC Development'!$E$30:$E$37)+'Product Class Dist'!T$12*SUMPRODUCT('Efficiency Dist'!X75:X82,'UEC Development'!$E$46:$E$53)+'Product Class Dist'!T$13*SUMPRODUCT('Efficiency Dist'!X106:X112,'UEC Development'!$E$62:$E$68)+'Product Class Dist'!T$14*SUMPRODUCT('Efficiency Dist'!X135:X141,'UEC Development'!$D$77:$D$83)+'Product Class Dist'!T$15*SUMPRODUCT('Efficiency Dist'!X164:X170,'UEC Development'!$E$92:$E$98) -> 1421.771455 | U11: ='Product Class Dist'!U$10*SUMPRODUCT('Efficiency Dist'!Y13:Y20,'UEC Development'!$E$14:$E$21)+'Product Class Dist'!U$11*SUMPRODUCT('Efficiency Dist'!Y44:Y51,'UEC Development'!$E$30:$E$37)+'Product Class Dist'!U$12*SUMPRODUCT('Efficiency Dist'!Y75:Y82,'UEC Development'!$E$46:$E$53)+'Product Class Dist'!U$13*SUMPRODUCT('Efficiency Dist'!Y106:Y112,'UEC Development'!$E$62:$E$68)+'Product Class Dist'!U$14*SUMPRODUCT('Efficiency Dist'!Y135:Y141,'UEC Development'!$D$77:$D$83)+'Product Class Dist'!U$15*SUMPRODUCT('Efficiency Dist'!Y164:Y170,'UEC Development'!$E$92:$E$98) -> 1421.771455 | V11: ='Product Class Dist'!V$10*SUMPRODUCT('Efficiency Dist'!Z13:Z20,'UEC Development'!$E$14:$E$21)+'Product Class Dist'!V$11*SUMPRODUCT('Efficiency Dist'!Z44:Z51,'UEC Development'!$E$30:$E$37)+'Product Class Dist'!V$12*SUMPRODUCT('Efficiency Dist'!Z75:Z82,'UEC Development'!$E$46:$E$53)+'Product Class Dist'!V$13*SUMPRODUCT('Efficiency Dist'!Z106:Z112,'UEC Development'!$E$62:$E$68)+'Product Class Dist'!V$14*SUMPRODUCT('Efficiency Dist'!Z135:Z141,'UEC Development'!$D$77:$D$83)+'Product Class Dist'!V$15*SUMPRODUCT('Efficiency Dist'!Z164:Z170,'UEC Development'!$E$92:$E$98) -> 1421.771455 | W11: ='Product Class Dist'!W$10*SUMPRODUCT('Efficiency Dist'!AA13:AA20,'UEC Development'!$E$14:$E$21)+'Product Class Dist'!W$11*SUMPRODUCT('Efficiency Dist'!AA44:AA51,'UEC Development'!$E$30:$E$37)+'Product Class Dist'!W$12*SUMPRODUCT('Efficiency Dist'!AA75:AA82,'UEC Development'!$E$46:$E$53)+'Product Class Dist'!W$13*SUMPRODUCT('Efficiency Dist'!AA106:AA112,'UEC Development'!$E$62:$E$68)+'Product Class Dist'!W$14*SUMPRODUCT('Efficiency Dist'!AA135:AA141,'UEC Development'!$D$77:$D$83)+'Product Class Dist'!W$15*SUMPRODUCT('Efficiency Dist'!AA164:AA170,'UEC Development'!$E$92:$E$98) -> 1421.771455 | X11: ='Product Class Dist'!X$10*SUMPRODUCT('Efficiency Dist'!AB13:AB20,'UEC Development'!$E$14:$E$21)+'Product Class Dist'!X$11*SUMPRODUCT('Efficiency Dist'!AB44:AB51,'UEC Development'!$E$30:$E$37)+'Product Class Dist'!X$12*SUMPRODUCT('Efficiency Dist'!AB75:AB82,'UEC Development'!$E$46:$E$53)+'Product Class Dist'!X$13*SUMPRODUCT('Efficiency Dist'!AB106:AB112,'UEC Development'!$E$62:$E$68)+'Product Class Dist'!X$14*SUMPRODUCT('Efficiency Dist'!AB135:AB141,'UEC Development'!$D$77:$D$83)+'Product Class Dist'!X$15*SUMPRODUCT('Efficiency Dist'!AB164:AB170,'UEC Development'!$E$92:$E$98) -> 1421.771455 | Y11: ='Product Class Dist'!Y$10*SUMPRODUCT('Efficiency Dist'!AC13:AC20,'UEC Development'!$E$14:$E$21)+'Product Class Dist'!Y$11*SUMPRODUCT('Efficiency Dist'!AC44:AC51,'UEC Development'!$E$30:$E$37)+'Product Class Dist'!Y$12*SUMPRODUCT('Efficiency Dist'!AC75:AC82,'UEC Development'!$E$46:$E$53)+'Product Class Dist'!Y$13*SUMPRODUCT('Efficiency Dist'!AC106:AC112,'UEC Development'!$E$62:$E$68)+'Product Class Dist'!Y$14*SUMPRODUCT('Efficiency Dist'!AC135:AC141,'UEC Development'!$D$77:$D$83)+'Product Class Dist'!Y$15*SUMPRODUCT('Efficiency Dist'!AC164:AC170,'UEC Development'!$E$92:$E$98) -> 1421.771455 | Z11: ='Product Class Dist'!Z$10*SUMPRODUCT('Efficiency Dist'!AD13:AD20,'UEC Development'!$E$14:$E$21)+'Product Class Dist'!Z$11*SUMPRODUCT('Efficiency Dist'!AD44:AD51,'UEC Development'!$E$30:$E$37)+'Product Class Dist'!Z$12*SUMPRODUCT('Efficiency Dist'!AD75:AD82,'UEC Development'!$E$46:$E$53)+'Product Class Dist'!Z$13*SUMPRODUCT('Efficiency Dist'!AD106:AD112,'UEC Development'!$E$62:$E$68)+'Product Class Dist'!Z$14*SUMPRODUCT('Efficiency Dist'!AD135:AD141,'UEC Development'!$D$77:$D$83)+'Product Class Dist'!Z$15*SUMPRODUCT('Efficiency Dist'!AD164:AD170,'UEC Development'!$E$92:$E$98) -> 1060.91645 | AA11: ='Product Class Dist'!AA$10*SUMPRODUCT('Efficiency Dist'!AE13:AE20,'UEC Development'!$E$14:$E$21)+'Product Class Dist'!AA$11*SUMPRODUCT('Efficiency Dist'!AE44:AE51,'UEC Development'!$E$30:$E$37)+'Product Class Dist'!AA$12*SUMPRODUCT('Efficiency Dist'!AE75:AE82,'UEC Development'!$E$46:$E$53)+'Product Class Dist'!AA$13*SUMPRODUCT('Efficiency Dist'!AE106:AE112,'UEC Development'!$E$62:$E$68)+'Product Class Dist'!AA$14*SUMPRODUCT('Efficiency Dist'!AE135:AE141,'UEC Development'!$D$77:$D$83)+'Product Class Dist'!AA$15*SUMPRODUCT('Efficiency Dist'!AE164:AE170,'UEC Development'!$E$92:$E$98) -> 1060.91645 | AB11: ='Product Class Dist'!AB$10*SUMPRODUCT('Efficiency Dist'!AF13:AF20,'UEC Development'!$E$14:$E$21)+'Product Class Dist'!AB$11*SUMPRODUCT('Efficiency Dist'!AF44:AF51,'UEC Development'!$E$30:$E$37)+'Product Class Dist'!AB$12*SUMPRODUCT('Efficiency Dist'!AF75:AF82,'UEC Development'!$E$46:$E$53)+'Product Class Dist'!AB$13*SUMPRODUCT('Efficiency Dist'!AF106:AF112,'UEC Development'!$E$62:$E$68)+'Product Class Dist'!AB$14*SUMPRODUCT('Efficiency Dist'!AF135:AF141,'UEC Development'!$D$77:$D$83)+'Product Class Dist'!AB$15*SUMPRODUCT('Efficiency Dist'!AF164:AF170,'UEC Development'!$E$92:$E$98) -> 1060.91645 | AC11: ='Product Class Dist'!AC$10*SUMPRODUCT('Efficiency Dist'!AG13:AG20,'UEC Development'!$E$14:$E$21)+'Product Class Dist'!AC$11*SUMPRODUCT('Efficiency Dist'!AG44:AG51,'UEC Development'!$E$30:$E$37)+'Product Class Dist'!AC$12*SUMPRODUCT('Efficiency Dist'!AG75:AG82,'UEC Development'!$E$46:$E$53)+'Product Class Dist'!AC$13*SUMPRODUCT('Efficiency Dist'!AG106:AG112,'UEC Development'!$E$62:$E$68)+'Product Class Dist'!AC$14*SUMPRODUCT('Efficiency Dist'!AG135:AG141,'UEC Development'!$D$77:$D$83)+'Product Class Dist'!AC$15*SUMPRODUCT('Efficiency Dist'!AG164:AG170,'UEC Development'!$E$92:$E$98) -> 1060.91645 | AD11: ='Product Class Dist'!AD$10*SUMPRODUCT('Efficiency Dist'!AH13:AH20,'UEC Development'!$E$14:$E$21)+'Product Class Dist'!AD$11*SUMPRODUCT('Efficiency Dist'!AH44:AH51,'UEC Development'!$E$30:$E$37)+'Product Class Dist'!AD$12*SUMPRODUCT('Efficiency Dist'!AH75:AH82,'UEC Development'!$E$46:$E$53)+'Product Class Dist'!AD$13*SUMPRODUCT('Efficiency Dist'!AH106:AH112,'UEC Development'!$E$62:$E$68)+'Product Class Dist'!AD$14*SUMPRODUCT('Efficiency Dist'!AH135:AH141,'UEC Development'!$D$77:$D$83)+'Product Class Dist'!AD$15*SUMPRODUCT('Efficiency Dist'!AH164:AH170,'UEC Development'!$E$92:$E$98) -> 1060.91645 | AE11: ='Product Class Dist'!AE$10*SUMPRODUCT('Efficiency Dist'!AI13:AI20,'UEC Development'!$E$14:$E$21)+'Product Class Dist'!AE$11*SUMPRODUCT('Efficiency Dist'!AI44:AI51,'UEC Development'!$E$30:$E$37)+'Product Class Dist'!AE$12*SUMPRODUCT('Efficiency Dist'!AI75:AI82,'UEC Development'!$E$46:$E$53)+'Product Class Dist'!AE$13*SUMPRODUCT('Efficiency Dist'!AI106:AI112,'UEC Development'!$E$62:$E$68)+'Product Class Dist'!AE$14*SUMPRODUCT('Efficiency Dist'!AI135:AI141,'UEC Development'!$D$77:$D$83)+'Product Class Dist'!AE$15*SUMPRODUCT('Efficiency Dist'!AI164:AI170,'UEC Development'!$E$92:$E$98) -> 1060.91645 | AF11: ='Product Class Dist'!AF$10*SUMPRODUCT('Efficiency Dist'!AJ13:AJ20,'UEC Development'!$E$14:$E$21)+'Product Class Dist'!AF$11*SUMPRODUCT('Efficiency Dist'!AJ44:AJ51,'UEC Development'!$E$30:$E$37)+'Product Class Dist'!AF$12*SUMPRODUCT('Efficiency Dist'!AJ75:AJ82,'UEC Development'!$E$46:$E$53)+'Product Class Dist'!AF$13*SUMPRODUCT('Efficiency Dist'!AJ106:AJ112,'UEC Development'!$E$62:$E$68)+'Product Class Dist'!AF$14*SUMPRODUCT('Efficiency Dist'!AJ135:AJ141,'UEC Development'!$D$77:$D$83)+'Product Class Dist'!AF$15*SUMPRODUCT('Efficiency Dist'!AJ164:AJ170,'UEC Development'!$E$92:$E$98) -> 1060.91645 | AG11: ='Product Class Dist'!AG$10*SUMPRODUCT('Efficiency Dist'!AK13:AK20,'UEC Development'!$E$14:$E$21)+'Product Class Dist'!AG$11*SUMPRODUCT('Efficiency Dist'!AK44:AK51,'UEC Development'!$E$30:$E$37)+'Product Class Dist'!AG$12*SUMPRODUCT('Efficiency Dist'!AK75:AK82,'UEC Development'!$E$46:$E$53)+'Product Class Dist'!AG$13*SUMPRODUCT('Efficiency Dist'!AK106:AK112,'UEC Development'!$E$62:$E$68)+'Product Class Dist'!AG$14*SUMPRODUCT('Efficiency Dist'!AK135:AK141,'UEC Development'!$D$77:$D$83)+'Product Class Dist'!AG$15*SUMPRODUCT('Efficiency Dist'!AK164:AK170,'UEC Development'!$E$92:$E$98) -> 1060.91645 | AH11: ='Product Class Dist'!AH$10*SUMPRODUCT('Efficiency Dist'!AL13:AL20,'UEC Development'!$E$14:$E$21)+'Product Class Dist'!AH$11*SUMPRODUCT('Efficiency Dist'!AL44:AL51,'UEC Development'!$E$30:$E$37)+'Product Class Dist'!AH$12*SUMPRODUCT('Efficiency Dist'!AL75:AL82,'UEC Development'!$E$46:$E$53)+'Product Class Dist'!AH$13*SUMPRODUCT('Efficiency Dist'!AL106:AL112,'UEC Development'!$E$62:$E$68)+'Product Class Dist'!AH$14*SUMPRODUCT('Efficiency Dist'!AL135:AL141,'UEC Development'!$D$77:$D$83)+'Product Class Dist'!AH$15*SUMPRODUCT('Efficiency Dist'!AL164:AL170,'UEC Development'!$E$92:$E$98) -> 1060.91645 | AI11: ='Product Class Dist'!AI$10*SUMPRODUCT('Efficiency Dist'!AM13:AM20,'UEC Development'!$E$14:$E$21)+'Product Class Dist'!AI$11*SUMPRODUCT('Efficiency Dist'!AM44:AM51,'UEC Development'!$E$30:$E$37)+'Product Class Dist'!AI$12*SUMPRODUCT('Efficiency Dist'!AM75:AM82,'UEC Development'!$E$46:$E$53)+'Product Class Dist'!AI$13*SUMPRODUCT('Efficiency Dist'!AM106:AM112,'UEC Development'!$E$62:$E$68)+'Product Class Dist'!AI$14*SUMPRODUCT('Efficiency Dist'!AM135:AM141,'UEC Development'!$D$77:$D$83)+'Product Class Dist'!AI$15*SUMPRODUCT('Efficiency Dist'!AM164:AM170,'UEC Development'!$E$92:$E$98) -> 1060.91645 | AJ11: ='Product Class Dist'!AJ$10*SUMPRODUCT('Efficiency Dist'!AN13:AN20,'UEC Development'!$E$14:$E$21)+'Product Class Dist'!AJ$11*SUMPRODUCT('Efficiency Dist'!AN44:AN51,'UEC Development'!$E$30:$E$37)+'Product Class Dist'!AJ$12*SUMPRODUCT('Efficiency Dist'!AN75:AN82,'UEC Development'!$E$46:$E$53)+'Product Class Dist'!AJ$13*SUMPRODUCT('Efficiency Dist'!AN106:AN112,'UEC Development'!$E$62:$E$68)+'Product Class Dist'!AJ$14*SUMPRODUCT('Efficiency Dist'!AN135:AN141,'UEC Development'!$D$77:$D$83)+'Product Class Dist'!AJ$15*SUMPRODUCT('Efficiency Dist'!AN164:AN170,'UEC Development'!$E$92:$E$98) -> 1060.91645 | AK11: ='Product Class Dist'!AK$10*SUMPRODUCT('Efficiency Dist'!AO13:AO20,'UEC Development'!$E$14:$E$21)+'Product Class Dist'!AK$11*SUMPRODUCT('Efficiency Dist'!AO44:AO51,'UEC Development'!$E$30:$E$37)+'Product Class Dist'!AK$12*SUMPRODUCT('Efficiency Dist'!AO75:AO82,'UEC Development'!$E$46:$E$53)+'Product Class Dist'!AK$13*SUMPRODUCT('Efficiency Dist'!AO106:AO112,'UEC Development'!$E$62:$E$68)+'Product Class Dist'!AK$14*SUMPRODUCT('Efficiency Dist'!AO135:AO141,'UEC Development'!$D$77:$D$83)+'Product Class Dist'!AK$15*SUMPRODUCT('Efficiency Dist'!AO164:AO170,'UEC Development'!$E$92:$E$98) -> 1060.91645 | AL11: ='Product Class Dist'!AL$10*SUMPRODUCT('Efficiency Dist'!AP13:AP20,'UEC Development'!$E$14:$E$21)+'Product Class Dist'!AL$11*SUMPRODUCT('Efficiency Dist'!AP44:AP51,'UEC Development'!$E$30:$E$37)+'Product Class Dist'!AL$12*SUMPRODUCT('Efficiency Dist'!AP75:AP82,'UEC Development'!$E$46:$E$53)+'Product Class Dist'!AL$13*SUMPRODUCT('Efficiency Dist'!AP106:AP112,'UEC Development'!$E$62:$E$68)+'Product Class Dist'!AL$14*SUMPRODUCT('Efficiency Dist'!AP135:AP141,'UEC Development'!$D$77:$D$83)+'Product Class Dist'!AL$15*SUMPRODUCT('Efficiency Dist'!AP164:AP170,'UEC Development'!$E$92:$E$98) -> 1060.91645 | AM11: ='Product Class Dist'!AM$10*SUMPRODUCT('Efficiency Dist'!AQ13:AQ20,'UEC Development'!$E$14:$E$21)+'Product Class Dist'!AM$11*SUMPRODUCT('Efficiency Dist'!AQ44:AQ51,'UEC Development'!$E$30:$E$37)+'Product Class Dist'!AM$12*SUMPRODUCT('Efficiency Dist'!AQ75:AQ82,'UEC Development'!$E$46:$E$53)+'Product Class Dist'!AM$13*SUMPRODUCT('Efficiency Dist'!AQ106:AQ112,'UEC Development'!$E$62:$E$68)+'Product Class Dist'!AM$14*SUMPRODUCT('Efficiency Dist'!AQ135:AQ141,'UEC Development'!$D$77:$D$83)+'Product Class Dist'!AM$15*SUMPRODUCT('Efficiency Dist'!AQ164:AQ170,'UEC Development'!$E$92:$E$98) -> 1060.91645 | AN11: ='Product Class Dist'!AN$10*SUMPRODUCT('Efficiency Dist'!AR13:AR20,'UEC Development'!$E$14:$E$21)+'Product Class Dist'!AN$11*SUMPRODUCT('Efficiency Dist'!AR44:AR51,'UEC Development'!$E$30:$E$37)+'Product Class Dist'!AN$12*SUMPRODUCT('Efficiency Dist'!AR75:AR82,'UEC Development'!$E$46:$E$53)+'Product Class Dist'!AN$13*SUMPRODUCT('Efficiency Dist'!AR106:AR112,'UEC Development'!$E$62:$E$68)+'Product Class Dist'!AN$14*SUMPRODUCT('Efficiency Dist'!AR135:AR141,'UEC Development'!$D$77:$D$83)+'Product Class Dist'!AN$15*SUMPRODUCT('Efficiency Dist'!AR164:AR170,'UEC Development'!$E$92:$E$98) -> 1060.91645 | AO11: ='Product Class Dist'!AO$10*SUMPRODUCT('Efficiency Dist'!AS13:AS20,'UEC Development'!$E$14:$E$21)+'Product Class Dist'!AO$11*SUMPRODUCT('Efficiency Dist'!AS44:AS51,'UEC Development'!$E$30:$E$37)+'Product Class Dist'!AO$12*SUMPRODUCT('Efficiency Dist'!AS75:AS82,'UEC Development'!$E$46:$E$53)+'Product Class Dist'!AO$13*SUMPRODUCT('Efficiency Dist'!AS106:AS112,'UEC Development'!$E$62:$E$68)+'Product Class Dist'!AO$14*SUMPRODUCT('Efficiency Dist'!AS135:AS141,'UEC Development'!$D$77:$D$83)+'Product Class Dist'!AO$15*SUMPRODUCT('Efficiency Dist'!AS164:AS170,'UEC Development'!$E$92:$E$98) -> 1060.91645 | AP11: ='Product Class Dist'!AP$10*SUMPRODUCT('Efficiency Dist'!AT13:AT20,'UEC Development'!$E$14:$E$21)+'Product Class Dist'!AP$11*SUMPRODUCT('Efficiency Dist'!AT44:AT51,'UEC Development'!$E$30:$E$37)+'Product Class Dist'!AP$12*SUMPRODUCT('Efficiency Dist'!AT75:AT82,'UEC Development'!$E$46:$E$53)+'Product Class Dist'!AP$13*SUMPRODUCT('Efficiency Dist'!AT106:AT112,'UEC Development'!$E$62:$E$68)+'Product Class Dist'!AP$14*SUMPRODUCT('Efficiency Dist'!AT135:AT141,'UEC Development'!$D$77:$D$83)+'Product Class Dist'!AP$15*SUMPRODUCT('Efficiency Dist'!AT164:AT170,'UEC Development'!$E$92:$E$98) -> 1060.91645 | AQ11: ='Product Class Dist'!AQ$10*SUMPRODUCT('Efficiency Dist'!AU13:AU20,'UEC Development'!$E$14:$E$21)+'Product Class Dist'!AQ$11*SUMPRODUCT('Efficiency Dist'!AU44:AU51,'UEC Development'!$E$30:$E$37)+'Product Class Dist'!AQ$12*SUMPRODUCT('Efficiency Dist'!AU75:AU82,'UEC Development'!$E$46:$E$53)+'Product Class Dist'!AQ$13*SUMPRODUCT('Efficiency Dist'!AU106:AU112,'UEC Development'!$E$62:$E$68)+'Product Class Dist'!AQ$14*SUMPRODUCT('Efficiency Dist'!AU135:AU141,'UEC Development'!$D$77:$D$83)+'Product Class Dist'!AQ$15*SUMPRODUCT('Efficiency Dist'!AU164:AU170,'UEC Development'!$E$92:$E$98) -> 1060.91645 | AR11: ='Product Class Dist'!AR$10*SUMPRODUCT('Efficiency Dist'!AV13:AV20,'UEC Development'!$E$14:$E$21)+'Product Class Dist'!AR$11*SUMPRODUCT('Efficiency Dist'!AV44:AV51,'UEC Development'!$E$30:$E$37)+'Product Class Dist'!AR$12*SUMPRODUCT('Efficiency Dist'!AV75:AV82,'UEC Development'!$E$46:$E$53)+'Product Class Dist'!AR$13*SUMPRODUCT('Efficiency Dist'!AV106:AV112,'UEC Development'!$E$62:$E$68)+'Product Class Dist'!AR$14*SUMPRODUCT('Efficiency Dist'!AV135:AV141,'UEC Development'!$D$77:$D$83)+'Product Class Dist'!AR$15*SUMPRODUCT('Efficiency Dist'!AV164:AV170,'UEC Development'!$E$92:$E$98) -> 1060.91645 | AS11: ='Product Class Dist'!AS$10*SUMPRODUCT('Efficiency Dist'!AW13:AW20,'UEC Development'!$E$14:$E$21)+'Product Class Dist'!AS$11*SUMPRODUCT('Efficiency Dist'!AW44:AW51,'UEC Development'!$E$30:$E$37)+'Product Class Dist'!AS$12*SUMPRODUCT('Efficiency Dist'!AW75:AW82,'UEC Development'!$E$46:$E$53)+'Product Class Dist'!AS$13*SUMPRODUCT('Efficiency Dist'!AW106:AW112,'UEC Development'!$E$62:$E$68)+'Product Class Dist'!AS$14*SUMPRODUCT('Efficiency Dist'!AW135:AW141,'UEC Development'!$D$77:$D$83)+'Product Class Dist'!AS$15*SUMPRODUCT('Efficiency Dist'!AW164:AW170,'UEC Development'!$E$92:$E$98) -> 1060.91645 | AT11: ='Product Class Dist'!AT$10*SUMPRODUCT('Efficiency Dist'!AX13:AX20,'UEC Development'!$E$14:$E$21)+'Product Class Dist'!AT$11*SUMPRODUCT('Efficiency Dist'!AX44:AX51,'UEC Development'!$E$30:$E$37)+'Product Class Dist'!AT$12*SUMPRODUCT('Efficiency Dist'!AX75:AX82,'UEC Development'!$E$46:$E$53)+'Product Class Dist'!AT$13*SUMPRODUCT('Efficiency Dist'!AX106:AX112,'UEC Development'!$E$62:$E$68)+'Product Class Dist'!AT$14*SUMPRODUCT('Efficiency Dist'!AX135:AX141,'UEC Development'!$D$77:$D$83)+'Product Class Dist'!AT$15*SUMPRODUCT('Efficiency Dist'!AX164:AX170,'UEC Development'!$E$92:$E$98) -> 1060.91645 | AU11: ='Product Class Dist'!AU$10*SUMPRODUCT('Efficiency Dist'!AY13:AY20,'UEC Development'!$E$14:$E$21)+'Product Class Dist'!AU$11*SUMPRODUCT('Efficiency Dist'!AY44:AY51,'UEC Development'!$E$30:$E$37)+'Product Class Dist'!AU$12*SUMPRODUCT('Efficiency Dist'!AY75:AY82,'UEC Development'!$E$46:$E$53)+'Product Class Dist'!AU$13*SUMPRODUCT('Efficiency Dist'!AY106:AY112,'UEC Development'!$E$62:$E$68)+'Product Class Dist'!AU$14*SUMPRODUCT('Efficiency Dist'!AY135:AY141,'UEC Development'!$D$77:$D$83)+'Product Class Dist'!AU$15*SUMPRODUCT('Efficiency Dist'!AY164:AY170,'UEC Development'!$E$92:$E$98) -> 1060.91645 | AV11: ='Product Class Dist'!AV$10*SUMPRODUCT('Efficiency Dist'!AZ13:AZ20,'UEC Development'!$E$14:$E$21)+'Product Class Dist'!AV$11*SUMPRODUCT('Efficiency Dist'!AZ44:AZ51,'UEC Development'!$E$30:$E$37)+'Product Class Dist'!AV$12*SUMPRODUCT('Efficiency Dist'!AZ75:AZ82,'UEC Development'!$E$46:$E$53)+'Product Class Dist'!AV$13*SUMPRODUCT('Efficiency Dist'!AZ106:AZ112,'UEC Development'!$E$62:$E$68)+'Product Class Dist'!AV$14*SUMPRODUCT('Efficiency Dist'!AZ135:AZ141,'UEC Development'!$D$77:$D$83)+'Product Class Dist'!AV$15*SUMPRODUCT('Efficiency Dist'!AZ164:AZ170,'UEC Development'!$E$92:$E$98) -> 1060.91645
C12: POST-Case UEC | D12: ='Product Class Dist'!D$10*SUMPRODUCT('Efficiency Dist'!H25:H32,'UEC Development'!$E$14:$E$21)+'Product Class Dist'!D$11*SUMPRODUCT('Efficiency Dist'!H56:H63,'UEC Development'!$E$30:$E$37)+'Product Class Dist'!D$12*SUMPRODUCT('Efficiency Dist'!H87:H94,'UEC Development'!$E$46:$E$53)+'Product Class Dist'!D$13*SUMPRODUCT('Efficiency Dist'!H117:H123,'UEC Development'!$E$62:$E$68)+'Product Class Dist'!D$14*SUMPRODUCT('Efficiency Dist'!H146:H152,'UEC Development'!$D$77:$D$83)+'Product Class Dist'!D$15*SUMPRODUCT('Efficiency Dist'!H175:H181,'UEC Development'!$E$92:$E$98) -> 1421.771455 | E12: ='Product Class Dist'!E$10*SUMPRODUCT('Efficiency Dist'!I25:I32,'UEC Development'!$E$14:$E$21)+'Product Class Dist'!E$11*SUMPRODUCT('Efficiency Dist'!I56:I63,'UEC Development'!$E$30:$E$37)+'Product Class Dist'!E$12*SUMPRODUCT('Efficiency Dist'!I87:I94,'UEC Development'!$E$46:$E$53)+'Product Class Dist'!E$13*SUMPRODUCT('Efficiency Dist'!I117:I123,'UEC Development'!$E$62:$E$68)+'Product Class Dist'!E$14*SUMPRODUCT('Efficiency Dist'!I146:I152,'UEC Development'!$D$77:$D$83)+'Product Class Dist'!E$15*SUMPRODUCT('Efficiency Dist'!I175:I181,'UEC Development'!$E$92:$E$98) -> 1421.771455 | F12: ='Product Class Dist'!F$10*SUMPRODUCT('Efficiency Dist'!J25:J32,'UEC Development'!$E$14:$E$21)+'Product Class Dist'!F$11*SUMPRODUCT('Efficiency Dist'!J56:J63,'UEC Development'!$E$30:$E$37)+'Product Class Dist'!F$12*SUMPRODUCT('Efficiency Dist'!J87:J94,'UEC Development'!$E$46:$E$53)+'Product Class Dist'!F$13*SUMPRODUCT('Efficiency Dist'!J117:J123,'UEC Development'!$E$62:$E$68)+'Product Class Dist'!F$14*SUMPRODUCT('Efficiency Dist'!J146:J152,'UEC Development'!$D$77:$D$83)+'Product Class Dist'!F$15*SUMPRODUCT('Efficiency Dist'!J175:J181,'UEC Development'!$E$92:$E$98) -> 1421.771455 | G12: ='Product Class Dist'!G$10*SUMPRODUCT('Efficiency Dist'!K25:K32,'UEC Development'!$E$14:$E$21)+'Product Class Dist'!G$11*SUMPRODUCT('Efficiency Dist'!K56:K63,'UEC Development'!$E$30:$E$37)+'Product Class Dist'!G$12*SUMPRODUCT('Efficiency Dist'!K87:K94,'UEC Development'!$E$46:$E$53)+'Product Class Dist'!G$13*SUMPRODUCT('Efficiency Dist'!K117:K123,'UEC Development'!$E$62:$E$68)+'Product Class Dist'!G$14*SUMPRODUCT('Efficiency Dist'!K146:K152,'UEC Development'!$D$77:$D$83)+'Product Class Dist'!G$15*SUMPRODUCT('Efficiency Dist'!K175:K181,'UEC Development'!$E$92:$E$98) -> 1421.771455 | H12: ='Product Class Dist'!H$10*SUMPRODUCT('Efficiency Dist'!L25:L32,'UEC Development'!$E$14:$E$21)+'Product Class Dist'!H$11*SUMPRODUCT('Efficiency Dist'!L56:L63,'UEC Development'!$E$30:$E$37)+'Product Class Dist'!H$12*SUMPRODUCT('Efficiency Dist'!L87:L94,'UEC Development'!$E$46:$E$53)+'Product Class Dist'!H$13*SUMPRODUCT('Efficiency Dist'!L117:L123,'UEC Development'!$E$62:$E$68)+'Product Class Dist'!H$14*SUMPRODUCT('Efficiency Dist'!L146:L152,'UEC Development'!$D$77:$D$83)+'Product Class Dist'!H$15*SUMPRODUCT('Efficiency Dist'!L175:L181,'UEC Development'!$E$92:$E$98) -> 1421.771455 | I12: ='Product Class Dist'!I$10*SUMPRODUCT('Efficiency Dist'!M25:M32,'UEC Development'!$E$14:$E$21)+'Product Class Dist'!I$11*SUMPRODUCT('Efficiency Dist'!M56:M63,'UEC Development'!$E$30:$E$37)+'Product Class Dist'!I$12*SUMPRODUCT('Efficiency Dist'!M87:M94,'UEC Development'!$E$46:$E$53)+'Product Class Dist'!I$13*SUMPRODUCT('Efficiency Dist'!M117:M123,'UEC Development'!$E$62:$E$68)+'Product Class Dist'!I$14*SUMPRODUCT('Efficiency Dist'!M146:M152,'UEC Development'!$D$77:$D$83)+'Product Class Dist'!I$15*SUMPRODUCT('Efficiency Dist'!M175:M181,'UEC Development'!$E$92:$E$98) -> 1421.771455 | J12: ='Product Class Dist'!J$10*SUMPRODUCT('Efficiency Dist'!N25:N32,'UEC Development'!$E$14:$E$21)+'Product Class Dist'!J$11*SUMPRODUCT('Efficiency Dist'!N56:N63,'UEC Development'!$E$30:$E$37)+'Product Class Dist'!J$12*SUMPRODUCT('Efficiency Dist'!N87:N94,'UEC Development'!$E$46:$E$53)+'Product Class Dist'!J$13*SUMPRODUCT('Efficiency Dist'!N117:N123,'UEC Development'!$E$62:$E$68)+'Product Class Dist'!J$14*SUMPRODUCT('Efficiency Dist'!N146:N152,'UEC Development'!$D$77:$D$83)+'Product Class Dist'!J$15*SUMPRODUCT('Efficiency Dist'!N175:N181,'UEC Development'!$E$92:$E$98) -> 1421.771455 | K12: ='Product Class Dist'!K$10*SUMPRODUCT('Efficiency Dist'!O25:O32,'UEC Development'!$E$14:$E$21)+'Product Class Dist'!K$11*SUMPRODUCT('Efficiency Dist'!O56:O63,'UEC Development'!$E$30:$E$37)+'Product Class Dist'!K$12*SUMPRODUCT('Efficiency Dist'!O87:O94,'UEC Development'!$E$46:$E$53)+'Product Class Dist'!K$13*SUMPRODUCT('Efficiency Dist'!O117:O123,'UEC Development'!$E$62:$E$68)+'Product Class Dist'!K$14*SUMPRODUCT('Efficiency Dist'!O146:O152,'UEC Development'!$D$77:$D$83)+'Product Class Dist'!K$15*SUMPRODUCT('Efficiency Dist'!O175:O181,'UEC Development'!$E$92:$E$98) -> 1421.771455 | L12: ='Product Class Dist'!L$10*SUMPRODUCT('Efficiency Dist'!P25:P32,'UEC Development'!$E$14:$E$21)+'Product Class Dist'!L$11*SUMPRODUCT('Efficiency Dist'!P56:P63,'UEC Development'!$E$30:$E$37)+'Product Class Dist'!L$12*SUMPRODUCT('Efficiency Dist'!P87:P94,'UEC Development'!$E$46:$E$53)+'Product Class Dist'!L$13*SUMPRODUCT('Efficiency Dist'!P117:P123,'UEC Development'!$E$62:$E$68)+'Product Class Dist'!L$14*SUMPRODUCT('Efficiency Dist'!P146:P152,'UEC Development'!$D$77:$D$83)+'Product Class Dist'!L$15*SUMPRODUCT('Efficiency Dist'!P175:P181,'UEC Development'!$E$92:$E$98) -> 1421.771455 | M12: ='Product Class Dist'!M$10*SUMPRODUCT('Efficiency Dist'!Q25:Q32,'UEC Development'!$E$14:$E$21)+'Product Class Dist'!M$11*SUMPRODUCT('Efficiency Dist'!Q56:Q63,'UEC Development'!$E$30:$E$37)+'Product Class Dist'!M$12*SUMPRODUCT('Efficiency Dist'!Q87:Q94,'UEC Development'!$E$46:$E$53)+'Product Class Dist'!M$13*SUMPRODUCT('Efficiency Dist'!Q117:Q123,'UEC Development'!$E$62:$E$68)+'Product Class Dist'!M$14*SUMPRODUCT('Efficiency Dist'!Q146:Q152,'UEC Development'!$D$77:$D$83)+'Product Class Dist'!M$15*SUMPRODUCT('Efficiency Dist'!Q175:Q181,'UEC Development'!$E$92:$E$98) -> 1421.771455 | N12: ='Product Class Dist'!N$10*SUMPRODUCT('Efficiency Dist'!R25:R32,'UEC Development'!$E$14:$E$21)+'Product Class Dist'!N$11*SUMPRODUCT('Efficiency Dist'!R56:R63,'UEC Development'!$E$30:$E$37)+'Product Class Dist'!N$12*SUMPRODUCT('Efficiency Dist'!R87:R94,'UEC Development'!$E$46:$E$53)+'Product Class Dist'!N$13*SUMPRODUCT('Efficiency Dist'!R117:R123,'UEC Development'!$E$62:$E$68)+'Product Class Dist'!N$14*SUMPRODUCT('Efficiency Dist'!R146:R152,'UEC Development'!$D$77:$D$83)+'Product Class Dist'!N$15*SUMPRODUCT('Efficiency Dist'!R175:R181,'UEC Development'!$E$92:$E$98) -> 1421.771455 | O12: ='Product Class Dist'!O$10*SUMPRODUCT('Efficiency Dist'!S25:S32,'UEC Development'!$E$14:$E$21)+'Product Class Dist'!O$11*SUMPRODUCT('Efficiency Dist'!S56:S63,'UEC Development'!$E$30:$E$37)+'Product Class Dist'!O$12*SUMPRODUCT('Efficiency Dist'!S87:S94,'UEC Development'!$E$46:$E$53)+'Product Class Dist'!O$13*SUMPRODUCT('Efficiency Dist'!S117:S123,'UEC Development'!$E$62:$E$68)+'Product Class Dist'!O$14*SUMPRODUCT('Efficiency Dist'!S146:S152,'UEC Development'!$D$77:$D$83)+'Product Class Dist'!O$15*SUMPRODUCT('Efficiency Dist'!S175:S181,'UEC Development'!$E$92:$E$98) -> 1421.771455 | P12: ='Product Class Dist'!P$10*SUMPRODUCT('Efficiency Dist'!T25:T32,'UEC Development'!$E$14:$E$21)+'Product Class Dist'!P$11*SUMPRODUCT('Efficiency Dist'!T56:T63,'UEC Development'!$E$30:$E$37)+'Product Class Dist'!P$12*SUMPRODUCT('Efficiency Dist'!T87:T94,'UEC Development'!$E$46:$E$53)+'Product Class Dist'!P$13*SUMPRODUCT('Efficiency Dist'!T117:T123,'UEC Development'!$E$62:$E$68)+'Product Class Dist'!P$14*SUMPRODUCT('Efficiency Dist'!T146:T152,'UEC Development'!$D$77:$D$83)+'Product Class Dist'!P$15*SUMPRODUCT('Efficiency Dist'!T175:T181,'UEC Development'!$E$92:$E$98) -> 1421.771455 | Q12: ='Product Class Dist'!Q$10*SUMPRODUCT('Efficiency Dist'!U25:U32,'UEC Development'!$E$14:$E$21)+'Product Class Dist'!Q$11*SUMPRODUCT('Efficiency Dist'!U56:U63,'UEC Development'!$E$30:$E$37)+'Product Class Dist'!Q$12*SUMPRODUCT('Efficiency Dist'!U87:U94,'UEC Development'!$E$46:$E$53)+'Product Class Dist'!Q$13*SUMPRODUCT('Efficiency Dist'!U117:U123,'UEC Development'!$E$62:$E$68)+'Product Class Dist'!Q$14*SUMPRODUCT('Efficiency Dist'!U146:U152,'UEC Development'!$D$77:$D$83)+'Product Class Dist'!Q$15*SUMPRODUCT('Efficiency Dist'!U175:U181,'UEC Development'!$E$92:$E$98) -> 1421.771455 | R12: ='Product Class Dist'!R$10*SUMPRODUCT('Efficiency Dist'!V25:V32,'UEC Development'!$E$14:$E$21)+'Product Class Dist'!R$11*SUMPRODUCT('Efficiency Dist'!V56:V63,'UEC Development'!$E$30:$E$37)+'Product Class Dist'!R$12*SUMPRODUCT('Efficiency Dist'!V87:V94,'UEC Development'!$E$46:$E$53)+'Product Class Dist'!R$13*SUMPRODUCT('Efficiency Dist'!V117:V123,'UEC Development'!$E$62:$E$68)+'Product Class Dist'!R$14*SUMPRODUCT('Efficiency Dist'!V146:V152,'UEC Development'!$D$77:$D$83)+'Product Class Dist'!R$15*SUMPRODUCT('Efficiency Dist'!V175:V181,'UEC Development'!$E$92:$E$98) -> 1421.771455 | S12: ='Product Class Dist'!S$10*SUMPRODUCT('Efficiency Dist'!W25:W32,'UEC Development'!$E$14:$E$21)+'Product Class Dist'!S$11*SUMPRODUCT('Efficiency Dist'!W56:W63,'UEC Development'!$E$30:$E$37)+'Product Class Dist'!S$12*SUMPRODUCT('Efficiency Dist'!W87:W94,'UEC Development'!$E$46:$E$53)+'Product Class Dist'!S$13*SUMPRODUCT('Efficiency Dist'!W117:W123,'UEC Development'!$E$62:$E$68)+'Product Class Dist'!S$14*SUMPRODUCT('Efficiency Dist'!W146:W152,'UEC Development'!$D$77:$D$83)+'Product Class Dist'!S$15*SUMPRODUCT('Efficiency Dist'!W175:W181,'UEC Development'!$E$92:$E$98) -> 1421.771455 | T12: ='Product Class Dist'!T$10*SUMPRODUCT('Efficiency Dist'!X25:X32,'UEC Development'!$E$14:$E$21)+'Product Class Dist'!T$11*SUMPRODUCT('Efficiency Dist'!X56:X63,'UEC Development'!$E$30:$E$37)+'Product Class Dist'!T$12*SUMPRODUCT('Efficiency Dist'!X87:X94,'UEC Development'!$E$46:$E$53)+'Product Class Dist'!T$13*SUMPRODUCT('Efficiency Dist'!X117:X123,'UEC Development'!$E$62:$E$68)+'Product Class Dist'!T$14*SUMPRODUCT('Efficiency Dist'!X146:X152,'UEC Development'!$D$77:$D$83)+'Product Class Dist'!T$15*SUMPRODUCT('Efficiency Dist'!X175:X181,'UEC Development'!$E$92:$E$98) -> 1421.771455 | U12: ='Product Class Dist'!U$10*SUMPRODUCT('Efficiency Dist'!Y25:Y32,'UEC Development'!$E$14:$E$21)+'Product Class Dist'!U$11*SUMPRODUCT('Efficiency Dist'!Y56:Y63,'UEC Development'!$E$30:$E$37)+'Product Class Dist'!U$12*SUMPRODUCT('Efficiency Dist'!Y87:Y94,'UEC Development'!$E$46:$E$53)+'Product Class Dist'!U$13*SUMPRODUCT('Efficiency Dist'!Y117:Y123,'UEC Development'!$E$62:$E$68)+'Product Class Dist'!U$14*SUMPRODUCT('Efficiency Dist'!Y146:Y152,'UEC Development'!$D$77:$D$83)+'Product Class Dist'!U$15*SUMPRODUCT('Efficiency Dist'!Y175:Y181,'UEC Development'!$E$92:$E$98) -> 1421.771455 | V12: ='Product Class Dist'!V$10*SUMPRODUCT('Efficiency Dist'!Z25:Z32,'UEC Development'!$E$14:$E$21)+'Product Class Dist'!V$11*SUMPRODUCT('Efficiency Dist'!Z56:Z63,'UEC Development'!$E$30:$E$37)+'Product Class Dist'!V$12*SUMPRODUCT('Efficiency Dist'!Z87:Z94,'UEC Development'!$E$46:$E$53)+'Product Class Dist'!V$13*SUMPRODUCT('Efficiency Dist'!Z117:Z123,'UEC Development'!$E$62:$E$68)+'Product Class Dist'!V$14*SUMPRODUCT('Efficiency Dist'!Z146:Z152,'UEC Development'!$D$77:$D$83)+'Product Class Dist'!V$15*SUMPRODUCT('Efficiency Dist'!Z175:Z181,'UEC Development'!$E$92:$E$98) -> 1421.771455 | W12: ='Product Class Dist'!W$10*SUMPRODUCT('Efficiency Dist'!AA25:AA32,'UEC Development'!$E$14:$E$21)+'Product Class Dist'!W$11*SUMPRODUCT('Efficiency Dist'!AA56:AA63,'UEC Development'!$E$30:$E$37)+'Product Class Dist'!W$12*SUMPRODUCT('Efficiency Dist'!AA87:AA94,'UEC Development'!$E$46:$E$53)+'Product Class Dist'!W$13*SUMPRODUCT('Efficiency Dist'!AA117:AA123,'UEC Development'!$E$62:$E$68)+'Product Class Dist'!W$14*SUMPRODUCT('Efficiency Dist'!AA146:AA152,'UEC Development'!$D$77:$D$83)+'Product Class Dist'!W$15*SUMPRODUCT('Efficiency Dist'!AA175:AA181,'UEC Development'!$E$92:$E$98) -> 1421.771455 | X12: ='Product Class Dist'!X$10*SUMPRODUCT('Efficiency Dist'!AB25:AB32,'UEC Development'!$E$14:$E$21)+'Product Class Dist'!X$11*SUMPRODUCT('Efficiency Dist'!AB56:AB63,'UEC Development'!$E$30:$E$37)+'Product Class Dist'!X$12*SUMPRODUCT('Efficiency Dist'!AB87:AB94,'UEC Development'!$E$46:$E$53)+'Product Class Dist'!X$13*SUMPRODUCT('Efficiency Dist'!AB117:AB123,'UEC Development'!$E$62:$E$68)+'Product Class Dist'!X$14*SUMPRODUCT('Efficiency Dist'!AB146:AB152,'UEC Development'!$D$77:$D$83)+'Product Class Dist'!X$15*SUMPRODUCT('Efficiency Dist'!AB175:AB181,'UEC Development'!$E$92:$E$98) -> 1421.771455 | Y12: ='Product Class Dist'!Y$10*SUMPRODUCT('Efficiency Dist'!AC25:AC32,'UEC Development'!$E$14:$E$21)+'Product Class Dist'!Y$11*SUMPRODUCT('Efficiency Dist'!AC56:AC63,'UEC Development'!$E$30:$E$37)+'Product Class Dist'!Y$12*SUMPRODUCT('Efficiency Dist'!AC87:AC94,'UEC Development'!$E$46:$E$53)+'Product Class Dist'!Y$13*SUMPRODUCT('Efficiency Dist'!AC117:AC123,'UEC Development'!$E$62:$E$68)+'Product Class Dist'!Y$14*SUMPRODUCT('Efficiency Dist'!AC146:AC152,'UEC Development'!$D$77:$D$83)+'Product Class Dist'!Y$15*SUMPRODUCT('Efficiency Dist'!AC175:AC181,'UEC Development'!$E$92:$E$98) -> 1421.771455 | Z12: ='Product Class Dist'!Z$10*SUMPRODUCT('Efficiency Dist'!AD25:AD32,'UEC Development'!$E$14:$E$21)+'Product Class Dist'!Z$11*SUMPRODUCT('Efficiency Dist'!AD56:AD63,'UEC Development'!$E$30:$E$37)+'Product Class Dist'!Z$12*SUMPRODUCT('Efficiency Dist'!AD87:AD94,'UEC Development'!$E$46:$E$53)+'Product Class Dist'!Z$13*SUMPRODUCT('Efficiency Dist'!AD117:AD123,'UEC Development'!$E$62:$E$68)+'Product Class Dist'!Z$14*SUMPRODUCT('Efficiency Dist'!AD146:AD152,'UEC Development'!$D$77:$D$83)+'Product Class Dist'!Z$15*SUMPRODUCT('Efficiency Dist'!AD175:AD181,'UEC Development'!$E$92:$E$98) -> 1060.91645 | AA12: ='Product Class Dist'!AA$10*SUMPRODUCT('Efficiency Dist'!AE25:AE32,'UEC Development'!$E$14:$E$21)+'Product Class Dist'!AA$11*SUMPRODUCT('Efficiency Dist'!AE56:AE63,'UEC Development'!$E$30:$E$37)+'Product Class Dist'!AA$12*SUMPRODUCT('Efficiency Dist'!AE87:AE94,'UEC Development'!$E$46:$E$53)+'Product Class Dist'!AA$13*SUMPRODUCT('Efficiency Dist'!AE117:AE123,'UEC Development'!$E$62:$E$68)+'Product Class Dist'!AA$14*SUMPRODUCT('Efficiency Dist'!AE146:AE152,'UEC Development'!$D$77:$D$83)+'Product Class Dist'!AA$15*SUMPRODUCT('Efficiency Dist'!AE175:AE181,'UEC Development'!$E$92:$E$98) -> 1060.91645 | AB12: ='Product Class Dist'!AB$10*SUMPRODUCT('Efficiency Dist'!AF25:AF32,'UEC Development'!$E$14:$E$21)+'Product Class Dist'!AB$11*SUMPRODUCT('Efficiency Dist'!AF56:AF63,'UEC Development'!$E$30:$E$37)+'Product Class Dist'!AB$12*SUMPRODUCT('Efficiency Dist'!AF87:AF94,'UEC Development'!$E$46:$E$53)+'Product Class Dist'!AB$13*SUMPRODUCT('Efficiency Dist'!AF117:AF123,'UEC Development'!$E$62:$E$68)+'Product Class Dist'!AB$14*SUMPRODUCT('Efficiency Dist'!AF146:AF152,'UEC Development'!$D$77:$D$83)+'Product Class Dist'!AB$15*SUMPRODUCT('Efficiency Dist'!AF175:AF181,'UEC Development'!$E$92:$E$98) -> 1060.91645 | AC12: ='Product Class Dist'!AC$10*SUMPRODUCT('Efficiency Dist'!AG25:AG32,'UEC Development'!$E$14:$E$21)+'Product Class Dist'!AC$11*SUMPRODUCT('Efficiency Dist'!AG56:AG63,'UEC Development'!$E$30:$E$37)+'Product Class Dist'!AC$12*SUMPRODUCT('Efficiency Dist'!AG87:AG94,'UEC Development'!$E$46:$E$53)+'Product Class Dist'!AC$13*SUMPRODUCT('Efficiency Dist'!AG117:AG123,'UEC Development'!$E$62:$E$68)+'Product Class Dist'!AC$14*SUMPRODUCT('Efficiency Dist'!AG146:AG152,'UEC Development'!$D$77:$D$83)+'Product Class Dist'!AC$15*SUMPRODUCT('Efficiency Dist'!AG175:AG181,'UEC Development'!$E$92:$E$98) -> 1060.91645 | AD12: ='Product Class Dist'!AD$10*SUMPRODUCT('Efficiency Dist'!AH25:AH32,'UEC Development'!$E$14:$E$21)+'Product Class Dist'!AD$11*SUMPRODUCT('Efficiency Dist'!AH56:AH63,'UEC Development'!$E$30:$E$37)+'Product Class Dist'!AD$12*SUMPRODUCT('Efficiency Dist'!AH87:AH94,'UEC Development'!$E$46:$E$53)+'Product Class Dist'!AD$13*SUMPRODUCT('Efficiency Dist'!AH117:AH123,'UEC Development'!$E$62:$E$68)+'Product Class Dist'!AD$14*SUMPRODUCT('Efficiency Dist'!AH146:AH152,'UEC Development'!$D$77:$D$83)+'Product Class Dist'!AD$15*SUMPRODUCT('Efficiency Dist'!AH175:AH181,'UEC Development'!$E$92:$E$98) -> 1060.91645 | AE12: ='Product Class Dist'!AE$10*SUMPRODUCT('Efficiency Dist'!AI25:AI32,'UEC Development'!$E$14:$E$21)+'Product Class Dist'!AE$11*SUMPRODUCT('Efficiency Dist'!AI56:AI63,'UEC Development'!$E$30:$E$37)+'Product Class Dist'!AE$12*SUMPRODUCT('Efficiency Dist'!AI87:AI94,'UEC Development'!$E$46:$E$53)+'Product Class Dist'!AE$13*SUMPRODUCT('Efficiency Dist'!AI117:AI123,'UEC Development'!$E$62:$E$68)+'Product Class Dist'!AE$14*SUMPRODUCT('Efficiency Dist'!AI146:AI152,'UEC Development'!$D$77:$D$83)+'Product Class Dist'!AE$15*SUMPRODUCT('Efficiency Dist'!AI175:AI181,'UEC Development'!$E$92:$E$98) -> 1060.91645 | AF12: ='Product Class Dist'!AF$10*SUMPRODUCT('Efficiency Dist'!AJ25:AJ32,'UEC Development'!$E$14:$E$21)+'Product Class Dist'!AF$11*SUMPRODUCT('Efficiency Dist'!AJ56:AJ63,'UEC Development'!$E$30:$E$37)+'Product Class Dist'!AF$12*SUMPRODUCT('Efficiency Dist'!AJ87:AJ94,'UEC Development'!$E$46:$E$53)+'Product Class Dist'!AF$13*SUMPRODUCT('Efficiency Dist'!AJ117:AJ123,'UEC Development'!$E$62:$E$68)+'Product Class Dist'!AF$14*SUMPRODUCT('Efficiency Dist'!AJ146:AJ152,'UEC Development'!$D$77:$D$83)+'Product Class Dist'!AF$15*SUMPRODUCT('Efficiency Dist'!AJ175:AJ181,'UEC Development'!$E$92:$E$98) -> 1060.91645 | AG12: ='Product Class Dist'!AG$10*SUMPRODUCT('Efficiency Dist'!AK25:AK32,'UEC Development'!$E$14:$E$21)+'Product Class Dist'!AG$11*SUMPRODUCT('Efficiency Dist'!AK56:AK63,'UEC Development'!$E$30:$E$37)+'Product Class Dist'!AG$12*SUMPRODUCT('Efficiency Dist'!AK87:AK94,'UEC Development'!$E$46:$E$53)+'Product Class Dist'!AG$13*SUMPRODUCT('Efficiency Dist'!AK117:AK123,'UEC Development'!$E$62:$E$68)+'Product Class Dist'!AG$14*SUMPRODUCT('Efficiency Dist'!AK146:AK152,'UEC Development'!$D$77:$D$83)+'Product Class Dist'!AG$15*SUMPRODUCT('Efficiency Dist'!AK175:AK181,'UEC Development'!$E$92:$E$98) -> 1060.91645 | AH12: ='Product Class Dist'!AH$10*SUMPRODUCT('Efficiency Dist'!AL25:AL32,'UEC Development'!$E$14:$E$21)+'Product Class Dist'!AH$11*SUMPRODUCT('Efficiency Dist'!AL56:AL63,'UEC Development'!$E$30:$E$37)+'Product Class Dist'!AH$12*SUMPRODUCT('Efficiency Dist'!AL87:AL94,'UEC Development'!$E$46:$E$53)+'Product Class Dist'!AH$13*SUMPRODUCT('Efficiency Dist'!AL117:AL123,'UEC Development'!$E$62:$E$68)+'Product Class Dist'!AH$14*SUMPRODUCT('Efficiency Dist'!AL146:AL152,'UEC Development'!$D$77:$D$83)+'Product Class Dist'!AH$15*SUMPRODUCT('Efficiency Dist'!AL175:AL181,'UEC Development'!$E$92:$E$98) -> 1060.91645 | AI12: ='Product Class Dist'!AI$10*SUMPRODUCT('Efficiency Dist'!AM25:AM32,'UEC Development'!$E$14:$E$21)+'Product Class Dist'!AI$11*SUMPRODUCT('Efficiency Dist'!AM56:AM63,'UEC Development'!$E$30:$E$37)+'Product Class Dist'!AI$12*SUMPRODUCT('Efficiency Dist'!AM87:AM94,'UEC Development'!$E$46:$E$53)+'Product Class Dist'!AI$13*SUMPRODUCT('Efficiency Dist'!AM117:AM123,'UEC Development'!$E$62:$E$68)+'Product Class Dist'!AI$14*SUMPRODUCT('Efficiency Dist'!AM146:AM152,'UEC Development'!$D$77:$D$83)+'Product Class Dist'!AI$15*SUMPRODUCT('Efficiency Dist'!AM175:AM181,'UEC Development'!$E$92:$E$98) -> 1060.91645 | AJ12: ='Product Class Dist'!AJ$10*SUMPRODUCT('Efficiency Dist'!AN25:AN32,'UEC Development'!$E$14:$E$21)+'Product Class Dist'!AJ$11*SUMPRODUCT('Efficiency Dist'!AN56:AN63,'UEC Development'!$E$30:$E$37)+'Product Class Dist'!AJ$12*SUMPRODUCT('Efficiency Dist'!AN87:AN94,'UEC Development'!$E$46:$E$53)+'Product Class Dist'!AJ$13*SUMPRODUCT('Efficiency Dist'!AN117:AN123,'UEC Development'!$E$62:$E$68)+'Product Class Dist'!AJ$14*SUMPRODUCT('Efficiency Dist'!AN146:AN152,'UEC Development'!$D$77:$D$83)+'Product Class Dist'!AJ$15*SUMPRODUCT('Efficiency Dist'!AN175:AN181,'UEC Development'!$E$92:$E$98) -> 1060.91645 | AK12: ='Product Class Dist'!AK$10*SUMPRODUCT('Efficiency Dist'!AO25:AO32,'UEC Development'!$E$14:$E$21)+'Product Class Dist'!AK$11*SUMPRODUCT('Efficiency Dist'!AO56:AO63,'UEC Development'!$E$30:$E$37)+'Product Class Dist'!AK$12*SUMPRODUCT('Efficiency Dist'!AO87:AO94,'UEC Development'!$E$46:$E$53)+'Product Class Dist'!AK$13*SUMPRODUCT('Efficiency Dist'!AO117:AO123,'UEC Development'!$E$62:$E$68)+'Product Class Dist'!AK$14*SUMPRODUCT('Efficiency Dist'!AO146:AO152,'UEC Development'!$D$77:$D$83)+'Product Class Dist'!AK$15*SUMPRODUCT('Efficiency Dist'!AO175:AO181,'UEC Development'!$E$92:$E$98) -> 1060.91645 | AL12: ='Product Class Dist'!AL$10*SUMPRODUCT('Efficiency Dist'!AP25:AP32,'UEC Development'!$E$14:$E$21)+'Product Class Dist'!AL$11*SUMPRODUCT('Efficiency Dist'!AP56:AP63,'UEC Development'!$E$30:$E$37)+'Product Class Dist'!AL$12*SUMPRODUCT('Efficiency Dist'!AP87:AP94,'UEC Development'!$E$46:$E$53)+'Product Class Dist'!AL$13*SUMPRODUCT('Efficiency Dist'!AP117:AP123,'UEC Development'!$E$62:$E$68)+'Product Class Dist'!AL$14*SUMPRODUCT('Efficiency Dist'!AP146:AP152,'UEC Development'!$D$77:$D$83)+'Product Class Dist'!AL$15*SUMPRODUCT('Efficiency Dist'!AP175:AP181,'UEC Development'!$E$92:$E$98) -> 1060.91645 | AM12: ='Product Class Dist'!AM$10*SUMPRODUCT('Efficiency Dist'!AQ25:AQ32,'UEC Development'!$E$14:$E$21)+'Product Class Dist'!AM$11*SUMPRODUCT('Efficiency Dist'!AQ56:AQ63,'UEC Development'!$E$30:$E$37)+'Product Class Dist'!AM$12*SUMPRODUCT('Efficiency Dist'!AQ87:AQ94,'UEC Development'!$E$46:$E$53)+'Product Class Dist'!AM$13*SUMPRODUCT('Efficiency Dist'!AQ117:AQ123,'UEC Development'!$E$62:$E$68)+'Product Class Dist'!AM$14*SUMPRODUCT('Efficiency Dist'!AQ146:AQ152,'UEC Development'!$D$77:$D$83)+'Product Class Dist'!AM$15*SUMPRODUCT('Efficiency Dist'!AQ175:AQ181,'UEC Development'!$E$92:$E$98) -> 1060.91645 | AN12: ='Product Class Dist'!AN$10*SUMPRODUCT('Efficiency Dist'!AR25:AR32,'UEC Development'!$E$14:$E$21)+'Product Class Dist'!AN$11*SUMPRODUCT('Efficiency Dist'!AR56:AR63,'UEC Development'!$E$30:$E$37)+'Product Class Dist'!AN$12*SUMPRODUCT('Efficiency Dist'!AR87:AR94,'UEC Development'!$E$46:$E$53)+'Product Class Dist'!AN$13*SUMPRODUCT('Efficiency Dist'!AR117:AR123,'UEC Development'!$E$62:$E$68)+'Product Class Dist'!AN$14*SUMPRODUCT('Efficiency Dist'!AR146:AR152,'UEC Development'!$D$77:$D$83)+'Product Class Dist'!AN$15*SUMPRODUCT('Efficiency Dist'!AR175:AR181,'UEC Development'!$E$92:$E$98) -> 1060.91645 | AO12: ='Product Class Dist'!AO$10*SUMPRODUCT('Efficiency Dist'!AS25:AS32,'UEC Development'!$E$14:$E$21)+'Product Class Dist'!AO$11*SUMPRODUCT('Efficiency Dist'!AS56:AS63,'UEC Development'!$E$30:$E$37)+'Product Class Dist'!AO$12*SUMPRODUCT('Efficiency Dist'!AS87:AS94,'UEC Development'!$E$46:$E$53)+'Product Class Dist'!AO$13*SUMPRODUCT('Efficiency Dist'!AS117:AS123,'UEC Development'!$E$62:$E$68)+'Product Class Dist'!AO$14*SUMPRODUCT('Efficiency Dist'!AS146:AS152,'UEC Development'!$D$77:$D$83)+'Product Class Dist'!AO$15*SUMPRODUCT('Efficiency Dist'!AS175:AS181,'UEC Development'!$E$92:$E$98) -> 1060.91645 | AP12: ='Product Class Dist'!AP$10*SUMPRODUCT('Efficiency Dist'!AT25:AT32,'UEC Development'!$E$14:$E$21)+'Product Class Dist'!AP$11*SUMPRODUCT('Efficiency Dist'!AT56:AT63,'UEC Development'!$E$30:$E$37)+'Product Class Dist'!AP$12*SUMPRODUCT('Efficiency Dist'!AT87:AT94,'UEC Development'!$E$46:$E$53)+'Product Class Dist'!AP$13*SUMPRODUCT('Efficiency Dist'!AT117:AT123,'UEC Development'!$E$62:$E$68)+'Product Class Dist'!AP$14*SUMPRODUCT('Efficiency Dist'!AT146:AT152,'UEC Development'!$D$77:$D$83)+'Product Class Dist'!AP$15*SUMPRODUCT('Efficiency Dist'!AT175:AT181,'UEC Development'!$E$92:$E$98) -> 1060.91645 | AQ12: ='Product Class Dist'!AQ$10*SUMPRODUCT('Efficiency Dist'!AU25:AU32,'UEC Development'!$E$14:$E$21)+'Product Class Dist'!AQ$11*SUMPRODUCT('Efficiency Dist'!AU56:AU63,'UEC Development'!$E$30:$E$37)+'Product Class Dist'!AQ$12*SUMPRODUCT('Efficiency Dist'!AU87:AU94,'UEC Development'!$E$46:$E$53)+'Product Class Dist'!AQ$13*SUMPRODUCT('Efficiency Dist'!AU117:AU123,'UEC Development'!$E$62:$E$68)+'Product Class Dist'!AQ$14*SUMPRODUCT('Efficiency Dist'!AU146:AU152,'UEC Development'!$D$77:$D$83)+'Product Class Dist'!AQ$15*SUMPRODUCT('Efficiency Dist'!AU175:AU181,'UEC Development'!$E$92:$E$98) -> 1060.91645 | AR12: ='Product Class Dist'!AR$10*SUMPRODUCT('Efficiency Dist'!AV25:AV32,'UEC Development'!$E$14:$E$21)+'Product Class Dist'!AR$11*SUMPRODUCT('Efficiency Dist'!AV56:AV63,'UEC Development'!$E$30:$E$37)+'Product Class Dist'!AR$12*SUMPRODUCT('Efficiency Dist'!AV87:AV94,'UEC Development'!$E$46:$E$53)+'Product Class Dist'!AR$13*SUMPRODUCT('Efficiency Dist'!AV117:AV123,'UEC Development'!$E$62:$E$68)+'Product Class Dist'!AR$14*SUMPRODUCT('Efficiency Dist'!AV146:AV152,'UEC Development'!$D$77:$D$83)+'Product Class Dist'!AR$15*SUMPRODUCT('Efficiency Dist'!AV175:AV181,'UEC Development'!$E$92:$E$98) -> 1060.91645 | AS12: ='Product Class Dist'!AS$10*SUMPRODUCT('Efficiency Dist'!AW25:AW32,'UEC Development'!$E$14:$E$21)+'Product Class Dist'!AS$11*SUMPRODUCT('Efficiency Dist'!AW56:AW63,'UEC Development'!$E$30:$E$37)+'Product Class Dist'!AS$12*SUMPRODUCT('Efficiency Dist'!AW87:AW94,'UEC Development'!$E$46:$E$53)+'Product Class Dist'!AS$13*SUMPRODUCT('Efficiency Dist'!AW117:AW123,'UEC Development'!$E$62:$E$68)+'Product Class Dist'!AS$14*SUMPRODUCT('Efficiency Dist'!AW146:AW152,'UEC Development'!$D$77:$D$83)+'Product Class Dist'!AS$15*SUMPRODUCT('Efficiency Dist'!AW175:AW181,'UEC Development'!$E$92:$E$98) -> 1060.91645 | AT12: ='Product Class Dist'!AT$10*SUMPRODUCT('Efficiency Dist'!AX25:AX32,'UEC Development'!$E$14:$E$21)+'Product Class Dist'!AT$11*SUMPRODUCT('Efficiency Dist'!AX56:AX63,'UEC Development'!$E$30:$E$37)+'Product Class Dist'!AT$12*SUMPRODUCT('Efficiency Dist'!AX87:AX94,'UEC Development'!$E$46:$E$53)+'Product Class Dist'!AT$13*SUMPRODUCT('Efficiency Dist'!AX117:AX123,'UEC Development'!$E$62:$E$68)+'Product Class Dist'!AT$14*SUMPRODUCT('Efficiency Dist'!AX146:AX152,'UEC Development'!$D$77:$D$83)+'Product Class Dist'!AT$15*SUMPRODUCT('Efficiency Dist'!AX175:AX181,'UEC Development'!$E$92:$E$98) -> 1060.91645 | AU12: ='Product Class Dist'!AU$10*SUMPRODUCT('Efficiency Dist'!AY25:AY32,'UEC Development'!$E$14:$E$21)+'Product Class Dist'!AU$11*SUMPRODUCT('Efficiency Dist'!AY56:AY63,'UEC Development'!$E$30:$E$37)+'Product Class Dist'!AU$12*SUMPRODUCT('Efficiency Dist'!AY87:AY94,'UEC Development'!$E$46:$E$53)+'Product Class Dist'!AU$13*SUMPRODUCT('Efficiency Dist'!AY117:AY123,'UEC Development'!$E$62:$E$68)+'Product Class Dist'!AU$14*SUMPRODUCT('Efficiency Dist'!AY146:AY152,'UEC Development'!$D$77:$D$83)+'Product Class Dist'!AU$15*SUMPRODUCT('Efficiency Dist'!AY175:AY181,'UEC Development'!$E$92:$E$98) -> 1060.91645 | AV12: ='Product Class Dist'!AV$10*SUMPRODUCT('Efficiency Dist'!AZ25:AZ32,'UEC Development'!$E$14:$E$21)+'Product Class Dist'!AV$11*SUMPRODUCT('Efficiency Dist'!AZ56:AZ63,'UEC Development'!$E$30:$E$37)+'Product Class Dist'!AV$12*SUMPRODUCT('Efficiency Dist'!AZ87:AZ94,'UEC Development'!$E$46:$E$53)+'Product Class Dist'!AV$13*SUMPRODUCT('Efficiency Dist'!AZ117:AZ123,'UEC Development'!$E$62:$E$68)+'Product Class Dist'!AV$14*SUMPRODUCT('Efficiency Dist'!AZ146:AZ152,'UEC Development'!$D$77:$D$83)+'Product Class Dist'!AV$15*SUMPRODUCT('Efficiency Dist'!AZ175:AZ181,'UEC Development'!$E$92:$E$98) -> 1060.91645
C15: Installed UEC (Vintage Weighted Average)
D16: 1990 | E16: =D16+1 -> 1991 | F16: =E16+1 -> 1992 | G16: 1993 | H16: 1994 | I16: 1995 | J16: 1996 | K16: 1997 | L16: 1998 | M16: 1999 | N16: 2000 | O16: 2001 | P16: 2002 | Q16: 2003 | R16: 2004 | S16: 2005 | T16: 2006 | U16: 2007 | V16: 2008 | W16: 2009 | X16: 2010 | Y16: 2011 | Z16: 2012 | AA16: 2013 | AB16: 2014 | AC16: 2015 | AD16: 2016 | AE16: 2017 | AF16: 2018 | AG16: 2019 | AH16: 2020 | AI16: 2021 | AJ16: 2022 | AK16: 2023 | AL16: 2024 | AM16: 2025 | AN16: 2026 | AO16: 2027 | AP16: 2028 | AQ16: 2029 | AR16: 2030 | AS16: 2031 | AT16: 2032 | AU16: 2033 | AV16: 2034
C17: PRE-Case UEC | D17: =IF(D$16-$D$16<=Lifetime,D11, SUMPRODUCT(OFFSET(D11,0,(-1*Lifetime)+1,1,Lifetime),OFFSET('Shipments and Stock '!E$17,0,(-1*Lifetime)+1,1,Lifetime))/SUM(OFFSET('Shipments and Stock '!E$17,0,(-1*Lifetime)+1,1,Lifetime))) -> 1421.771455 | E17: =IF(E$16-$D$16<=Lifetime,E11, SUMPRODUCT(OFFSET(E11,0,(-1*Lifetime)+1,1,Lifetime),OFFSET('Shipments and Stock '!F$17,0,(-1*Lifetime)+1,1,Lifetime))/SUM(OFFSET('Shipments and Stock '!F$17,0,(-1*Lifetime)+1,1,Lifetime))) -> 1421.771455 | F17: =IF(F$16-$D$16<=Lifetime,F11, SUMPRODUCT(OFFSET(F11,0,(-1*Lifetime)+1,1,Lifetime),OFFSET('Shipments and Stock '!G$17,0,(-1*Lifetime)+1,1,Lifetime))/SUM(OFFSET('Shipments and Stock '!G$17,0,(-1*Lifetime)+1,1,Lifetime))) -> 1421.771455 | G17: =IF(G$16-$D$16<=Lifetime,G11, SUMPRODUCT(OFFSET(G11,0,(-1*Lifetime)+1,1,Lifetime),OFFSET('Shipments and Stock '!H$17,0,(-1*Lifetime)+1,1,Lifetime))/SUM(OFFSET('Shipments and Stock '!H$17,0,(-1*Lifetime)+1,1,Lifetime))) -> 1421.771455 | H17: =IF(H$16-$D$16<=Lifetime,H11, SUMPRODUCT(OFFSET(H11,0,(-1*Lifetime)+1,1,Lifetime),OFFSET('Shipments and Stock '!I$17,0,(-1*Lifetime)+1,1,Lifetime))/SUM(OFFSET('Shipments and Stock '!I$17,0,(-1*Lifetime)+1,1,Lifetime))) -> 1421.771455 | I17: =IF(I$16-$D$16<=Lifetime,I11, SUMPRODUCT(OFFSET(I11,0,(-1*Lifetime)+1,1,Lifetime),OFFSET('Shipments and Stock '!J$17,0,(-1*Lifetime)+1,1,Lifetime))/SUM(OFFSET('Shipments and Stock '!J$17,0,(-1*Lifetime)+1,1,Lifetime))) -> 1421.771455 | J17: =IF(J$16-$D$16<=Lifetime,J11, SUMPRODUCT(OFFSET(J11,0,(-1*Lifetime)+1,1,Lifetime),OFFSET('Shipments and Stock '!K$17,0,(-1*Lifetime)+1,1,Lifetime))/SUM(OFFSET('Shipments and Stock '!K$17,0,(-1*Lifetime)+1,1,Lifetime))) -> 1421.771455 | K17: =IF(K$16-$D$16<=Lifetime,K11, SUMPRODUCT(OFFSET(K11,0,(-1*Lifetime)+1,1,Lifetime),OFFSET('Shipments and Stock '!L$17,0,(-1*Lifetime)+1,1,Lifetime))/SUM(OFFSET('Shipments and Stock '!L$17,0,(-1*Lifetime)+1,1,Lifetime))) -> 1421.771455 | L17: =IF(L$16-$D$16<=Lifetime,L11, SUMPRODUCT(OFFSET(L11,0,(-1*Lifetime)+1,1,Lifetime),OFFSET('Shipments and Stock '!M$17,0,(-1*Lifetime)+1,1,Lifetime))/SUM(OFFSET('Shipments and Stock '!M$17,0,(-1*Lifetime)+1,1,Lifetime))) -> 1421.771455 | M17: =IF(M$16-$D$16<=Lifetime,M11, SUMPRODUCT(OFFSET(M11,0,(-1*Lifetime)+1,1,Lifetime),OFFSET('Shipments and Stock '!N$17,0,(-1*Lifetime)+1,1,Lifetime))/SUM(OFFSET('Shipments and Stock '!N$17,0,(-1*Lifetime)+1,1,Lifetime))) -> 1421.771455 | N17: =IF(N$16-$D$16<=Lifetime,N11, SUMPRODUCT(OFFSET(N11,0,(-1*Lifetime)+1,1,Lifetime),OFFSET('Shipments and Stock '!O$17,0,(-1*Lifetime)+1,1,Lifetime))/SUM(OFFSET('Shipments and Stock '!O$17,0,(-1*Lifetime)+1,1,Lifetime))) -> 1421.771455 | O17: =IF(O$16-$D$16<=Lifetime,O11, SUMPRODUCT(OFFSET(O11,0,(-1*Lifetime)+1,1,Lifetime),OFFSET('Shipments and Stock '!P$17,0,(-1*Lifetime)+1,1,Lifetime))/SUM(OFFSET('Shipments and Stock '!P$17,0,(-1*Lifetime)+1,1,Lifetime))) -> 1421.771455 | P17: =IF(P$16-$D$16<=Lifetime,P11, SUMPRODUCT(OFFSET(P11,0,(-1*Lifetime)+1,1,Lifetime),OFFSET('Shipments and Stock '!Q$17,0,(-1*Lifetime)+1,1,Lifetime))/SUM(OFFSET('Shipments and Stock '!Q$17,0,(-1*Lifetime)+1,1,Lifetime))) -> 1421.771455 | Q17: =IF(Q$16-$D$16<=Lifetime,Q11, SUMPRODUCT(OFFSET(Q11,0,(-1*Lifetime)+1,1,Lifetime),OFFSET('Shipments and Stock '!R$17,0,(-1*Lifetime)+1,1,Lifetime))/SUM(OFFSET('Shipments and Stock '!R$17,0,(-1*Lifetime)+1,1,Lifetime))) -> 1421.771455 | R17: =IF(R$16-$D$16<=Lifetime,R11, SUMPRODUCT(OFFSET(R11,0,(-1*Lifetime)+1,1,Lifetime),OFFSET('Shipments and Stock '!S$17,0,(-1*Lifetime)+1,1,Lifetime))/SUM(OFFSET('Shipments and Stock '!S$17,0,(-1*Lifetime)+1,1,Lifetime))) -> 1421.771455 | S17: =IF(S$16-$D$16<=Lifetime,S11, SUMPRODUCT(OFFSET(S11,0,(-1*Lifetime)+1,1,Lifetime),OFFSET('Shipments and Stock '!T$17,0,(-1*Lifetime)+1,1,Lifetime))/SUM(OFFSET('Shipments and Stock '!T$17,0,(-1*Lifetime)+1,1,Lifetime))) ->  | T17: =IF(T$16-$D$16<=Lifetime,T11, SUMPRODUCT(OFFSET(T11,0,(-1*Lifetime)+1,1,Lifetime),OFFSET('Shipments and Stock '!U$17,0,(-1*Lifetime)+1,1,Lifetime))/SUM(OFFSET('Shipments and Stock '!U$17,0,(-1*Lifetime)+1,1,Lifetime))) ->  | U17: =IF(U$16-$D$16<=Lifetime,U11, SUMPRODUCT(OFFSET(U11,0,(-1*Lifetime)+1,1,Lifetime),OFFSET('Shipments and Stock '!V$17,0,(-1*Lifetime)+1,1,Lifetime))/SUM(OFFSET('Shipments and Stock '!V$17,0,(-1*Lifetime)+1,1,Lifetime))) ->  | V17: =IF(V$16-$D$16<=Lifetime,V11, SUMPRODUCT(OFFSET(V11,0,(-1*Lifetime)+1,1,Lifetime),OFFSET('Shipments and Stock '!W$17,0,(-1*Lifetime)+1,1,Lifetime))/SUM(OFFSET('Shipments and Stock '!W$17,0,(-1*Lifetime)+1,1,Lifetime))) ->  | W17: =IF(W$16-$D$16<=Lifetime,W11, SUMPRODUCT(OFFSET(W11,0,(-1*Lifetime)+1,1,Lifetime),OFFSET('Shipments and Stock '!X$17,0,(-1*Lifetime)+1,1,Lifetime))/SUM(OFFSET('Shipments and Stock '!X$17,0,(-1*Lifetime)+1,1,Lifetime))) ->  | X17: =IF(X$16-$D$16<=Lifetime,X11, SUMPRODUCT(OFFSET(X11,0,(-1*Lifetime)+1,1,Lifetime),OFFSET('Shipments and Stock '!Y$17,0,(-1*Lifetime)+1,1,Lifetime))/SUM(OFFSET('Shipments and Stock '!Y$17,0,(-1*Lifetime)+1,1,Lifetime))) ->  | Y17: =IF(Y$16-$D$16<=Lifetime,Y11, SUMPRODUCT(OFFSET(Y11,0,(-1*Lifetime)+1,1,Lifetime),OFFSET('Shipments and Stock '!Z$17,0,(-1*Lifetime)+1,1,Lifetime))/SUM(OFFSET('Shipments and Stock '!Z$17,0,(-1*Lifetime)+1,1,Lifetime))) ->  | Z17: =IF(Z$16-$D$16<=Lifetime,Z11, SUMPRODUCT(OFFSET(Z11,0,(-1*Lifetime)+1,1,Lifetime),OFFSET('Shipments and Stock '!AA$17,0,(-1*Lifetime)+1,1,Lifetime))/SUM(OFFSET('Shipments and Stock '!AA$17,0,(-1*Lifetime)+1,1,Lifetime))) ->  | AA17: =IF(AA$16-$D$16<=Lifetime,AA11, SUMPRODUCT(OFFSET(AA11,0,(-1*Lifetime)+1,1,Lifetime),OFFSET('Shipments and Stock '!AB$17,0,(-1*Lifetime)+1,1,Lifetime))/SUM(OFFSET('Shipments and Stock '!AB$17,0,(-1*Lifetime)+1,1,Lifetime))) ->  | AB17: =IF(AB$16-$D$16<=Lifetime,AB11, SUMPRODUCT(OFFSET(AB11,0,(-1*Lifetime)+1,1,Lifetime),OFFSET('Shipments and Stock '!AC$17,0,(-1*Lifetime)+1,1,Lifetime))/SUM(OFFSET('Shipments and Stock '!AC$17,0,(-1*Lifetime)+1,1,Lifetime))) ->  | AC17: =IF(AC$16-$D$16<=Lifetime,AC11, SUMPRODUCT(OFFSET(AC11,0,(-1*Lifetime)+1,1,Lifetime),OFFSET('Shipments and Stock '!AD$17,0,(-1*Lifetime)+1,1,Lifetime))/SUM(OFFSET('Shipments and Stock '!AD$17,0,(-1*Lifetime)+1,1,Lifetime))) ->  | AD17: =IF(AD$16-$D$16<=Lifetime,AD11, SUMPRODUCT(OFFSET(AD11,0,(-1*Lifetime)+1,1,Lifetime),OFFSET('Shipments and Stock '!AE$17,0,(-1*Lifetime)+1,1,Lifetime))/SUM(OFFSET('Shipments and Stock '!AE$17,0,(-1*Lifetime)+1,1,Lifetime))) ->  | AE17: =IF(AE$16-$D$16<=Lifetime,AE11, SUMPRODUCT(OFFSET(AE11,0,(-1*Lifetime)+1,1,Lifetime),OFFSET('Shipments and Stock '!AF$17,0,(-1*Lifetime)+1,1,Lifetime))/SUM(OFFSET('Shipments and Stock '!AF$17,0,(-1*Lifetime)+1,1,Lifetime))) ->  | AF17: =IF(AF$16-$D$16<=Lifetime,AF11, SUMPRODUCT(OFFSET(AF11,0,(-1*Lifetime)+1,1,Lifetime),OFFSET('Shipments and Stock '!AG$17,0,(-1*Lifetime)+1,1,Lifetime))/SUM(OFFSET('Shipments and Stock '!AG$17,0,(-1*Lifetime)+1,1,Lifetime))) ->  | AG17: =IF(AG$16-$D$16<=Lifetime,AG11, SUMPRODUCT(OFFSET(AG11,0,(-1*Lifetime)+1,1,Lifetime),OFFSET('Shipments and Stock '!AH$17,0,(-1*Lifetime)+1,1,Lifetime))/SUM(OFFSET('Shipments and Stock '!AH$17,0,(-1*Lifetime)+1,1,Lifetime))) ->  | AH17: =IF(AH$16-$D$16<=Lifetime,AH11, SUMPRODUCT(OFFSET(AH11,0,(-1*Lifetime)+1,1,Lifetime),OFFSET('Shipments and Stock '!AI$17,0,(-1*Lifetime)+1,1,Lifetime))/SUM(OFFSET('Shipments and Stock '!AI$17,0,(-1*Lifetime)+1,1,Lifetime))) ->  | AI17: =IF(AI$16-$D$16<=Lifetime,AI11, SUMPRODUCT(OFFSET(AI11,0,(-1*Lifetime)+1,1,Lifetime),OFFSET('Shipments and Stock '!AJ$17,0,(-1*Lifetime)+1,1,Lifetime))/SUM(OFFSET('Shipments and Stock '!AJ$17,0,(-1*Lifetime)+1,1,Lifetime))) ->  | AJ17: =IF(AJ$16-$D$16<=Lifetime,AJ11, SUMPRODUCT(OFFSET(AJ11,0,(-1*Lifetime)+1,1,Lifetime),OFFSET('Shipments and Stock '!AK$17,0,(-1*Lifetime)+1,1,Lifetime))/SUM(OFFSET('Shipments and Stock '!AK$17,0,(-1*Lifetime)+1,1,Lifetime))) ->  | AK17: =IF(AK$16-$D$16<=Lifetime,AK11, SUMPRODUCT(OFFSET(AK11,0,(-1*Lifetime)+1,1,Lifetime),OFFSET('Shipments and Stock '!AL$17,0,(-1*Lifetime)+1,1,Lifetime))/SUM(OFFSET('Shipments and Stock '!AL$17,0,(-1*Lifetime)+1,1,Lifetime))) ->  | AL17: =IF(AL$16-$D$16<=Lifetime,AL11, SUMPRODUCT(OFFSET(AL11,0,(-1*Lifetime)+1,1,Lifetime),OFFSET('Shipments and Stock '!AM$17,0,(-1*Lifetime)+1,1,Lifetime))/SUM(OFFSET('Shipments and Stock '!AM$17,0,(-1*Lifetime)+1,1,Lifetime))) ->  | AM17: =IF(AM$16-$D$16<=Lifetime,AM11, SUMPRODUCT(OFFSET(AM11,0,(-1*Lifetime)+1,1,Lifetime),OFFSET('Shipments and Stock '!AN$17,0,(-1*Lifetime)+1,1,Lifetime))/SUM(OFFSET('Shipments and Stock '!AN$17,0,(-1*Lifetime)+1,1,Lifetime))) ->  | AN17: =IF(AN$16-$D$16<=Lifetime,AN11, SUMPRODUCT(OFFSET(AN11,0,(-1*Lifetime)+1,1,Lifetime),OFFSET('Shipments and Stock '!AO$17,0,(-1*Lifetime)+1,1,Lifetime))/SUM(OFFSET('Shipments and Stock '!AO$17,0,(-1*Lifetime)+1,1,Lifetime))) ->  | AO17: =IF(AO$16-$D$16<=Lifetime,AO11, SUMPRODUCT(OFFSET(AO11,0,(-1*Lifetime)+1,1,Lifetime),OFFSET('Shipments and Stock '!AP$17,0,(-1*Lifetime)+1,1,Lifetime))/SUM(OFFSET('Shipments and Stock '!AP$17,0,(-1*Lifetime)+1,1,Lifetime))) ->  | AP17: =IF(AP$16-$D$16<=Lifetime,AP11, SUMPRODUCT(OFFSET(AP11,0,(-1*Lifetime)+1,1,Lifetime),OFFSET('Shipments and Stock '!AQ$17,0,(-1*Lifetime)+1,1,Lifetime))/SUM(OFFSET('Shipments and Stock '!AQ$17,0,(-1*Lifetime)+1,1,Lifetime))) ->  | AQ17: =IF(AQ$16-$D$16<=Lifetime,AQ11, SUMPRODUCT(OFFSET(AQ11,0,(-1*Lifetime)+1,1,Lifetime),OFFSET('Shipments and Stock '!AR$17,0,(-1*Lifetime)+1,1,Lifetime))/SUM(OFFSET('Shipments and Stock '!AR$17,0,(-1*Lifetime)+1,1,Lifetime))) ->  | AR17: =IF(AR$16-$D$16<=Lifetime,AR11, SUMPRODUCT(OFFSET(AR11,0,(-1*Lifetime)+1,1,Lifetime),OFFSET('Shipments and Stock '!AS$17,0,(-1*Lifetime)+1,1,Lifetime))/SUM(OFFSET('Shipments and Stock '!AS$17,0,(-1*Lifetime)+1,1,Lifetime))) ->  | AS17: =IF(AS$16-$D$16<=Lifetime,AS11, SUMPRODUCT(OFFSET(AS11,0,(-1*Lifetime)+1,1,Lifetime),OFFSET('Shipments and Stock '!AT$17,0,(-1*Lifetime)+1,1,Lifetime))/SUM(OFFSET('Shipments and Stock '!AT$17,0,(-1*Lifetime)+1,1,Lifetime))) ->  | AT17: =IF(AT$16-$D$16<=Lifetime,AT11, SUMPRODUCT(OFFSET(AT11,0,(-1*Lifetime)+1,1,Lifetime),OFFSET('Shipments and Stock '!AU$17,0,(-1*Lifetime)+1,1,Lifetime))/SUM(OFFSET('Shipments and Stock '!AU$17,0,(-1*Lifetime)+1,1,Lifetime))) ->  | AU17: =IF(AU$16-$D$16<=Lifetime,AU11, SUMPRODUCT(OFFSET(AU11,0,(-1*Lifetime)+1,1,Lifetime),OFFSET('Shipments and Stock '!AV$17,0,(-1*Lifetime)+1,1,Lifetime))/SUM(OFFSET('Shipments and Stock '!AV$17,0,(-1*Lifetime)+1,1,Lifetime))) ->  | AV17: =IF(AV$16-$D$16<=Lifetime,AV11, SUMPRODUCT(OFFSET(AV11,0,(-1*Lifetime)+1,1,Lifetime),OFFSET('Shipments and Stock '!AW$17,0,(-1*Lifetime)+1,1,Lifetime))/SUM(OFFSET('Shipments and Stock '!AW$17,0,(-1*Lifetime)+1,1,Lifetime))) -> 
C18: POST-Case UEC | D18: =IF(D$16-$D$16<Lifetime,D12, SUMPRODUCT(OFFSET(D12,0,(-1*Lifetime)+1,1,Lifetime),OFFSET('Shipments and Stock '!E$17,0,(-1*Lifetime)+1,1,Lifetime))/SUM(OFFSET('Shipments and Stock '!E$17,0,(-1*Lifetime)+1,1,Lifetime))) -> 1421.771455 | E18: =IF(E$16-$D$16<Lifetime,E12, SUMPRODUCT(OFFSET(E12,0,(-1*Lifetime)+1,1,Lifetime),OFFSET('Shipments and Stock '!F$17,0,(-1*Lifetime)+1,1,Lifetime))/SUM(OFFSET('Shipments and Stock '!F$17,0,(-1*Lifetime)+1,1,Lifetime))) -> 1421.771455 | F18: =IF(F$16-$D$16<Lifetime,F12, SUMPRODUCT(OFFSET(F12,0,(-1*Lifetime)+1,1,Lifetime),OFFSET('Shipments and Stock '!G$17,0,(-1*Lifetime)+1,1,Lifetime))/SUM(OFFSET('Shipments and Stock '!G$17,0,(-1*Lifetime)+1,1,Lifetime))) -> 1421.771455 | G18: =IF(G$16-$D$16<Lifetime,G12, SUMPRODUCT(OFFSET(G12,0,(-1*Lifetime)+1,1,Lifetime),OFFSET('Shipments and Stock '!H$17,0,(-1*Lifetime)+1,1,Lifetime))/SUM(OFFSET('Shipments and Stock '!H$17,0,(-1*Lifetime)+1,1,Lifetime))) -> 1421.771455 | H18: =IF(H$16-$D$16<Lifetime,H12, SUMPRODUCT(OFFSET(H12,0,(-1*Lifetime)+1,1,Lifetime),OFFSET('Shipments and Stock '!I$17,0,(-1*Lifetime)+1,1,Lifetime))/SUM(OFFSET('Shipments and Stock '!I$17,0,(-1*Lifetime)+1,1,Lifetime))) -> 1421.771455 | I18: =IF(I$16-$D$16<Lifetime,I12, SUMPRODUCT(OFFSET(I12,0,(-1*Lifetime)+1,1,Lifetime),OFFSET('Shipments and Stock '!J$17,0,(-1*Lifetime)+1,1,Lifetime))/SUM(OFFSET('Shipments and Stock '!J$17,0,(-1*Lifetime)+1,1,Lifetime))) -> 1421.771455 | J18: =IF(J$16-$D$16<Lifetime,J12, SUMPRODUCT(OFFSET(J12,0,(-1*Lifetime)+1,1,Lifetime),OFFSET('Shipments and Stock '!K$17,0,(-1*Lifetime)+1,1,Lifetime))/SUM(OFFSET('Shipments and Stock '!K$17,0,(-1*Lifetime)+1,1,Lifetime))) -> 1421.771455 | K18: =IF(K$16-$D$16<Lifetime,K12, SUMPRODUCT(OFFSET(K12,0,(-1*Lifetime)+1,1,Lifetime),OFFSET('Shipments and Stock '!L$17,0,(-1*Lifetime)+1,1,Lifetime))/SUM(OFFSET('Shipments and Stock '!L$17,0,(-1*Lifetime)+1,1,Lifetime))) -> 1421.771455 | L18: =IF(L$16-$D$16<Lifetime,L12, SUMPRODUCT(OFFSET(L12,0,(-1*Lifetime)+1,1,Lifetime),OFFSET('Shipments and Stock '!M$17,0,(-1*Lifetime)+1,1,Lifetime))/SUM(OFFSET('Shipments and Stock '!M$17,0,(-1*Lifetime)+1,1,Lifetime))) -> 1421.771455 | M18: =IF(M$16-$D$16<Lifetime,M12, SUMPRODUCT(OFFSET(M12,0,(-1*Lifetime)+1,1,Lifetime),OFFSET('Shipments and Stock '!N$17,0,(-1*Lifetime)+1,1,Lifetime))/SUM(OFFSET('Shipments and Stock '!N$17,0,(-1*Lifetime)+1,1,Lifetime))) -> 1421.771455 | N18: =IF(N$16-$D$16<Lifetime,N12, SUMPRODUCT(OFFSET(N12,0,(-1*Lifetime)+1,1,Lifetime),OFFSET('Shipments and Stock '!O$17,0,(-1*Lifetime)+1,1,Lifetime))/SUM(OFFSET('Shipments and Stock '!O$17,0,(-1*Lifetime)+1,1,Lifetime))) -> 1421.771455 | O18: =IF(O$16-$D$16<Lifetime,O12, SUMPRODUCT(OFFSET(O12,0,(-1*Lifetime)+1,1,Lifetime),OFFSET('Shipments and Stock '!P$17,0,(-1*Lifetime)+1,1,Lifetime))/SUM(OFFSET('Shipments and Stock '!P$17,0,(-1*Lifetime)+1,1,Lifetime))) -> 1421.771455 | P18: =IF(P$16-$D$16<Lifetime,P12, SUMPRODUCT(OFFSET(P12,0,(-1*Lifetime)+1,1,Lifetime),OFFSET('Shipments and Stock '!Q$17,0,(-1*Lifetime)+1,1,Lifetime))/SUM(OFFSET('Shipments and Stock '!Q$17,0,(-1*Lifetime)+1,1,Lifetime))) -> 1421.771455 | Q18: =IF(Q$16-$D$16<Lifetime,Q12, SUMPRODUCT(OFFSET(Q12,0,(-1*Lifetime)+1,1,Lifetime),OFFSET('Shipments and Stock '!R$17,0,(-1*Lifetime)+1,1,Lifetime))/SUM(OFFSET('Shipments and Stock '!R$17,0,(-1*Lifetime)+1,1,Lifetime))) -> 1421.771455 | R18: =IF(R$16-$D$16<Lifetime,R12, SUMPRODUCT(OFFSET(R12,0,(-1*Lifetime)+1,1,Lifetime),OFFSET('Shipments and Stock '!S$17,0,(-1*Lifetime)+1,1,Lifetime))/SUM(OFFSET('Shipments and Stock '!S$17,0,(-1*Lifetime)+1,1,Lifetime))) ->  | S18: =IF(S$16-$D$16<Lifetime,S12, SUMPRODUCT(OFFSET(S12,0,(-1*Lifetime)+1,1,Lifetime),OFFSET('Shipments and Stock '!T$17,0,(-1*Lifetime)+1,1,Lifetime))/SUM(OFFSET('Shipments and Stock '!T$17,0,(-1*Lifetime)+1,1,Lifetime))) ->  | T18: =IF(T$16-$D$16<Lifetime,T12, SUMPRODUCT(OFFSET(T12,0,(-1*Lifetime)+1,1,Lifetime),OFFSET('Shipments and Stock '!U$17,0,(-1*Lifetime)+1,1,Lifetime))/SUM(OFFSET('Shipments and Stock '!U$17,0,(-1*Lifetime)+1,1,Lifetime))) ->  | U18: =IF(U$16-$D$16<Lifetime,U12, SUMPRODUCT(OFFSET(U12,0,(-1*Lifetime)+1,1,Lifetime),OFFSET('Shipments and Stock '!V$17,0,(-1*Lifetime)+1,1,Lifetime))/SUM(OFFSET('Shipments and Stock '!V$17,0,(-1*Lifetime)+1,1,Lifetime))) ->  | V18: =IF(V$16-$D$16<Lifetime,V12, SUMPRODUCT(OFFSET(V12,0,(-1*Lifetime)+1,1,Lifetime),OFFSET('Shipments and Stock '!W$17,0,(-1*Lifetime)+1,1,Lifetime))/SUM(OFFSET('Shipments and Stock '!W$17,0,(-1*Lifetime)+1,1,Lifetime))) ->  | W18: =IF(W$16-$D$16<Lifetime,W12, SUMPRODUCT(OFFSET(W12,0,(-1*Lifetime)+1,1,Lifetime),OFFSET('Shipments and Stock '!X$17,0,(-1*Lifetime)+1,1,Lifetime))/SUM(OFFSET('Shipments and Stock '!X$17,0,(-1*Lifetime)+1,1,Lifetime))) ->  | X18: =IF(X$16-$D$16<Lifetime,X12, SUMPRODUCT(OFFSET(X12,0,(-1*Lifetime)+1,1,Lifetime),OFFSET('Shipments and Stock '!Y$17,0,(-1*Lifetime)+1,1,Lifetime))/SUM(OFFSET('Shipments and Stock '!Y$17,0,(-1*Lifetime)+1,1,Lifetime))) ->  | Y18: =IF(Y$16-$D$16<Lifetime,Y12, SUMPRODUCT(OFFSET(Y12,0,(-1*Lifetime)+1,1,Lifetime),OFFSET('Shipments and Stock '!Z$17,0,(-1*Lifetime)+1,1,Lifetime))/SUM(OFFSET('Shipments and Stock '!Z$17,0,(-1*Lifetime)+1,1,Lifetime))) ->  | Z18: =IF(Z$16-$D$16<Lifetime,Z12, SUMPRODUCT(OFFSET(Z12,0,(-1*Lifetime)+1,1,Lifetime),OFFSET('Shipments and Stock '!AA$17,0,(-1*Lifetime)+1,1,Lifetime))/SUM(OFFSET('Shipments and Stock '!AA$17,0,(-1*Lifetime)+1,1,Lifetime))) ->  | AA18: =IF(AA$16-$D$16<Lifetime,AA12, SUMPRODUCT(OFFSET(AA12,0,(-1*Lifetime)+1,1,Lifetime),OFFSET('Shipments and Stock '!AB$17,0,(-1*Lifetime)+1,1,Lifetime))/SUM(OFFSET('Shipments and Stock '!AB$17,0,(-1*Lifetime)+1,1,Lifetime))) ->  | AB18: =IF(AB$16-$D$16<Lifetime,AB12, SUMPRODUCT(OFFSET(AB12,0,(-1*Lifetime)+1,1,Lifetime),OFFSET('Shipments and Stock '!AC$17,0,(-1*Lifetime)+1,1,Lifetime))/SUM(OFFSET('Shipments and Stock '!AC$17,0,(-1*Lifetime)+1,1,Lifetime))) ->  | AC18: =IF(AC$16-$D$16<Lifetime,AC12, SUMPRODUCT(OFFSET(AC12,0,(-1*Lifetime)+1,1,Lifetime),OFFSET('Shipments and Stock '!AD$17,0,(-1*Lifetime)+1,1,Lifetime))/SUM(OFFSET('Shipments and Stock '!AD$17,0,(-1*Lifetime)+1,1,Lifetime))) ->  | AD18: =IF(AD$16-$D$16<Lifetime,AD12, SUMPRODUCT(OFFSET(AD12,0,(-1*Lifetime)+1,1,Lifetime),OFFSET('Shipments and Stock '!AE$17,0,(-1*Lifetime)+1,1,Lifetime))/SUM(OFFSET('Shipments and Stock '!AE$17,0,(-1*Lifetime)+1,1,Lifetime))) ->  | AE18: =IF(AE$16-$D$16<Lifetime,AE12, SUMPRODUCT(OFFSET(AE12,0,(-1*Lifetime)+1,1,Lifetime),OFFSET('Shipments and Stock '!AF$17,0,(-1*Lifetime)+1,1,Lifetime))/SUM(OFFSET('Shipments and Stock '!AF$17,0,(-1*Lifetime)+1,1,Lifetime))) ->  | AF18: =IF(AF$16-$D$16<Lifetime,AF12, SUMPRODUCT(OFFSET(AF12,0,(-1*Lifetime)+1,1,Lifetime),OFFSET('Shipments and Stock '!AG$17,0,(-1*Lifetime)+1,1,Lifetime))/SUM(OFFSET('Shipments and Stock '!AG$17,0,(-1*Lifetime)+1,1,Lifetime))) ->  | AG18: =IF(AG$16-$D$16<Lifetime,AG12, SUMPRODUCT(OFFSET(AG12,0,(-1*Lifetime)+1,1,Lifetime),OFFSET('Shipments and Stock '!AH$17,0,(-1*Lifetime)+1,1,Lifetime))/SUM(OFFSET('Shipments and Stock '!AH$17,0,(-1*Lifetime)+1,1,Lifetime))) ->  | AH18: =IF(AH$16-$D$16<Lifetime,AH12, SUMPRODUCT(OFFSET(AH12,0,(-1*Lifetime)+1,1,Lifetime),OFFSET('Shipments and Stock '!AI$17,0,(-1*Lifetime)+1,1,Lifetime))/SUM(OFFSET('Shipments and Stock '!AI$17,0,(-1*Lifetime)+1,1,Lifetime))) ->  | AI18: =IF(AI$16-$D$16<Lifetime,AI12, SUMPRODUCT(OFFSET(AI12,0,(-1*Lifetime)+1,1,Lifetime),OFFSET('Shipments and Stock '!AJ$17,0,(-1*Lifetime)+1,1,Lifetime))/SUM(OFFSET('Shipments and Stock '!AJ$17,0,(-1*Lifetime)+1,1,Lifetime))) ->  | AJ18: =IF(AJ$16-$D$16<Lifetime,AJ12, SUMPRODUCT(OFFSET(AJ12,0,(-1*Lifetime)+1,1,Lifetime),OFFSET('Shipments and Stock '!AK$17,0,(-1*Lifetime)+1,1,Lifetime))/SUM(OFFSET('Shipments and Stock '!AK$17,0,(-1*Lifetime)+1,1,Lifetime))) ->  | AK18: =IF(AK$16-$D$16<Lifetime,AK12, SUMPRODUCT(OFFSET(AK12,0,(-1*Lifetime)+1,1,Lifetime),OFFSET('Shipments and Stock '!AL$17,0,(-1*Lifetime)+1,1,Lifetime))/SUM(OFFSET('Shipments and Stock '!AL$17,0,(-1*Lifetime)+1,1,Lifetime))) ->  | AL18: =IF(AL$16-$D$16<Lifetime,AL12, SUMPRODUCT(OFFSET(AL12,0,(-1*Lifetime)+1,1,Lifetime),OFFSET('Shipments and Stock '!AM$17,0,(-1*Lifetime)+1,1,Lifetime))/SUM(OFFSET('Shipments and Stock '!AM$17,0,(-1*Lifetime)+1,1,Lifetime))) ->  | AM18: =IF(AM$16-$D$16<Lifetime,AM12, SUMPRODUCT(OFFSET(AM12,0,(-1*Lifetime)+1,1,Lifetime),OFFSET('Shipments and Stock '!AN$17,0,(-1*Lifetime)+1,1,Lifetime))/SUM(OFFSET('Shipments and Stock '!AN$17,0,(-1*Lifetime)+1,1,Lifetime))) ->  | AN18: =IF(AN$16-$D$16<Lifetime,AN12, SUMPRODUCT(OFFSET(AN12,0,(-1*Lifetime)+1,1,Lifetime),OFFSET('Shipments and Stock '!AO$17,0,(-1*Lifetime)+1,1,Lifetime))/SUM(OFFSET('Shipments and Stock '!AO$17,0,(-1*Lifetime)+1,1,Lifetime))) ->  | AO18: =IF(AO$16-$D$16<Lifetime,AO12, SUMPRODUCT(OFFSET(AO12,0,(-1*Lifetime)+1,1,Lifetime),OFFSET('Shipments and Stock '!AP$17,0,(-1*Lifetime)+1,1,Lifetime))/SUM(OFFSET('Shipments and Stock '!AP$17,0,(-1*Lifetime)+1,1,Lifetime))) ->  | AP18: =IF(AP$16-$D$16<Lifetime,AP12, SUMPRODUCT(OFFSET(AP12,0,(-1*Lifetime)+1,1,Lifetime),OFFSET('Shipments and Stock '!AQ$17,0,(-1*Lifetime)+1,1,Lifetime))/SUM(OFFSET('Shipments and Stock '!AQ$17,0,(-1*Lifetime)+1,1,Lifetime))) ->  | AQ18: =IF(AQ$16-$D$16<Lifetime,AQ12, SUMPRODUCT(OFFSET(AQ12,0,(-1*Lifetime)+1,1,Lifetime),OFFSET('Shipments and Stock '!AR$17,0,(-1*Lifetime)+1,1,Lifetime))/SUM(OFFSET('Shipments and Stock '!AR$17,0,(-1*Lifetime)+1,1,Lifetime))) ->  | AR18: =IF(AR$16-$D$16<Lifetime,AR12, SUMPRODUCT(OFFSET(AR12,0,(-1*Lifetime)+1,1,Lifetime),OFFSET('Shipments and Stock '!AS$17,0,(-1*Lifetime)+1,1,Lifetime))/SUM(OFFSET('Shipments and Stock '!AS$17,0,(-1*Lifetime)+1,1,Lifetime))) ->  | AS18: =IF(AS$16-$D$16<Lifetime,AS12, SUMPRODUCT(OFFSET(AS12,0,(-1*Lifetime)+1,1,Lifetime),OFFSET('Shipments and Stock '!AT$17,0,(-1*Lifetime)+1,1,Lifetime))/SUM(OFFSET('Shipments and Stock '!AT$17,0,(-1*Lifetime)+1,1,Lifetime))) ->  | AT18: =IF(AT$16-$D$16<Lifetime,AT12, SUMPRODUCT(OFFSET(AT12,0,(-1*Lifetime)+1,1,Lifetime),OFFSET('Shipments and Stock '!AU$17,0,(-1*Lifetime)+1,1,Lifetime))/SUM(OFFSET('Shipments and Stock '!AU$17,0,(-1*Lifetime)+1,1,Lifetime))) ->  | AU18: =IF(AU$16-$D$16<Lifetime,AU12, SUMPRODUCT(OFFSET(AU12,0,(-1*Lifetime)+1,1,Lifetime),OFFSET('Shipments and Stock '!AV$17,0,(-1*Lifetime)+1,1,Lifetime))/SUM(OFFSET('Shipments and Stock '!AV$17,0,(-1*Lifetime)+1,1,Lifetime))) ->  | AV18: =IF(AV$16-$D$16<Lifetime,AV12, SUMPRODUCT(OFFSET(AV12,0,(-1*Lifetime)+1,1,Lifetime),OFFSET('Shipments and Stock '!AW$17,0,(-1*Lifetime)+1,1,Lifetime))/SUM(OFFSET('Shipments and Stock '!AW$17,0,(-1*Lifetime)+1,1,Lifetime))) -> 

Sheet RESULTS
C2: RESULTS
C4: NAVIGATION
C6: COMMENTS
C8: Building Type
C9: TOTAL
C11: Unit Energy Consumption (kWh/year) | D11: 2010 | E11: =D11+1 -> 2011 | F11: 2012 | G11: 2013 | H11: 2014 | I11: 2015 | J11: 2016 | K11: 2017 | L11: 2018 | M11: 2019 | N11: 2020 | O11: 2021 | P11: 2022 | Q11: 2023 | R11: 2024 | S11: 2025 | T11: 2026 | U11: 2027 | V11: 2028 | W11: 2029 | X11: 2030 | Y11: 2031 | Z11: 2032 | AA11: 2033 | AB11: 2034
C12: 6P UEC | D12: ='6P UEC Development'!$D$9 -> 1479 | E12: ='6P UEC Development'!$D$9 -> 1479 | F12: ='6P UEC Development'!$D$9 -> 1479 | G12: ='6P UEC Development'!$D$9 -> 1479 | H12: ='6P UEC Development'!$D$9 -> 1479 | I12: ='6P UEC Development'!$D$9 -> 1479 | J12: ='6P UEC Development'!$D$9 -> 1479 | K12: ='6P UEC Development'!$D$9 -> 1479 | L12: ='6P UEC Development'!$D$9 -> 1479 | M12: ='6P UEC Development'!$D$9 -> 1479 | N12: ='6P UEC Development'!$D$9 -> 1479 | O12: ='6P UEC Development'!$D$9 -> 1479 | P12: ='6P UEC Development'!$D$9 -> 1479 | Q12: ='6P UEC Development'!$D$9 -> 1479 | R12: ='6P UEC Development'!$D$9 -> 1479 | S12: ='6P UEC Development'!$D$9 -> 1479 | T12: ='6P UEC Development'!$D$9 -> 1479 | U12: ='6P UEC Development'!$D$9 -> 1479 | V12: ='6P UEC Development'!$D$9 -> 1479 | W12: ='6P UEC Development'!$D$9 -> 1479 | X12: ='6P UEC Development'!$D$9 -> 1479 | Y12: ='6P UEC Development'!$D$9 -> 1479 | Z12: ='6P UEC Development'!$D$9 -> 1479 | AA12: ='6P UEC Development'!$D$9 -> 1479 | AB12: ='6P UEC Development'!$D$9 -> 1479
C13: Market UEC (Shipment Weighted Average) - PRE-Case UEC | D13: =UEC!X11 -> 1421.771455 | E13: =UEC!Y11 -> 1421.771455 | F13: =UEC!Z11 -> 1060.91645 | G13: =UEC!AA11 -> 1060.91645 | H13: =UEC!AB11 -> 1060.91645 | I13: =UEC!AC11 -> 1060.91645 | J13: =UEC!AD11 -> 1060.91645 | K13: =UEC!AE11 -> 1060.91645 | L13: =UEC!AF11 -> 1060.91645 | M13: =UEC!AG11 -> 1060.91645 | N13: =UEC!AH11 -> 1060.91645 | O13: =UEC!AI11 -> 1060.91645 | P13: =UEC!AJ11 -> 1060.91645 | Q13: =UEC!AK11 -> 1060.91645 | R13: =UEC!AL11 -> 1060.91645 | S13: =UEC!AM11 -> 1060.91645 | T13: =UEC!AN11 -> 1060.91645 | U13: =UEC!AO11 -> 1060.91645 | V13: =UEC!AP11 -> 1060.91645 | W13: =UEC!AQ11 -> 1060.91645 | X13: =UEC!AR11 -> 1060.91645 | Y13: =UEC!AS11 -> 1060.91645 | Z13: =UEC!AT11 -> 1060.91645 | AA13: =UEC!AU11 -> 1060.91645 | AB13: =UEC!AV11 -> 1060.91645
C14: Market UEC (Shipment Weighted Average) - POST-Case UEC | D14: =UEC!X12 -> 1421.771455 | E14: =UEC!Y12 -> 1421.771455 | F14: =UEC!Z12 -> 1060.91645 | G14: =UEC!AA12 -> 1060.91645 | H14: =UEC!AB12 -> 1060.91645 | I14: =UEC!AC12 -> 1060.91645 | J14: =UEC!AD12 -> 1060.91645 | K14: =UEC!AE12 -> 1060.91645 | L14: =UEC!AF12 -> 1060.91645 | M14: =UEC!AG12 -> 1060.91645 | N14: =UEC!AH12 -> 1060.91645 | O14: =UEC!AI12 -> 1060.91645 | P14: =UEC!AJ12 -> 1060.91645 | Q14: =UEC!AK12 -> 1060.91645 | R14: =UEC!AL12 -> 1060.91645 | S14: =UEC!AM12 -> 1060.91645 | T14: =UEC!AN12 -> 1060.91645 | U14: =UEC!AO12 -> 1060.91645 | V14: =UEC!AP12 -> 1060.91645 | W14: =UEC!AQ12 -> 1060.91645 | X14: =UEC!AR12 -> 1060.91645 | Y14: =UEC!AS12 -> 1060.91645 | Z14: =UEC!AT12 -> 1060.91645 | AA14: =UEC!AU12 -> 1060.91645 | AB14: =UEC!AV12 -> 1060.91645
C15: Installed UEC (Vintage Weighted Average) - PRE-Case UEC | D15: =UEC!X17 ->  | E15: =UEC!Y17 ->  | F15: =UEC!Z17 ->  | G15: =UEC!AA17 ->  | H15: =UEC!AB17 ->  | I15: =UEC!AC17 ->  | J15: =UEC!AD17 ->  | K15: =UEC!AE17 ->  | L15: =UEC!AF17 ->  | M15: =UEC!AG17 ->  | N15: =UEC!AH17 ->  | O15: =UEC!AI17 ->  | P15: =UEC!AJ17 ->  | Q15: =UEC!AK17 ->  | R15: =UEC!AL17 ->  | S15: =UEC!AM17 ->  | T15: =UEC!AN17 ->  | U15: =UEC!AO17 ->  | V15: =UEC!AP17 ->  | W15: =UEC!AQ17 ->  | X15: =UEC!AR17 ->  | Y15: =UEC!AS17 ->  | Z15: =UEC!AT17 ->  | AA15: =UEC!AU17 ->  | AB15: =UEC!AV17 -> 
C16: Installed UEC (Vintage Weighted Average) - POST-Case UEC | D16: =UEC!X18 ->  | E16: =UEC!Y18 ->  | F16: =UEC!Z18 ->  | G16: =UEC!AA18 ->  | H16: =UEC!AB18 ->  | I16: =UEC!AC18 ->  | J16: =UEC!AD18 ->  | K16: =UEC!AE18 ->  | L16: =UEC!AF18 ->  | M16: =UEC!AG18 ->  | N16: =UEC!AH18 ->  | O16: =UEC!AI18 ->  | P16: =UEC!AJ18 ->  | Q16: =UEC!AK18 ->  | R16: =UEC!AL18 ->  | S16: =UEC!AM18 ->  | T16: =UEC!AN18 ->  | U16: =UEC!AO18 ->  | V16: =UEC!AP18 ->  | W16: =UEC!AQ18 ->  | X16: =UEC!AR18 ->  | Y16: =UEC!AS18 ->  | Z16: =UEC!AT18 ->  | AA16: =UEC!AU18 ->  | AB16: =UEC!AV18 -> 
C18: Stock and Shipments | D18: =D11 -> 2010 | E18: =D18+1 -> 2011 | F18: 2012 | G18: 2013 | H18: 2014 | I18: 2015 | J18: 2016 | K18: 2017 | L18: 2018 | M18: 2019 | N18: 2020 | O18: 2021 | P18: 2022 | Q18: 2023 | R18: 2024 | S18: 2025 | T18: 2026 | U18: 2027 | V18: 2028 | W18: 2029 | X18: 2030 | Y18: 2031 | Z18: 2032 | AA18: 2033 | AB18: 2034
C19: 6P Shipments | D19: ='Shipments and Stock '!AB14 -> 10421.2159 | E19: ='Shipments and Stock '!AC14 -> 10312.07222 | F19: ='Shipments and Stock '!AD14 -> 10229.80966 | G19: ='Shipments and Stock '!AE14 -> 10220.46986 | H19: ='Shipments and Stock '!AF14 -> 10181.73526 | I19: ='Shipments and Stock '!AG14 -> 10151.28197 | J19: ='Shipments and Stock '!AH14 -> 10134.79561 | K19: ='Shipments and Stock '!AI14 -> 10237.56352 | L19: ='Shipments and Stock '!AJ14 -> 10305.27479 | M19: ='Shipments and Stock '!AK14 -> 10397.22029 | N19: ='Shipments and Stock '!AL14 -> 10522.6927 | O19: ='Shipments and Stock '!AM14 -> 10707.37855 | P19: ='Shipments and Stock '!AN14 -> 10851.35812 | Q19: ='Shipments and Stock '!AO14 -> 10914.66529 | R19: ='Shipments and Stock '!AP14 -> 10994.93539 | S19: ='Shipments and Stock '!AQ14 -> 11101.7893 | T19: ='Shipments and Stock '!AR14 -> 11221.52909 | U19: ='Shipments and Stock '!AS14 -> 11325.45007 | V19: ='Shipments and Stock '!AT14 -> 11444.28868 | W19: ='Shipments and Stock '!AU14 -> 11573.17445 | X19: ='Shipments and Stock '!AV14 -> 11704.63794 | Y19: ='Shipments and Stock '!AW14 -> 11704.63794 | Z19: ='Shipments and Stock '!AX14 -> 11704.63794 | AA19: ='Shipments and Stock '!AY14 -> 11704.63794 | AB19: ='Shipments and Stock '!AZ14 -> 11704.63794
C20: Replacement Shipments | D20: ='Shipments and Stock '!AB15 ->  | E20: ='Shipments and Stock '!AC15 ->  | F20: ='Shipments and Stock '!AD15 ->  | G20: ='Shipments and Stock '!AE15 ->  | H20: ='Shipments and Stock '!AF15 ->  | I20: ='Shipments and Stock '!AG15 ->  | J20: ='Shipments and Stock '!AH15 ->  | K20: ='Shipments and Stock '!AI15 ->  | L20: ='Shipments and Stock '!AJ15 ->  | M20: ='Shipments and Stock '!AK15 ->  | N20: ='Shipments and Stock '!AL15 ->  | O20: ='Shipments and Stock '!AM15 ->  | P20: ='Shipments and Stock '!AN15 ->  | Q20: ='Shipments and Stock '!AO15 ->  | R20: ='Shipments and Stock '!AP15 ->  | S20: ='Shipments and Stock '!AQ15 ->  | T20: ='Shipments and Stock '!AR15 ->  | U20: ='Shipments and Stock '!AS15 ->  | V20: ='Shipments and Stock '!AT15 ->  | W20: ='Shipments and Stock '!AU15 ->  | X20: ='Shipments and Stock '!AV15 ->  | Y20: ='Shipments and Stock '!AW15 ->  | Z20: ='Shipments and Stock '!AX15 ->  | AA20: ='Shipments and Stock '!AY15 ->  | AB20: ='Shipments and Stock '!AZ15 -> 
C21: Net New Shipments | D21: ='Shipments and Stock '!AB16 ->  | E21: ='Shipments and Stock '!AC16 ->  | F21: ='Shipments and Stock '!AD16 ->  | G21: ='Shipments and Stock '!AE16 ->  | H21: ='Shipments and Stock '!AF16 ->  | I21: ='Shipments and Stock '!AG16 ->  | J21: ='Shipments and Stock '!AH16 ->  | K21: ='Shipments and Stock '!AI16 ->  | L21: ='Shipments and Stock '!AJ16 ->  | M21: ='Shipments and Stock '!AK16 ->  | N21: ='Shipments and Stock '!AL16 ->  | O21: ='Shipments and Stock '!AM16 ->  | P21: ='Shipments and Stock '!AN16 ->  | Q21: ='Shipments and Stock '!AO16 ->  | R21: ='Shipments and Stock '!AP16 ->  | S21: ='Shipments and Stock '!AQ16 ->  | T21: ='Shipments and Stock '!AR16 ->  | U21: ='Shipments and Stock '!AS16 ->  | V21: ='Shipments and Stock '!AT16 ->  | W21: ='Shipments and Stock '!AU16 ->  | X21: ='Shipments and Stock '!AV16 ->  | Y21: ='Shipments and Stock '!AW16 ->  | Z21: ='Shipments and Stock '!AX16 ->  | AA21: ='Shipments and Stock '!AY16 ->  | AB21: ='Shipments and Stock '!AZ16 -> 
C22: Total Model Shipments | D22: ='Shipments and Stock '!AB17 ->  | E22: ='Shipments and Stock '!AC17 ->  | F22: ='Shipments and Stock '!AD17 ->  | G22: ='Shipments and Stock '!AE17 ->  | H22: ='Shipments and Stock '!AF17 ->  | I22: ='Shipments and Stock '!AG17 ->  | J22: ='Shipments and Stock '!AH17 ->  | K22: ='Shipments and Stock '!AI17 ->  | L22: ='Shipments and Stock '!AJ17 ->  | M22: ='Shipments and Stock '!AK17 ->  | N22: ='Shipments and Stock '!AL17 ->  | O22: ='Shipments and Stock '!AM17 ->  | P22: ='Shipments and Stock '!AN17 ->  | Q22: ='Shipments and Stock '!AO17 ->  | R22: ='Shipments and Stock '!AP17 ->  | S22: ='Shipments and Stock '!AQ17 ->  | T22: ='Shipments and Stock '!AR17 ->  | U22: ='Shipments and Stock '!AS17 ->  | V22: ='Shipments and Stock '!AT17 ->  | W22: ='Shipments and Stock '!AU17 ->  | X22: ='Shipments and Stock '!AV17 ->  | Y22: ='Shipments and Stock '!AW17 ->  | Z22: ='Shipments and Stock '!AX17 ->  | AA22: ='Shipments and Stock '!AY17 ->  | AB22: ='Shipments and Stock '!AZ17 -> 
C23: Model Installed Stock | D23: ='Shipments and Stock '!AB18 ->  | E23: ='Shipments and Stock '!AC18 ->  | F23: ='Shipments and Stock '!AD18 ->  | G23: ='Shipments and Stock '!AE18 ->  | H23: ='Shipments and Stock '!AF18 ->  | I23: ='Shipments and Stock '!AG18 ->  | J23: ='Shipments and Stock '!AH18 ->  | K23: ='Shipments and Stock '!AI18 ->  | L23: ='Shipments and Stock '!AJ18 ->  | M23: ='Shipments and Stock '!AK18 ->  | N23: ='Shipments and Stock '!AL18 ->  | O23: ='Shipments and Stock '!AM18 ->  | P23: ='Shipments and Stock '!AN18 ->  | Q23: ='Shipments and Stock '!AO18 ->  | R23: ='Shipments and Stock '!AP18 ->  | S23: ='Shipments and Stock '!AQ18 ->  | T23: ='Shipments and Stock '!AR18 ->  | U23: ='Shipments and Stock '!AS18 ->  | V23: ='Shipments and Stock '!AT18 ->  | W23: ='Shipments and Stock '!AU18 ->  | X23: ='Shipments and Stock '!AV18 ->  | Y23: ='Shipments and Stock '!AW18 ->  | Z23: ='Shipments and Stock '!AX18 ->  | AA23: ='Shipments and Stock '!AY18 ->  | AB23: ='Shipments and Stock '!AZ18 -> 
C27: First Year Energy Consumption (kWh) | D27: =D18 -> 2010 | E27: =D27+1 -> 2011 | F27: 2012 | G27: 2013 | H27: 2014 | I27: 2015 | J27: 2016 | K27: 2017 | L27: 2018 | M27: 2019 | N27: 2020 | O27: 2021 | P27: 2022 | Q27: 2023 | R27: 2024 | S27: 2025 | T27: 2026 | U27: 2027 | V27: 2028 | W27: 2029 | X27: 2030 | Y27: 2031 | Z27: 2032 | AA27: 2033 | AB27: 2034
C28: 6P Shipments * 6P UEC | D28: =D12*D19 -> 15412978.31 | E28: =E12*E19 -> 15251554.81 | F28: 15129888.49 | G28: 15116074.92 | H28: 15058786.45 | I28: 15013746.03 | J28: 14989362.7 | K28: 15141356.45 | L28: 15241501.42 | M28: 15377488.81 | N28: 15563062.5 | O28: 15836212.88 | P28: 16049158.66 | Q28: 16142789.96 | R28: 16261509.45 | S28: 16419546.38 | T28: 16596641.52 | U28: 16750340.66 | V28: 16926102.95 | W28: 17116725.01 | X28: 17311159.51 | Y28: 17311159.51 | Z28: 17311159.51 | AA28: 17311159.51 | AB28: 17311159.51
C29: Model Shipments * Model Pre-Case UEC | D29: =D13*D22 ->  | E29: =E13*E22 -> 
C30: Model Shipments * Model Post-Case UEC | D30: =D14*D22 ->  | E30: =E14*E22 -> 
C32: Total Energy Consumption (kWh) | D32: =D27 -> 2010 | E32: =D32+1 -> 2011 | F32: 2012 | G32: 2013 | H32: 2014 | I32: 2015 | J32: 2016 | K32: 2017 | L32: 2018 | M32: 2019 | N32: 2020 | O32: 2021 | P32: 2022 | Q32: 2023 | R32: 2024 | S32: 2025 | T32: 2026 | U32: 2027 | V32: 2028 | W32: 2029 | X32: 2030 | Y32: 2031 | Z32: 2032 | AA32: 2033 | AB32: 2034
C33: Modeled Pre-case Consumption (Installed UEC * Stock) | D33: =D15*D23 -> 
C34: Modeled Post-case Consumption (Installed UEC* Stock) | D34: =D16*D23 -> 
C38: Total Energy Consumption (aMW) | D38: =D27 -> 2010 | E38: =D38+1 -> 2011 | F38: 2012 | G38: 2013 | H38: 2014 | I38: 2015 | J38: 2016 | K38: 2017 | L38: 2018 | M38: 2019 | N38: 2020 | O38: 2021 | P38: 2022 | Q38: 2023 | R38: 2024 | S38: 2025 | T38: 2026 | U38: 2027 | V38: 2028 | W38: 2029 | X38: 2030 | Y38: 2031 | Z38: 2032 | AA38: 2033 | AB38: 2034
C39: =C33 -> Modeled Pre-case Consumption (Installed UEC * Stock) | D39: =D33/'Constants and Menus'!$D$13/('Constants and Menus'!$D$12*'Constants and Menus'!$D$10) ->  | E39: =E33/'Constants and Menus'!$D$13/('Constants and Menus'!$D$12*'Constants and Menus'!$D$10) ->  | F39: =F33/'Constants and Menus'!$D$13/('Constants and Menus'!$D$12*'Constants and Menus'!$D$10) ->  | G39: =G33/'Constants and Menus'!$D$13/('Constants and Menus'!$D$12*'Constants and Menus'!$D$10) ->  | H39: =H33/'Constants and Menus'!$D$13/('Constants and Menus'!$D$12*'Constants and Menus'!$D$10) ->  | I39: =I33/'Constants and Menus'!$D$13/('Constants and Menus'!$D$12*'Constants and Menus'!$D$10) ->  | J39: =J33/'Constants and Menus'!$D$13/('Constants and Menus'!$D$12*'Constants and Menus'!$D$10) ->  | K39: =K33/'Constants and Menus'!$D$13/('Constants and Menus'!$D$12*'Constants and Menus'!$D$10) ->  | L39: =L33/'Constants and Menus'!$D$13/('Constants and Menus'!$D$12*'Constants and Menus'!$D$10) ->  | M39: =M33/'Constants and Menus'!$D$13/('Constants and Menus'!$D$12*'Constants and Menus'!$D$10) ->  | N39: =N33/'Constants and Menus'!$D$13/('Constants and Menus'!$D$12*'Constants and Menus'!$D$10) ->  | O39: =O33/'Constants and Menus'!$D$13/('Constants and Menus'!$D$12*'Constants and Menus'!$D$10) ->  | P39: =P33/'Constants and Menus'!$D$13/('Constants and Menus'!$D$12*'Constants and Menus'!$D$10) ->  | Q39: =Q33/'Constants and Menus'!$D$13/('Constants and Menus'!$D$12*'Constants and Menus'!$D$10) ->  | R39: =R33/'Constants and Menus'!$D$13/('Constants and Menus'!$D$12*'Constants and Menus'!$D$10) ->  | S39: =S33/'Constants and Menus'!$D$13/('Constants and Menus'!$D$12*'Constants and Menus'!$D$10) ->  | T39: =T33/'Constants and Menus'!$D$13/('Constants and Menus'!$D$12*'Constants and Menus'!$D$10) ->  | U39: =U33/'Constants and Menus'!$D$13/('Constants and Menus'!$D$12*'Constants and Menus'!$D$10) ->  | V39: =V33/'Constants and Menus'!$D$13/('Constants and Menus'!$D$12*'Constants and Menus'!$D$10) ->  | W39: =W33/'Constants and Menus'!$D$13/('Constants and Menus'!$D$12*'Constants and Menus'!$D$10) ->  | X39: =X33/'Constants and Menus'!$D$13/('Constants and Menus'!$D$12*'Constants and Menus'!$D$10) ->  | Y39: =Y33/'Constants and Menus'!$D$13/('Constants and Menus'!$D$12*'Constants and Menus'!$D$10) ->  | Z39: =Z33/'Constants and Menus'!$D$13/('Constants and Menus'!$D$12*'Constants and Menus'!$D$10) ->  | AA39: =AA33/'Constants and Menus'!$D$13/('Constants and Menus'!$D$12*'Constants and Menus'!$D$10) ->  | AB39: =AB33/'Constants and Menus'!$D$13/('Constants and Menus'!$D$12*'Constants and Menus'!$D$10) -> 
C40: =C34 -> Modeled Post-case Consumption (Installed UEC* Stock) | D40: =D34/'Constants and Menus'!$D$13/('Constants and Menus'!$D$12*'Constants and Menus'!$D$10) ->  | E40: =E34/'Constants and Menus'!$D$13/('Constants and Menus'!$D$12*'Constants and Menus'!$D$10) ->  | F40: =F34/'Constants and Menus'!$D$13/('Constants and Menus'!$D$12*'Constants and Menus'!$D$10) ->  | G40: =G34/'Constants and Menus'!$D$13/('Constants and Menus'!$D$12*'Constants and Menus'!$D$10) ->  | H40: =H34/'Constants and Menus'!$D$13/('Constants and Menus'!$D$12*'Constants and Menus'!$D$10) ->  | I40: =I34/'Constants and Menus'!$D$13/('Constants and Menus'!$D$12*'Constants and Menus'!$D$10) ->  | J40: =J34/'Constants and Menus'!$D$13/('Constants and Menus'!$D$12*'Constants and Menus'!$D$10) ->  | K40: =K34/'Constants and Menus'!$D$13/('Constants and Menus'!$D$12*'Constants and Menus'!$D$10) ->  | L40: =L34/'Constants and Menus'!$D$13/('Constants and Menus'!$D$12*'Constants and Menus'!$D$10) ->  | M40: =M34/'Constants and Menus'!$D$13/('Constants and Menus'!$D$12*'Constants and Menus'!$D$10) ->  | N40: =N34/'Constants and Menus'!$D$13/('Constants and Menus'!$D$12*'Constants and Menus'!$D$10) ->  | O40: =O34/'Constants and Menus'!$D$13/('Constants and Menus'!$D$12*'Constants and Menus'!$D$10) ->  | P40: =P34/'Constants and Menus'!$D$13/('Constants and Menus'!$D$12*'Constants and Menus'!$D$10) ->  | Q40: =Q34/'Constants and Menus'!$D$13/('Constants and Menus'!$D$12*'Constants and Menus'!$D$10) ->  | R40: =R34/'Constants and Menus'!$D$13/('Constants and Menus'!$D$12*'Constants and Menus'!$D$10) ->  | S40: =S34/'Constants and Menus'!$D$13/('Constants and Menus'!$D$12*'Constants and Menus'!$D$10) ->  | T40: =T34/'Constants and Menus'!$D$13/('Constants and Menus'!$D$12*'Constants and Menus'!$D$10) ->  | U40: =U34/'Constants and Menus'!$D$13/('Constants and Menus'!$D$12*'Constants and Menus'!$D$10) ->  | V40: =V34/'Constants and Menus'!$D$13/('Constants and Menus'!$D$12*'Constants and Menus'!$D$10) ->  | W40: =W34/'Constants and Menus'!$D$13/('Constants and Menus'!$D$12*'Constants and Menus'!$D$10) ->  | X40: =X34/'Constants and Menus'!$D$13/('Constants and Menus'!$D$12*'Constants and Menus'!$D$10) ->  | Y40: =Y34/'Constants and Menus'!$D$13/('Constants and Menus'!$D$12*'Constants and Menus'!$D$10) ->  | Z40: =Z34/'Constants and Menus'!$D$13/('Constants and Menus'!$D$12*'Constants and Menus'!$D$10) ->  | AA40: =AA34/'Constants and Menus'!$D$13/('Constants and Menus'!$D$12*'Constants and Menus'!$D$10) ->  | AB40: =AB34/'Constants and Menus'!$D$13/('Constants and Menus'!$D$12*'Constants and Menus'!$D$10) -> 
C42: Savings (aMW) | D42: =D32 -> 2010 | E42: =D42+1 -> 2011 | F42: 2012 | G42: 2013 | H42: 2014 | I42: 2015 | J42: 2016 | K42: 2017 | L42: 2018 | M42: 2019 | N42: 2020 | O42: 2021 | P42: 2022 | Q42: 2023 | R42: 2024 | S42: 2025 | T42: 2026 | U42: 2027 | V42: 2028 | W42: 2029 | X42: 2030 | Y42: 2031 | Z42: 2032 | AA42: 2033 | AB42: 2034
C43: Incremental Savings | D43: =IF(AND(D42>='Constants and Menus'!$D$14,(D42-'Constants and Menus'!$D$14)<Lifetime), (D13-D14)*D22, (D13-D14)*D21) /'Constants and Menus'!$D$13/('Constants and Menus'!$D$12*'Constants and Menus'!$D$10) ->  | E43: =IF(AND(E42>='Constants and Menus'!$D$14,(E42-'Constants and Menus'!$D$14)<Lifetime), (E13-E14)*E22, (E13-E14)*E21) /'Constants and Menus'!$D$13/('Constants and Menus'!$D$12*'Constants and Menus'!$D$10) ->  | F43: =IF(AND(F42>='Constants and Menus'!$D$14,(F42-'Constants and Menus'!$D$14)<Lifetime), (F13-F14)*F22, (F13-F14)*F21) /'Constants and Menus'!$D$13/('Constants and Menus'!$D$12*'Constants and Menus'!$D$10) ->  | G43: =IF(AND(G42>='Constants and Menus'!$D$14,(G42-'Constants and Menus'!$D$14)<Lifetime), (G13-G14)*G22, (G13-G14)*G21) /'Constants and Menus'!$D$13/('Constants and Menus'!$D$12*'Constants and Menus'!$D$10) ->  | H43: =IF(AND(H42>='Constants and Menus'!$D$14,(H42-'Constants and Menus'!$D$14)<Lifetime), (H13-H14)*H22, (H13-H14)*H21) /'Constants and Menus'!$D$13/('Constants and Menus'!$D$12*'Constants and Menus'!$D$10) ->  | I43: =IF(AND(I42>='Constants and Menus'!$D$14,(I42-'Constants and Menus'!$D$14)<Lifetime), (I13-I14)*I22, (I13-I14)*I21) /'Constants and Menus'!$D$13/('Constants and Menus'!$D$12*'Constants and Menus'!$D$10) ->  | J43: =IF(AND(J42>='Constants and Menus'!$D$14,(J42-'Constants and Menus'!$D$14)<Lifetime), (J13-J14)*J22, (J13-J14)*J21) /'Constants and Menus'!$D$13/('Constants and Menus'!$D$12*'Constants and Menus'!$D$10) ->  | K43: =IF(AND(K42>='Constants and Menus'!$D$14,(K42-'Constants and Menus'!$D$14)<Lifetime), (K13-K14)*K22, (K13-K14)*K21) /'Constants and Menus'!$D$13/('Constants and Menus'!$D$12*'Constants and Menus'!$D$10) ->  | L43: =IF(AND(L42>='Constants and Menus'!$D$14,(L42-'Constants and Menus'!$D$14)<Lifetime), (L13-L14)*L22, (L13-L14)*L21) /'Constants and Menus'!$D$13/('Constants and Menus'!$D$12*'Constants and Menus'!$D$10) ->  | M43: =IF(AND(M42>='Constants and Menus'!$D$14,(M42-'Constants and Menus'!$D$14)<Lifetime), (M13-M14)*M22, (M13-M14)*M21) /'Constants and Menus'!$D$13/('Constants and Menus'!$D$12*'Constants and Menus'!$D$10) ->  | N43: =IF(AND(N42>='Constants and Menus'!$D$14,(N42-'Constants and Menus'!$D$14)<Lifetime), (N13-N14)*N22, (N13-N14)*N21) /'Constants and Menus'!$D$13/('Constants and Menus'!$D$12*'Constants and Menus'!$D$10) ->  | O43: =IF(AND(O42>='Constants and Menus'!$D$14,(O42-'Constants and Menus'!$D$14)<Lifetime), (O13-O14)*O22, (O13-O14)*O21) /'Constants and Menus'!$D$13/('Constants and Menus'!$D$12*'Constants and Menus'!$D$10) ->  | P43: =IF(AND(P42>='Constants and Menus'!$D$14,(P42-'Constants and Menus'!$D$14)<Lifetime), (P13-P14)*P22, (P13-P14)*P21) /'Constants and Menus'!$D$13/('Constants and Menus'!$D$12*'Constants and Menus'!$D$10) ->  | Q43: =IF(AND(Q42>='Constants and Menus'!$D$14,(Q42-'Constants and Menus'!$D$14)<Lifetime), (Q13-Q14)*Q22, (Q13-Q14)*Q21) /'Constants and Menus'!$D$13/('Constants and Menus'!$D$12*'Constants and Menus'!$D$10) ->  | R43: =IF(AND(R42>='Constants and Menus'!$D$14,(R42-'Constants and Menus'!$D$14)<Lifetime), (R13-R14)*R22, (R13-R14)*R21) /'Constants and Menus'!$D$13/('Constants and Menus'!$D$12*'Constants and Menus'!$D$10) ->  | S43: =IF(AND(S42>='Constants and Menus'!$D$14,(S42-'Constants and Menus'!$D$14)<Lifetime), (S13-S14)*S22, (S13-S14)*S21) /'Constants and Menus'!$D$13/('Constants and Menus'!$D$12*'Constants and Menus'!$D$10) ->  | T43: =IF(AND(T42>='Constants and Menus'!$D$14,(T42-'Constants and Menus'!$D$14)<Lifetime), (T13-T14)*T22, (T13-T14)*T21) /'Constants and Menus'!$D$13/('Constants and Menus'!$D$12*'Constants and Menus'!$D$10) ->  | U43: =IF(AND(U42>='Constants and Menus'!$D$14,(U42-'Constants and Menus'!$D$14)<Lifetime), (U13-U14)*U22, (U13-U14)*U21) /'Constants and Menus'!$D$13/('Constants and Menus'!$D$12*'Constants and Menus'!$D$10) ->  | V43: =IF(AND(V42>='Constants and Menus'!$D$14,(V42-'Constants and Menus'!$D$14)<Lifetime), (V13-V14)*V22, (V13-V14)*V21) /'Constants and Menus'!$D$13/('Constants and Menus'!$D$12*'Constants and Menus'!$D$10) ->  | W43: =IF(AND(W42>='Constants and Menus'!$D$14,(W42-'Constants and Menus'!$D$14)<Lifetime), (W13-W14)*W22, (W13-W14)*W21) /'Constants and Menus'!$D$13/('Constants and Menus'!$D$12*'Constants and Menus'!$D$10) ->  | X43: =IF(AND(X42>='Constants and Menus'!$D$14,(X42-'Constants and Menus'!$D$14)<Lifetime), (X13-X14)*X22, (X13-X14)*X21) /'Constants and Menus'!$D$13/('Constants and Menus'!$D$12*'Constants and Menus'!$D$10) ->  | Y43: =IF(AND(Y42>='Constants and Menus'!$D$14,(Y42-'Constants and Menus'!$D$14)<Lifetime), (Y13-Y14)*Y22, (Y13-Y14)*Y21) /'Constants and Menus'!$D$13/('Constants and Menus'!$D$12*'Constants and Menus'!$D$10) ->  | Z43: =IF(AND(Z42>='Constants and Menus'!$D$14,(Z42-'Constants and Menus'!$D$14)<Lifetime), (Z13-Z14)*Z22, (Z13-Z14)*Z21) /'Constants and Menus'!$D$13/('Constants and Menus'!$D$12*'Constants and Menus'!$D$10) ->  | AA43: =IF(AND(AA42>='Constants and Menus'!$D$14,(AA42-'Constants and Menus'!$D$14)<Lifetime), (AA13-AA14)*AA22, (AA13-AA14)*AA21) /'Constants and Menus'!$D$13/('Constants and Menus'!$D$12*'Constants and Menus'!$D$10) ->  | AB43: =IF(AND(AB42>='Constants and Menus'!$D$14,(AB42-'Constants and Menus'!$D$14)<Lifetime), (AB13-AB14)*AB22, (AB13-AB14)*AB21) /'Constants and Menus'!$D$13/('Constants and Menus'!$D$12*'Constants and Menus'!$D$10) -> 
C44: Cumulative Savings | D44: =D39-D40 -> 
C45: DOE Aggregate Lifecycle Savings (formerly DOE Carbon proxy) | D45: =SUM($D$44:D44) ->  | E45: =SUM($D$44:E44) ->  | F45: =SUM($D$44:F44) ->  | G45: =SUM($D$44:G44) ->  | H45: =SUM($D$44:H44) ->  | I45: =SUM($D$44:I44) ->  | J45: =SUM($D$44:J44) ->  | K45: =SUM($D$44:K44) ->  | L45: =SUM($D$44:L44) ->  | M45: =SUM($D$44:M44) ->  | N45: =SUM($D$44:N44) ->  | O45: =SUM($D$44:O44) ->  | P45: =SUM($D$44:P44) ->  | Q45: =SUM($D$44:Q44) ->  | R45: =SUM($D$44:R44) ->  | S45: =SUM($D$44:S44) ->  | T45: =SUM($D$44:T44) ->  | U45: =SUM($D$44:U44) ->  | V45: =SUM($D$44:V44) ->  | W45: =SUM($D$44:W44) ->  | X45: =SUM($D$44:X44) ->  | Y45: =SUM($D$44:Y44) ->  | Z45: =SUM($D$44:Z44) ->  | AA45: =SUM($D$44:AA44) ->  | AB45: =SUM($D$44:AB44) -> 
C46: Check | D46: =IF(ISNUMBER(C44),ROUND((D44-C44-D43),3),0) -> 0 | E46: =IF(ISNUMBER(D44),ROUND((E44-D44-E43),3),0) -> 0 | F46: 0 | G46: 0 | H46: 0 | I46: 0 | J46: 0 | K46: 0 | L46: 0 | M46: 0 | N46: 0 | O46: 0 | P46: 0 | Q46: 0 | R46: 0 | S46: 0 | T46: 0 | U46: 0 | V46: 0 | W46: 0 | X46: 0 | Y46: 0 | Z46: 0 | AA46: 0 | AB46: 0

Sheet SUMMARY RESULTS
C2: SUMMARY RESULTS
C4: NAVIGATION
C6: COMMENTS
D9: =RESULTS!$C$9 -> TOTAL
C10: Adjustment to 6P Baseline (aMW) | D10: N/A
C11: Incremental Savings 2010 through 2015 (aMW) | D11: =SUM(RESULTS!$D$43:$I$43) -> 
C12: Total Incremental Savings through 2034 (aMW) | D12: =SUM(RESULTS!$D$43:$AB$43) -> 

Sheet Charts
C2: CHARTS
C4: NAVIGATION
C6: COMMENTS
